Workbook

Sheet 1. INFORMACION ACUMULADA
A2: VEEDURIA DISTRITAL - INFORMACIÓN GESTION CONTRACTUAL
A3: DEL 1 DE ENERO AL 31 DE DICIEMBRE DE 2022
A5: 1. Entidad | H5: 2. Sector
A6: 3. Presupuesto Disponible Inversión Directa PREDIS (BOGDATA) | H6: 5. Presupuesto Disponible Funcionamiento PREDIS (BOGDATA) | AI6: 7. Nombre de quien diligencia el formato
A7: 4. Presupuesto Comprometido de Inversión Directa según PREDIS (BOGDATA) | H7: 6. Presupuesto Comprometido Funcionamiento según PREDIS (BOGDATA) | AI7: Cargo
AI8: Dependencia
AI9: Teléfono
AI10: Correo Electrónico
A11: 1- INFORMACION GENERAL | V11: 2- INFORMACION FINANCIERA | AC11: 3 - PLAZOS | AI11: 4. CESION | AQ11: 5. ESTADO | AR11: 6. % Avance y/o cumplimiento
A12: 1 | B12: 2 | C12: 3 | E12: 4 | F12: 5 | G12: 6 | H12: 7 | I12: 8 | N12: 9 | O12: 10 | V12: 12 | W12: 13 | X12: 14 | Y12: 15 | Z12: 16 | AA12: 17 | AB12: 18 | AC12: 19 | AD12: 20 | AE12: 21 | AF12: 22 | AG12: 23 | AH12: 24 | AI12: 25 | AJ12: 26 | AK12: 27 | AL12: 28 | AM12: 29 | AN12: 30 | AO12: 31 | AP12: 32 | AQ12: 33 | AR12: 34
A13: Número Contrato | B13: Año | C13: Número de proceso contractual SECOP | D13: Link proceso SECOP | E13: Tipo de contrato | F13: Modalidad de Selección | G13: Procedimiento o causal | H13: Objeto | I13: Afectación | J13: Plan de Desarrollo Distrital | K13: Número Programa | L13: Equivalencia número de programa | M13: Propósito | N13: Número Proyecto | O13: Número de proponentes | P13: Número de Identificación del contratista (Cédula o NIT sin puntos, comas ni caracteres especiales y sin digito de verificación) | Q13: Nombre del contratista (según el caso: nombres y apellidos o Razón social y Tipo societario) | R13: Naturaleza Jurídica | S13: Número de Identificación del integrante del Consorcio o U.T. (Cédula o NIT sin puntos, comas ni caracteres especiales y sin digito de verificación) | T13: Nombre del Integrante del Consorcio o U.T. y Tipo societario (Según el caso: nombres y apellidos o razón social y tipo societario) | U13: % Participación (indicar solo el numero del porcentaje, sin caracteres especiales) | V13: Vigencias futuras | W13: Valor Inicial del contrato | X13: Valor total reducciones (En valor negativo) | Y13: Número de adiciones | Z13: Valor total de adiciones | AA13: Valor Final | AB13: Giros (Valor en pesos) | AC13: Fecha de suscripción (DD/MM/AAAA) | AD13: Fecha de inicio (DD/MM/AAAA) | AE13: Fecha de terminación (DD/MM/AAAA) | AF13: Plazo en días | AG13: Número de prórrogas | AH13: Prorroga en días | AI13: Número de Identificación del cesionario (NIT sin digito de verificación) | AJ13: Nombre cesionario 1 | AK13: Fecha cesión (DD/MM/AAAA) | AL13: Valor cesión | AM13: Número de Identificación del cesionario (NIT sin digito de verificación) | AN13: Nombre cesionario 2 | AO13: Fecha cesión (DD/MM/AAAA) | AP13: Valor cesión | AQ13: Estado | AR13: % Avance y/o Cumplimiento
A14: 1 | B14: 2022 | C14: FDLF-CD-001-2022 | D14: https://community.secop.gov.co/Public/Tendering/OpportunityDetail/Index?noticeUID=CO1.NTC.2647248&isFromPublicArea=True&isModal=False | E14: Contratos de prestación de servicios profesionales y de apoyo a la gestión | F14: Contratación directa | G14: Prestación de servicios profesionales y de apoyo a la gestión, o para la ejecución de trabajos artísticos que sólo puedan encomendarse a determinadas personas naturales | H14: PRESTAR SERVICIOS PROFESIONALES ESPECIALIZADOS PARA APOYAR LA FORMULACIÓN, SEGUIMIENTO Y SUPERVISIÓN DE LOS PROCESOS DE INVERSIÓN ORIENTADOS A LOS TEMAS DE EDUCACIÓN | I14: Inversión | J14: Un nuevo contrato social y ambiental para la Bogotá del Siglo XXI | L14: =IF(ISERROR(VLOOKUP(K14,#REF!,2,FALSE))," ",VLOOKUP(K14,#REF!,2,FALSE)) ->  | M14: =IF(ISERROR(VLOOKUP(K14,#REF!,3,FALSE))," ",VLOOKUP(K14,#REF!,3,FALSE)) ->  | O14: 1 | P14: 103xxx52 | Q14: BRANDON RENE BARRIENTOS MARTINEZ | R14: Persona Natural | V14: N/A | W14: 77583000 | X14: 0 | AA14: =+W14+X14+Z14 -> 77583000 | AB14: 71940600 | AC14: 2022-01-24 | AD14: 2022-01-25 | AE14: 2022-12-24 | AF14: 11 MESES | AQ14: Terminado | AR14: =IF(ISERROR(AB14/AA14),"-",(AB14/AA14)) -> 0.9272727273
A15: 2 | B15: 2022 | C15: FDLF-CD-002-2022 | D15: https://community.secop.gov.co/Public/Tendering/OpportunityDetail/Index?noticeUID=CO1.NTC.2589858&isFromPublicArea=True&isModal=False | E15: Contratos de prestación de servicios profesionales y de apoyo a la gestión | F15: Contratación directa | G15: Prestación de servicios profesionales y de apoyo a la gestión, o para la ejecución de trabajos artísticos que sólo puedan encomendarse a determinadas personas naturales | H15: Prestar los servicios técnicos para apoyar los procesos de gestión administrativa y contractual al Fondo de Desarrollo Local de Fontibón | I15: Inversión | L15: =IF(ISERROR(VLOOKUP(K15,#REF!,2,FALSE))," ",VLOOKUP(K15,#REF!,2,FALSE)) ->  | M15: =IF(ISERROR(VLOOKUP(K15,#REF!,3,FALSE))," ",VLOOKUP(K15,#REF!,3,FALSE)) ->  | O15: 1 | P15: 101xxx71 | Q15: JUAN DAVID MONTOYA RAMIREZ | R15: Persona Natural | V15: N/A | W15: 27398000 | X15: 0 | AA15: 27398000 | AB15: 27398000 | AC15: 2022-01-18 | AD15: 2022-01-20 | AE15: 2022-08-19 | AF15: 7 MESES | AQ15: Terminado | AR15: 1
A16: 3 | B16: 2022 | C16: FDLF-CD-003-2022 | D16: https://community.secop.gov.co/Public/Tendering/OpportunityDetail/Index?noticeUID=CO1.NTC.2588362&isFromPublicArea=True&isModal=False | E16: Contratos de prestación de servicios profesionales y de apoyo a la gestión | F16: Contratación directa | G16: Prestación de servicios profesionales y de apoyo a la gestión, o para la ejecución de trabajos artísticos que sólo puedan encomendarse a determinadas personas naturales | H16: Prestar servicios profesionales para apoyar jurídicamente los diferentes procesos que requiera adelantar la Alcaldía Local de Fontibón desde las etapas precontractual y contractual, de acuerdo con el plan de adquisiciones y al plan de contratación. | I16: Inversión | L16: =IF(ISERROR(VLOOKUP(K16,#REF!,2,FALSE))," ",VLOOKUP(K16,#REF!,2,FALSE)) ->  | M16: =IF(ISERROR(VLOOKUP(K16,#REF!,3,FALSE))," ",VLOOKUP(K16,#REF!,3,FALSE)) ->  | O16: 1 | P16: 111xxx55 | Q16: YULIS PAOLA BRITO GUERRA | R16: Persona Natural | V16: N/A | W16: 74800000 | X16: 0 | AA16: 74800000 | AB16: 63693333 | AC16: 2022-01-18 | AD16: 2022-01-20 | AE16: 2022-12-19 | AF16: 11 MESES | AQ16: Terminado | AR16: 0.8515151471
A17: 4 | B17: 2022 | C17: FDLF-CD-004-2022 | D17: https://community.secop.gov.co/Public/Tendering/OpportunityDetail/Index?noticeUID=CO1.NTC.2741745&isFromPublicArea=True&isModal=False | E17: Contratos de prestación de servicios profesionales y de apoyo a la gestión | F17: Contratación directa | G17: Prestación de servicios profesionales y de apoyo a la gestión, o para la ejecución de trabajos artísticos que sólo puedan encomendarse a determinadas personas naturales | H17: PRESTAR SERVICIOS DE APOYO OPERATIVO A LA ALCALDÍA LOCAL DE FONTIBÓN EN EL MARCO DEL PROYECTO DE INVERSIÒN No 1766 | I17: Inversión | L17: =IF(ISERROR(VLOOKUP(K17,#REF!,2,FALSE))," ",VLOOKUP(K17,#REF!,2,FALSE)) ->  | M17: =IF(ISERROR(VLOOKUP(K17,#REF!,3,FALSE))," ",VLOOKUP(K17,#REF!,3,FALSE)) ->  | O17: 1 | P17: 397xxx23 | Q17: ADRIANA ANGELICA TOVAR ECHEVERRY | R17: Persona Natural | V17: N/A | W17: 17500000 | X17: 0 | Y17: 1 | Z17: 8750000 | AA17: 26250000 | AB17: 25000000 | AC17: 2022-01-28 | AD17: 2022-02-01 | AE17: 2022-12-15 | AF17: 7 MESES | AG17: 1 | AH17: 105 | AQ17: Terminado | AR17: 0.9523809524
A18: 5 | B18: 2022 | C18: FDLF-CD-005-2022 | D18: https://community.secop.gov.co/Public/Tendering/OpportunityDetail/Index?noticeUID=CO1.NTC.2602949&isFromPublicArea=True&isModal=False | E18: Contratos de prestación de servicios profesionales y de apoyo a la gestión | F18: Contratación directa | G18: Prestación de servicios profesionales y de apoyo a la gestión, o para la ejecución de trabajos artísticos que sólo puedan encomendarse a determinadas personas naturales | H18: PRESTAR SERVICIOS PROFESIONALES PARA APOYAR LA GESTIÓN DE PROCESOS, PROCEDIMIENTOS Y TRÁMITES DE CARÁCTER PRESUPUESTAL | I18: Inversión | L18: =IF(ISERROR(VLOOKUP(K18,#REF!,2,FALSE))," ",VLOOKUP(K18,#REF!,2,FALSE)) ->  | M18: =IF(ISERROR(VLOOKUP(K18,#REF!,3,FALSE))," ",VLOOKUP(K18,#REF!,3,FALSE)) ->  | O18: 1 | P18: 114xxx32 | Q18: OSCAR GIOVANNY CONTRERAS NOVOA | R18: Persona Natural | V18: N/A | W18: 37100000 | X18: 0 | Y18: 1 | Z18: 18550000 | AA18: 55650000 | AB18: 54766667 | AC18: 2022-01-19 | AD18: 2022-01-21 | AE18: 2022-12-05 | AF18: 7 MESES | AG18: 1 | AH18: 105 | AQ18: Terminado | AR18: 0.9841269901
A19: 6 | B19: 2022 | C19: FDLF-CD-006-2022 | D19: https://community.secop.gov.co/Public/Tendering/OpportunityDetail/Index?noticeUID=CO1.NTC.2593512&isFromPublicArea=True&isModal=False | E19: Contratos de prestación de servicios profesionales y de apoyo a la gestión | F19: Contratación directa | G19: Prestación de servicios profesionales y de apoyo a la gestión, o para la ejecución de trabajos artísticos que sólo puedan encomendarse a determinadas personas naturales | H19: PRESTAR SERVICIOS PROFESIONALES PARA APOYAR LAS ACTIVIDADES DE RE-ACTIVACIÓN ECONÓMICA DESARROLLADAS POR LA ALCALDÍA LOCAL DE FONTIBÓN. | I19: Inversión | L19: =IF(ISERROR(VLOOKUP(K19,#REF!,2,FALSE))," ",VLOOKUP(K19,#REF!,2,FALSE)) ->  | M19: =IF(ISERROR(VLOOKUP(K19,#REF!,3,FALSE))," ",VLOOKUP(K19,#REF!,3,FALSE)) ->  | O19: 1 | P19: 106xxx58 | Q19: KAREN JULIETH AYALA CARDENAS | R19: Persona Natural | V19: N/A | W19: 55000000 | X19: 0 | AA19: 55000000 | AB19: 50166667 | AC19: 2022-01-18 | AD19: 2022-01-24 | AE19: 2022-12-29 | AF19: 11 MESES | AQ19: Terminado | AR19: 0.9121212182
A20: 7 | B20: 2022 | C20: FDLF-CD-007-2022 | D20: https://community.secop.gov.co/Public/Tendering/OpportunityDetail/Index?noticeUID=CO1.NTC.2588726&isFromPublicArea=True&isModal=False | E20: Contratos de prestación de servicios profesionales y de apoyo a la gestión | F20: Contratación directa | G20: Prestación de servicios profesionales y de apoyo a la gestión, o para la ejecución de trabajos artísticos que sólo puedan encomendarse a determinadas personas naturales | H20: Prestar servicios profesionales para apoyar jurídicamente los diferentes procesos que requiera adelantar la Alcaldía Local de Fontibón desde las etapas precontractual y contractual, de acuerdo con el plan de adquisiciones y al plan de contratación. | I20: Inversión | L20: =IF(ISERROR(VLOOKUP(K20,#REF!,2,FALSE))," ",VLOOKUP(K20,#REF!,2,FALSE)) ->  | M20: =IF(ISERROR(VLOOKUP(K20,#REF!,3,FALSE))," ",VLOOKUP(K20,#REF!,3,FALSE)) ->  | O20: 1 | P20: 136xxx14 | Q20: OTTO GABRIEL FORERO VANEGAS | R20: Persona Natural | V20: N/A | W20: 74800000 | X20: 0 | AA20: 74800000 | AB20: 48960000 | AC20: 2022-01-19 | AD20: 2022-01-19 | AE20: 2022-08-24 | AF20: 11 MESES | AQ20: Terminado | AR20: 0.6545454545
A21: 8 | B21: 2022 | C21: FDLF-CD-008-2022 | D21: https://community.secop.gov.co/Public/Tendering/OpportunityDetail/Index?noticeUID=CO1.NTC.2595458&isFromPublicArea=True&isModal=False | E21: Contratos de prestación de servicios profesionales y de apoyo a la gestión | F21: Contratación directa | G21: Prestación de servicios profesionales y de apoyo a la gestión, o para la ejecución de trabajos artísticos que sólo puedan encomendarse a determinadas personas naturales | H21: PRESTAR SERVICIOS PROFESIONALES ESPECIALIZADOS PARA APOYAR AL DESPACHO DEL ALCALDE LOCAL DE FONTIBÓN EN LA REVISIÓN DE LOS ASPECTOS ADMINISTRATIVOS, FINANCIEROS Y OPERATIVOS PARA LAS ACCIONES DE FUNCIONAMIENTO QUE PERMITAN CUMPLIR CON LA MISIONALIDAD DE LA ALCALDÍA LOCAL | I21: Inversión | L21: =IF(ISERROR(VLOOKUP(K21,#REF!,2,FALSE))," ",VLOOKUP(K21,#REF!,2,FALSE)) ->  | M21: =IF(ISERROR(VLOOKUP(K21,#REF!,3,FALSE))," ",VLOOKUP(K21,#REF!,3,FALSE)) ->  | O21: 1 | P21: 817xxx12 | Q21: JUAN MANUEL BARRERA MONTERROSA | R21: Persona Natural | V21: N/A | W21: 93500000 | X21: 0 | AA21: 93500000 | AB21: 86700000 | AC21: 2022-01-24 | AD21: 2022-01-25 | AE21: 2022-12-24 | AF21: 11 MESES | AQ21: Terminado | AR21: 0.9272727273
A22: 9 | B22: 2022 | C22: FDLF-CD-009-2022 | D22: https://community.secop.gov.co/Public/Tendering/OpportunityDetail/Index?noticeUID=CO1.NTC.2595200&isFromPublicArea=True&isModal=False | E22: Contratos de prestación de servicios profesionales y de apoyo a la gestión | F22: Contratación directa | G22: Prestación de servicios profesionales y de apoyo a la gestión, o para la ejecución de trabajos artísticos que sólo puedan encomendarse a determinadas personas naturales | H22: Prestar servicios profesionales especializados para apoyar al despacho del alcalde local, en la revisión jurídica y administrativa de los documentos derivados de la gestión de la alcaldía local de Fontibón | I22: Inversión | L22: =IF(ISERROR(VLOOKUP(K22,#REF!,2,FALSE))," ",VLOOKUP(K22,#REF!,2,FALSE)) ->  | M22: =IF(ISERROR(VLOOKUP(K22,#REF!,3,FALSE))," ",VLOOKUP(K22,#REF!,3,FALSE)) ->  | O22: 1 | P22: 106xxx10 | Q22: LUISA FERNANDA BURGOS FUENTES | R22: Persona Natural | V22: N/A | W22: 82500000 | X22: 0 | AA22: 82500000 | AB22: 76750000 | AC22: 2022-01-20 | AD22: 2022-01-24 | AE22: 2022-12-23 | AF22: 11 MESES | AI22: 1120741433 | AJ22: ZAIRIS YIRLENA MENDOZA ATENCIO | AK22: 2022-09-02 | AQ22: Terminado | AR22: 0.9303030303
A23: 10 | B23: 2022 | C23: FDLF-CD-010-2022 | D23: https://community.secop.gov.co/Public/Tendering/OpportunityDetail/Index?noticeUID=CO1.NTC.2595191&isFromPublicArea=True&isModal=False | E23: Contratos de prestación de servicios profesionales y de apoyo a la gestión | F23: Contratación directa | G23: Prestación de servicios profesionales y de apoyo a la gestión, o para la ejecución de trabajos artísticos que sólo puedan encomendarse a determinadas personas naturales | H23: Prestar servicios profesionales para apoyar al despacho del alcalde local en la articulación y acompañamiento estratégico a actividades administrativas y de gestión | I23: Inversión | L23: =IF(ISERROR(VLOOKUP(K23,#REF!,2,FALSE))," ",VLOOKUP(K23,#REF!,2,FALSE)) ->  | M23: =IF(ISERROR(VLOOKUP(K23,#REF!,3,FALSE))," ",VLOOKUP(K23,#REF!,3,FALSE)) ->  | O23: 1 | P23: 101xxx31 | Q23: FRANCI PATRICIA PACHECO VALLEJO | R23: Persona Natural | V23: N/A | W23: 36204000 | X23: 0 | AA23: 36204000 | AB23: 36204000 | AC23: 2022-01-26 | AD23: 2022-01-28 | AE23: 2022-08-27 | AF23: 7 MESES | AQ23: Terminado | AR23: 1
A24: 11 | B24: 2022 | C24: FDLF-CD-011-2022 | D24: https://community.secop.gov.co/Public/Tendering/OpportunityDetail/Index?noticeUID=CO1.NTC.2595442&isFromPublicArea=True&isModal=False | E24: Contratos de prestación de servicios profesionales y de apoyo a la gestión | F24: Contratación directa | G24: Prestación de servicios profesionales y de apoyo a la gestión, o para la ejecución de trabajos artísticos que sólo puedan encomendarse a determinadas personas naturales | H24: Prestar servicios profesionales para apoyar al alcalde local en el seguimiento y revisión de las etapas precontractuales y contractuales de acuerdo con el plan de adquisiciones en desarrollo de los recursos asignados al fondo de desarrollo local de Fontibón. | I24: Inversión | L24: =IF(ISERROR(VLOOKUP(K24,#REF!,2,FALSE))," ",VLOOKUP(K24,#REF!,2,FALSE)) ->  | M24: =IF(ISERROR(VLOOKUP(K24,#REF!,3,FALSE))," ",VLOOKUP(K24,#REF!,3,FALSE)) ->  | O24: 1 | P24: 105xxx48 | Q24: WILMER FERNANDO PINZON BAEZ | R24: Persona Natural | V24: N/A | W24: 77440000 | X24: 0 | Y24: 1 | Z24: 9856000 | AA24: 87296000 | AB24: 73216000 | AC24: 2022-01-19 | AD24: 2022-01-19 | AE24: 2023-01-30 | AF24: 11 MESES | AG24: 1 | AH24: 42 | AI24: 13617614 | AJ24: OTTO GABRIEL FORERO VANEGAS | AK24: 2022-08-25 | AQ24: Terminado | AR24: 0.8387096774
A25: 12 | B25: 2022 | C25: FDLF-CD-012-2022 | D25: https://community.secop.gov.co/Public/Tendering/OpportunityDetail/Index?noticeUID=CO1.NTC.2602700&isFromPublicArea=True&isModal=False | E25: Contratos de prestación de servicios profesionales y de apoyo a la gestión | F25: Contratación directa | G25: Prestación de servicios profesionales y de apoyo a la gestión, o para la ejecución de trabajos artísticos que sólo puedan encomendarse a determinadas personas naturales | H25: Prestar servicios profesionales para apoyar jurídicamente los diferentes procesos que requiera adelantar la Alcaldía Local de Fontibón desde las etapas precontractual y contractual, de acuerdo con el plan de adquisiciones y al plan de contratación. | I25: Inversión | L25: =IF(ISERROR(VLOOKUP(K25,#REF!,2,FALSE))," ",VLOOKUP(K25,#REF!,2,FALSE)) ->  | M25: =IF(ISERROR(VLOOKUP(K25,#REF!,3,FALSE))," ",VLOOKUP(K25,#REF!,3,FALSE)) ->  | O25: 1 | P25: 102xxx24 | Q25: JOHANA ANDREA ROCHA BELTRAN | R25: Persona Natural | V25: N/A | W25: 74800000 | X25: 0 | Y25: 1 | Z25: 9520000 | AA25: 84320000 | AB25: 70720000 | AC25: 2022-01-19 | AD25: 2022-01-19 | AE25: 2023-01-30 | AF25: 11 MESES | AG25: 1 | AH25: 42 | AQ25: Terminado | AR25: 0.8387096774
A26: 13 | B26: 2022 | C26: FDLF-CD-013-2022 | D26: https://community.secop.gov.co/Public/Tendering/OpportunityDetail/Index?noticeUID=CO1.NTC.2595625&isFromPublicArea=True&isModal=False | E26: Contratos de prestación de servicios profesionales y de apoyo a la gestión | F26: Contratación directa | G26: Prestación de servicios profesionales y de apoyo a la gestión, o para la ejecución de trabajos artísticos que sólo puedan encomendarse a determinadas personas naturales | H26: PRESTAR SERVICIOS PROFESIONALES ESPECIALIZADOS PARA EL FORTALECIMIENTO DE LA FUNCIÓN ADMINISTRATIVA Y DESARROLLO INSTITUCIONAL DEL COMPONENTE SOCIAL EN CUMPLIMIENTO A LAS METAS ESTABLECIDAS EN EL PLAN DE DESARROLLO LOCAL 2021-2024. | I26: Inversión | L26: =IF(ISERROR(VLOOKUP(K26,#REF!,2,FALSE))," ",VLOOKUP(K26,#REF!,2,FALSE)) ->  | M26: =IF(ISERROR(VLOOKUP(K26,#REF!,3,FALSE))," ",VLOOKUP(K26,#REF!,3,FALSE)) ->  | O26: 1 | P26: 52xxx32 | Q26: DIANA KATHERINE RIVERA JIMENEZ | R26: Persona Natural | V26: N/A | W26: 79200000 | X26: 0 | Y26: 1 | Z26: 9600000 | AA26: 88800000 | AB26: 73680000 | AC26: 2022-01-19 | AD26: 2022-01-24 | AE26: 2023-02-03 | AF26: 11 MESES | AG26: 1 | AH26: 42 | AQ26: Terminado | AR26: 0.8297297297
A27: 14 | B27: 2022 | C27: FDLF-CD-014-2022 | D27: https://community.secop.gov.co/Public/Tendering/OpportunityDetail/Index?noticeUID=CO1.NTC.2601302&isFromPublicArea=True&isModal=False | E27: Contratos de prestación de servicios profesionales y de apoyo a la gestión | F27: Contratación directa | G27: Prestación de servicios profesionales y de apoyo a la gestión, o para la ejecución de trabajos artísticos que sólo puedan encomendarse a determinadas personas naturales | H27: PRESTAR SERVICIOS PROFESIONALES PARA APOYAR LAS ACTIVIDADES DE REACTIVACION ECONÓMICA DESARROLLADAS POR LA ALCALDÍA LOCAL DE FONTIBÓN. | I27: Inversión | L27: =IF(ISERROR(VLOOKUP(K27,#REF!,2,FALSE))," ",VLOOKUP(K27,#REF!,2,FALSE)) ->  | M27: =IF(ISERROR(VLOOKUP(K27,#REF!,3,FALSE))," ",VLOOKUP(K27,#REF!,3,FALSE)) ->  | O27: 1 | P27: 103xxx09 | Q27: ALEXANDRA CASTIBLANCO AGUILAR | R27: Persona Natural | V27: N/A | W27: 55000000 | X27: 0 | Y27: 1 | Z27: 7833333 | AA27: 62833333 | AB27: 51166667 | AC27: 2022-01-19 | AD27: 2022-01-24 | AE27: 2023-02-10 | AF27: 11 MESES | AG27: 1 | AH27: 47 | AQ27: Terminado | AR27: 0.8143236171
A28: 15 | B28: 2022 | C28: FDLF-CD-015-2022 | D28: https://community.secop.gov.co/Public/Tendering/OpportunityDetail/Index?noticeUID=CO1.NTC.2602046&isFromPublicArea=True&isModal=False | E28: Contratos de prestación de servicios profesionales y de apoyo a la gestión | F28: Contratación directa | G28: Prestación de servicios profesionales y de apoyo a la gestión, o para la ejecución de trabajos artísticos que sólo puedan encomendarse a determinadas personas naturales | H28: PRESTAR SERVICIOS PROFESIONALES PARA APOYAR LOS PROCESOS RELACIONADOS CON LOS CONTRATOS DE INVERSIÓN Y FUNCIONAMIENTO, VERIFICACIÓN DEL PROCEDIMIENTO DE PAGOS Y REVISIÓN DE CARPETAS Y DOCUMENTOS DE PAGO ALLEGADAS AL DESPACHO PARA RESPECTIVA FIRMA DEL ALCALDE LOCAL | I28: Inversión | L28: =IF(ISERROR(VLOOKUP(K28,#REF!,2,FALSE))," ",VLOOKUP(K28,#REF!,2,FALSE)) ->  | M28: =IF(ISERROR(VLOOKUP(K28,#REF!,3,FALSE))," ",VLOOKUP(K28,#REF!,3,FALSE)) ->  | O28: 1 | P28: 79xxx96 | Q28: CARLOS JAVIER CASTAÑO ALVARADO | R28: Persona Natural | V28: N/A | W28: 37100000 | X28: 0 | Y28: 1 | Z28: 18550000 | AA28: 55650000 | AB28: 55650000 | AC28: 2022-01-19 | AD28: 2022-01-24 | AE28: 2022-12-08 | AF28: 7 MESES | AG28: 1 | AH28: 105 | AQ28: Terminado | AR28: 1
A29: 16 | B29: 2022 | C29: FDLF-CD-016-2022 | D29: https://community.secop.gov.co/Public/Tendering/OpportunityDetail/Index?noticeUID=CO1.NTC.2603040&isFromPublicArea=True&isModal=False | E29: Contratos de prestación de servicios profesionales y de apoyo a la gestión | F29: Contratación directa | G29: Prestación de servicios profesionales y de apoyo a la gestión, o para la ejecución de trabajos artísticos que sólo puedan encomendarse a determinadas personas naturales | H29: PRESTAR SERVICIOS PROFESIONALES PARA APOYAR LOS PROCESOS RELACIONADOS CON LOS CONTRATOS DE INVERSIÓN Y FUNCIONAMIENTO, VERIFICACIÓN DEL PROCEDIMIENTO DE PAGOS Y REVISIÓN DE CARPETAS Y DOCUMENTOS DE PAGO ALLEGADAS AL DESPACHO PARA RESPECTIVA FIRMA DEL ALCALDE LOCAL | I29: Inversión | L29: =IF(ISERROR(VLOOKUP(K29,#REF!,2,FALSE))," ",VLOOKUP(K29,#REF!,2,FALSE)) ->  | M29: =IF(ISERROR(VLOOKUP(K29,#REF!,3,FALSE))," ",VLOOKUP(K29,#REF!,3,FALSE)) ->  | O29: 1 | P29: 787xxx31 | Q29: OSCAR JOSE SUAREZ PEÑA | R29: Persona Natural | V29: N/A | W29: 37100000 | X29: 0 | Y29: 1 | Z29: 18550000 | AA29: 55650000 | AB29: 55650000 | AC29: 2022-01-20 | AD29: 2022-01-24 | AE29: 2022-12-08 | AF29: 7 MESES | AG29: 1 | AH29: 105 | AQ29: Terminado | AR29: 1
A30: 17 | B30: 2022 | C30: FDLF-CD-017-2022 | D30: https://community.secop.gov.co/Public/Tendering/OpportunityDetail/Index?noticeUID=CO1.NTC.2601173&isFromPublicArea=True&isModal=False | E30: Contratos de prestación de servicios profesionales y de apoyo a la gestión | F30: Contratación directa | G30: Prestación de servicios profesionales y de apoyo a la gestión, o para la ejecución de trabajos artísticos que sólo puedan encomendarse a determinadas personas naturales | H30: Apoyar al Alcalde Local en la formulación, seguimiento e implementación de la estrategia local para la terminación jurídica o inactivación de las actuaciones administrativas que cursan en la Alcaldía Local. | I30: Inversión | L30: =IF(ISERROR(VLOOKUP(K30,#REF!,2,FALSE))," ",VLOOKUP(K30,#REF!,2,FALSE)) ->  | M30: =IF(ISERROR(VLOOKUP(K30,#REF!,3,FALSE))," ",VLOOKUP(K30,#REF!,3,FALSE)) ->  | O30: 1 | P30: 102xxx64 | Q30: JORGE ANDRES ANGARITA PARDO | R30: Persona Natural | V30: N/A | W30: 77583000 | X30: 0 | Y30: 1 | Z30: 6347700 | AA30: 83930700 | AB30: 72175700 | AC30: 2022-01-19 | AD30: 2022-01-24 | AE30: 2023-01-20 | AF30: 11 MESES | AG30: 1 | AH30: 27 | AQ30: Terminado | AR30: 0.8599439776
A31: 18 | B31: 2022 | C31: FDLF-CD-018-2022 | D31: https://community.secop.gov.co/Public/Tendering/OpportunityDetail/Index?noticeUID=CO1.NTC.2643769&isFromPublicArea=True&isModal=False | E31: Contratos de prestación de servicios profesionales y de apoyo a la gestión | F31: Contratación directa | G31: Prestación de servicios profesionales y de apoyo a la gestión, o para la ejecución de trabajos artísticos que sólo puedan encomendarse a determinadas personas naturales | H31: PRESTAR SUS SERVICIOS PROFESIONALES PARA LA GESTIÓN EN LA ALCALDÍA LOCAL, EN EL APOYO DE LA FORMULACIÓN, PLANEACIÓN, PRESENTACIÓN Y SEGUIMIENTO DE PROYECTO DE LA ALCALDÍA LOCAL DE FONTIBÓN | I31: Inversión | L31: =IF(ISERROR(VLOOKUP(K31,#REF!,2,FALSE))," ",VLOOKUP(K31,#REF!,2,FALSE)) ->  | M31: =IF(ISERROR(VLOOKUP(K31,#REF!,3,FALSE))," ",VLOOKUP(K31,#REF!,3,FALSE)) ->  | O31: 1 | P31: 103xxx06 | Q31: JAISSON HERNEY PALACIOS GOMEZ | R31: Persona Natural | V31: N/A | W31: 52800000 | X31: 0 | Y31: 1 | Z31: 4800000 | AA31: 57600000 | AB31: 48800000 | AC31: 2022-01-25 | AD31: 2022-01-26 | AE31: 2023-01-25 | AF31: 11 MESES | AG31: 1 | AH31: 30 | AQ31: Terminado | AR31: 0.8472222222
A32: 19 | B32: 2022 | C32: FDLF-CD-019-2022 | D32: https://community.secop.gov.co/Public/Tendering/OpportunityDetail/Index?noticeUID=CO1.NTC.2603019&isFromPublicArea=True&isModal=False | E32: Contratos de prestación de servicios profesionales y de apoyo a la gestión | F32: Contratación directa | G32: Prestación de servicios profesionales y de apoyo a la gestión, o para la ejecución de trabajos artísticos que sólo puedan encomendarse a determinadas personas naturales | H32: PRESTAR SUS SERVICIOS PROFESIONALES , APOYANDO LA FORMULACIÓN PROYECTOS Y ACOMPAÑANDO EL DESARROLLO DE LOS PROCESOS ADMINISTRATIVOS REQUERIDOS PARA EL CUMPLIMIENTO DE LOS PROYECTOS DE FUNCIONAMIENTO E INVERSIÓN DE LA ALCALDÍA LOCAL DE FONTIBÓN | I32: Inversión | L32: =IF(ISERROR(VLOOKUP(K32,#REF!,2,FALSE))," ",VLOOKUP(K32,#REF!,2,FALSE)) ->  | M32: =IF(ISERROR(VLOOKUP(K32,#REF!,3,FALSE))," ",VLOOKUP(K32,#REF!,3,FALSE)) ->  | O32: 1 | P32: 101xxx13 | Q32: JEISSON ANDRES ORTIZ HERNANDEZ | R32: Persona Natural | V32: N/A | W32: 38500000 | X32: -17783334 | AA32: 20716666 | AB32: 20716666 | AC32: 2022-01-19 | AD32: 2022-01-24 | AE32: 2022-05-16 | AF32: 7 MESES | AQ32: Terminado | AR32: 1
A33: 20 | B33: 2022 | C33: FDLF-CD-020-2022 | D33: https://community.secop.gov.co/Public/Tendering/OpportunityDetail/Index?noticeUID=CO1.NTC.2603015&isFromPublicArea=True&isModal=False | E33: Contratos de prestación de servicios profesionales y de apoyo a la gestión | F33: Contratación directa | G33: Prestación de servicios profesionales y de apoyo a la gestión, o para la ejecución de trabajos artísticos que sólo puedan encomendarse a determinadas personas naturales | H33: PRESTAR SUS SERVICIOS PROFESIONALES, APOYANDO LA FORMULACIÓN PROYECTOS Y ACOMPAÑANDO EL DESARROLLO DE LOS PROCESOS ADMINISTRATIVOS REQUERIDOS PARA EL CUMPLIMIENTO DE LOS PROYECTOS DE FUNCIONAMIENTO E INVERSIÓN DE LA ALCALDÍA LOCAL DE FONTIBÓN. | I33: Inversión | L33: =IF(ISERROR(VLOOKUP(K33,#REF!,2,FALSE))," ",VLOOKUP(K33,#REF!,2,FALSE)) ->  | M33: =IF(ISERROR(VLOOKUP(K33,#REF!,3,FALSE))," ",VLOOKUP(K33,#REF!,3,FALSE)) ->  | O33: 1 | P33: 603xxx84 | Q33: MARTHA LUCIA VEGA RAMIREZ | R33: Persona Natural | V33: N/A | W33: 38500000 | X33: 0 | Y33: 1 | Z33: 19250000 | AA33: 57750000 | AB33: 56283333 | AC33: 2022-01-19 | AD33: 2022-01-24 | AE33: 2022-12-08 | AF33: 7 MESES | AG33: 1 | AH33: 105 | AQ33: Terminado | AR33: 0.9746031688
A34: 21 | B34: 2022 | C34: FDLF-CD-021-2022 | D34: https://community.secop.gov.co/Public/Tendering/OpportunityDetail/Index?noticeUID=CO1.NTC.2602681&isFromPublicArea=True&isModal=False | E34: Contratos de prestación de servicios profesionales y de apoyo a la gestión | F34: Contratación directa | G34: Prestación de servicios profesionales y de apoyo a la gestión, o para la ejecución de trabajos artísticos que sólo puedan encomendarse a determinadas personas naturales | H34: PRESTAR SERVICIOS PROFESIONALES ESPECIALIZADOS PARA APOYAR LA GESTIÓN DE LOS ASUNTOS RELACIONADOS CON EL DESARROLLO DE LOS PROCESOS DE MALLA VIAL, ESPACIO PÚBLICO, INFRAESTRUCTURA DE OBRAS DE INGENIERÍA O ARQUITECTURA DE LA ALCALDIA. | I34: Inversión | L34: =IF(ISERROR(VLOOKUP(K34,#REF!,2,FALSE))," ",VLOOKUP(K34,#REF!,2,FALSE)) ->  | M34: =IF(ISERROR(VLOOKUP(K34,#REF!,3,FALSE))," ",VLOOKUP(K34,#REF!,3,FALSE)) ->  | O34: 1 | P34: 101xxx40 | Q34: FRANK JAMIR CUADROS GUATAQUIRA | R34: Persona Natural | V34: N/A | W34: 93500000 | X34: 0 | Y34: 1 | Z34: 14166666 | AA34: 107666666 | AB34: 88400000 | AC34: 2022-01-18 | AD34: 2022-01-19 | AE34: 2023-02-08 | AF34: 11 MESES | AG34: 1 | AH34: 50 | AQ34: Terminado | AR34: 0.8210526367
A35: 22 | B35: 2022 | C35: FDLF-CD-022-2022 | D35: https://community.secop.gov.co/Public/Tendering/OpportunityDetail/Index?noticeUID=CO1.NTC.2628700&isFromPublicArea=True&isModal=False | E35: Contratos de prestación de servicios profesionales y de apoyo a la gestión | F35: Contratación directa | G35: Prestación de servicios profesionales y de apoyo a la gestión, o para la ejecución de trabajos artísticos que sólo puedan encomendarse a determinadas personas naturales | H35: PRESTAR SERVICIOS PROFESIONALES ESPECIALIZADOS AL FONDO DE DESARROLLO LOCAL DE FONTIBÓN PARA APOYAR AL GRUPO ENCARGADO DE ADELANTAR LAS ACTUACIONES Y GESTIONES INHERENTES A LA DEPURACIÓN DE OBLIGACIONES POR PAGAR Y LA LIQUIDACIÓN Y PAGO DE LOS CONTRATOS SUSCRITOS CON RECURSOS DEL FDLF | I35: Inversión | L35: =IF(ISERROR(VLOOKUP(K35,#REF!,2,FALSE))," ",VLOOKUP(K35,#REF!,2,FALSE)) ->  | M35: =IF(ISERROR(VLOOKUP(K35,#REF!,3,FALSE))," ",VLOOKUP(K35,#REF!,3,FALSE)) ->  | O35: 1 | P35: 102xxx77 | Q35: MARIA ANGELICA GARZON VERA | R35: Persona Natural | V35: N/A | W35: 82500000 | X35: 0 | AA35: 82500000 | AB35: 76750000 | AC35: 2022-01-20 | AD35: 2022-01-24 | AE35: 2022-12-23 | AF35: 11 MESES | AI35: 1013594413 | AJ35: JEISSON ANDRES ORTIZ HERNANDEZ | AK35: 2022-05-17 | AQ35: Terminado | AR35: 0.9303030303
A36: 23 | B36: 2022 | C36: FDLF-CD-023-2022 | D36: https://community.secop.gov.co/Public/Tendering/OpportunityDetail/Index?noticeUID=CO1.NTC.2603027&isFromPublicArea=True&isModal=False | E36: Contratos de prestación de servicios profesionales y de apoyo a la gestión | F36: Contratación directa | G36: Prestación de servicios profesionales y de apoyo a la gestión, o para la ejecución de trabajos artísticos que sólo puedan encomendarse a determinadas personas naturales | H36: PRESTAR SERVICIOS PROFESIONALES ESPECIALIZADOS PARA APOYAR AL DESPACHO DEL ALCALDE LOCAL EN EL ACOMPAÑAMIENTO A ACTIVIDADES TANTO ADMINISTRATIVAS COMO EN CAMPO DE MANERA TRANSVERSAL CON EQUIPOS DE TRABAJO INTERNO Y COMUNIDAD DE LA LOCALIDAD DE FONTIBÓN | I36: Inversión | L36: =IF(ISERROR(VLOOKUP(K36,#REF!,2,FALSE))," ",VLOOKUP(K36,#REF!,2,FALSE)) ->  | M36: =IF(ISERROR(VLOOKUP(K36,#REF!,3,FALSE))," ",VLOOKUP(K36,#REF!,3,FALSE)) ->  | O36: 1 | P36: 101xxx80 | Q36: LINA MARCELA FLOREZ CARDENAS | R36: Persona Natural | V36: N/A | W36: 97900000 | X36: 0 | Y36: 1 | Z36: 9790000 | AA36: 107690000 | AB36: 89890000 | AC36: 2022-01-25 | AD36: 2022-01-28 | AE36: 2023-01-30 | AF36: 11 MESES | AG36: 1 | AH36: 33 | AI36: 1019062924 | AJ36: DANIELA PREZIOSI RIVERO | AQ36: Terminado | AR36: 0.8347107438
A37: 24 | B37: 2022 | C37: FDLF-CD-024-2022 | D37: https://community.secop.gov.co/Public/Tendering/OpportunityDetail/Index?noticeUID=CO1.NTC.2595532&isFromPublicArea=True&isModal=False | E37: Contratos de prestación de servicios profesionales y de apoyo a la gestión | F37: Contratación directa | G37: Prestación de servicios profesionales y de apoyo a la gestión, o para la ejecución de trabajos artísticos que sólo puedan encomendarse a determinadas personas naturales | H37: Prestar servicios de apoyo técnico de apoyo y asistencia administrativa al Fondo de Desarrollo Local , para fortalecer las etapas contractuales de acuerdo con el plan anual de adquisiciones de la Alcaldía Local de Fontibón. | I37: Inversión | L37: =IF(ISERROR(VLOOKUP(K37,#REF!,2,FALSE))," ",VLOOKUP(K37,#REF!,2,FALSE)) ->  | M37: =IF(ISERROR(VLOOKUP(K37,#REF!,3,FALSE))," ",VLOOKUP(K37,#REF!,3,FALSE)) ->  | O37: 1 | P37: 101xxx70 | Q37: LEIDY STEPHANIE ESTRADA VERA | R37: Persona Natural | V37: N/A | W37: 39600000 | X37: -13214200 | AA37: 26385800 | AB37: 26385800 | AC37: 2022-01-19 | AD37: 2022-01-21 | AE37: 2022-08-23 | AF37: 11 MESES | AQ37: Terminado | AR37: 1
A38: 25 | B38: 2022 | C38: FDLF-CD-025-2022 | D38: https://community.secop.gov.co/Public/Tendering/OpportunityDetail/Index?noticeUID=CO1.NTC.2686867&isFromPublicArea=True&isModal=False | E38: Contratos de prestación de servicios profesionales y de apoyo a la gestión | F38: Contratación directa | G38: Prestación de servicios profesionales y de apoyo a la gestión, o para la ejecución de trabajos artísticos que sólo puedan encomendarse a determinadas personas naturales | H38: PRESTAR SERVICIOS PROFESIONALES PARA APOYAR A LA ALCALDÍA LOCAL EN LA FORMULACIÓN, PLANEACIÓN, PRESENTACIÓN Y SEGUIMIENTO DE LOS PROYECTOS DE INFRAESTRUCTURA DE LA ALCALDÍA | I38: Inversión | L38: =IF(ISERROR(VLOOKUP(K38,#REF!,2,FALSE))," ",VLOOKUP(K38,#REF!,2,FALSE)) ->  | M38: =IF(ISERROR(VLOOKUP(K38,#REF!,3,FALSE))," ",VLOOKUP(K38,#REF!,3,FALSE)) ->  | O38: 1 | P38: 104xxx87 | Q38: MIGUEL ANDRES BEJARANO ALFONSO | R38: Persona Natural | V38: N/A | W38: 73700000 | X38: 0 | Y38: 1 | Z38: 11166666 | AA38: 84866666 | AB38: 67893333 | AC38: 2022-01-25 | AD38: 2022-01-27 | AE38: 2023-02-15 | AF38: 11 MESES | AG38: 1 | AH38: 50 | AQ38: Terminado | AR38: 0.8000000024
A39: 26 | B39: 2022 | C39: FDLF-CD-026-2022 | D39: https://community.secop.gov.co/Public/Tendering/OpportunityDetail/Index?noticeUID=CO1.NTC.2640786&isFromPublicArea=True&isModal=False | E39: Contratos de prestación de servicios profesionales y de apoyo a la gestión | F39: Contratación directa | G39: Prestación de servicios profesionales y de apoyo a la gestión, o para la ejecución de trabajos artísticos que sólo puedan encomendarse a determinadas personas naturales | H39: PRESTAR SERVICIOS PROFESIONALES PARA APOYAR LAS ACTIVIDADES DE REACTIVACIÓN ECONÓMICA DESARROLLADAS POR LA ALCALDÍA LOCAL DE FONTIBON | I39: Inversión | L39: =IF(ISERROR(VLOOKUP(K39,#REF!,2,FALSE))," ",VLOOKUP(K39,#REF!,2,FALSE)) ->  | M39: =IF(ISERROR(VLOOKUP(K39,#REF!,3,FALSE))," ",VLOOKUP(K39,#REF!,3,FALSE)) ->  | O39: 1 | P39: 800xxx60 | Q39: JHON JAIRO GONZALEZ ARBOLEDA | R39: Persona Natural | V39: N/A | W39: 55000000 | X39: 0 | Y39: 1 | Z39: 7833333 | AA39: 62833333 | AB39: 50833333 | AC39: 2022-01-24 | AD39: 2022-01-26 | AE39: 2023-02-12 | AF39: 11 MESES | AG39: 1 | AH39: 49 | AI39: 52993826 | AJ39: MARCELA TRINIDAD RODRIGUEZ URIBE | AQ39: Terminado | AR39: 0.8090185666
A40: 27 | B40: 2022 | C40: FDLF-CD-027-2022 | D40: https://community.secop.gov.co/Public/Tendering/OpportunityDetail/Index?noticeUID=CO1.NTC.2631744&isFromPublicArea=True&isModal=False | E40: Contratos de prestación de servicios profesionales y de apoyo a la gestión | F40: Contratación directa | G40: Prestación de servicios profesionales y de apoyo a la gestión, o para la ejecución de trabajos artísticos que sólo puedan encomendarse a determinadas personas naturales | H40: PRESTAR LOS SERVICIOS DE MOTORIZADO PARA APOYAR LAS LABORES DE ENTREGA Y RECIBO DE LAS COMUNICACIONES EMITIDAS O RECIBIDAS POR LA ALCALDÍA LOCAL DE FONTIBÓN | I40: Inversión | L40: =IF(ISERROR(VLOOKUP(K40,#REF!,2,FALSE))," ",VLOOKUP(K40,#REF!,2,FALSE)) ->  | M40: =IF(ISERROR(VLOOKUP(K40,#REF!,3,FALSE))," ",VLOOKUP(K40,#REF!,3,FALSE)) ->  | O40: 1 | P40: 860xxx84 | Q40: JOSE OCTAVIO CRUZ NINCOR | R40: Persona Natural | V40: N/A | W40: 17500000 | X40: 0 | AA40: 17500000 | AB40: 17500000 | AC40: 2022-01-21 | AD40: 2022-01-27 | AE40: 2022-08-26 | AF40: 7 MESES | AQ40: Terminado | AR40: 1
A41: 28 | B41: 2022 | C41: FDLF-CD-028-2022 | D41: https://community.secop.gov.co/Public/Tendering/OpportunityDetail/Index?noticeUID=CO1.NTC.2632123&isFromPublicArea=True&isModal=False | E41: Contratos de prestación de servicios profesionales y de apoyo a la gestión | F41: Contratación directa | G41: Prestación de servicios profesionales y de apoyo a la gestión, o para la ejecución de trabajos artísticos que sólo puedan encomendarse a determinadas personas naturales | H41: PRESTAR LOS SERVICIOS DE MOTORIZADO PARA APOYAR LAS LABORES DE ENTREGA Y RECIBO DE LAS COMUNICACIONES EMITIDAS O RECIBIDAS POR LA ALCALDÍA LOCAL DE FONTIBÓN | I41: Inversión | L41: =IF(ISERROR(VLOOKUP(K41,#REF!,2,FALSE))," ",VLOOKUP(K41,#REF!,2,FALSE)) ->  | M41: =IF(ISERROR(VLOOKUP(K41,#REF!,3,FALSE))," ",VLOOKUP(K41,#REF!,3,FALSE)) ->  | O41: 1 | P41: 795xxx48 | Q41: SABAS CRUZ ORTIZ | R41: Persona Natural | V41: N/A | W41: 17500000 | X41: 0 | Y41: 1 | Z41: 8750000 | AA41: 26250000 | AB41: 25000000 | AC41: 2022-01-21 | AD41: 2022-02-01 | AE41: 2022-12-15 | AF41: 7 MESES | AG41: 1 | AH41: 105 | AQ41: Terminado | AR41: 0.9523809524
A42: 29 | B42: 2022 | C42: FDLF-CD-029-2022 | D42: https://community.secop.gov.co/Public/Tendering/OpportunityDetail/Index?noticeUID=CO1.NTC.2625660&isFromPublicArea=True&isModal=False | E42: Contratos de prestación de servicios profesionales y de apoyo a la gestión | F42: Contratación directa | G42: Prestación de servicios profesionales y de apoyo a la gestión, o para la ejecución de trabajos artísticos que sólo puedan encomendarse a determinadas personas naturales | H42: APOYAR JURÍDICAMENTE LA EJECUCIÓN DE LAS ACCIONES REQUERIDAS PARA LA DEPURACIÓN DE LAS ACTUACIONES ADMINISTRATIVAS QUE CURSAN EN LA ALCALDÍA LOCAL | I42: Inversión | L42: =IF(ISERROR(VLOOKUP(K42,#REF!,2,FALSE))," ",VLOOKUP(K42,#REF!,2,FALSE)) ->  | M42: =IF(ISERROR(VLOOKUP(K42,#REF!,3,FALSE))," ",VLOOKUP(K42,#REF!,3,FALSE)) ->  | O42: 1 | P42: 103xxx68 | Q42: NATALIA ALEJANDRA SEDANO GARZON | R42: Persona Natural | V42: N/A | W42: 35000000 | X42: 0 | Y42: 1 | Z42: 17500000 | AA42: 52500000 | AB42: 39996999 | AC42: 2022-01-25 | AD42: 2022-02-01 | AE42: 2022-12-30 | AF42: 7 MESES | AG42: 1 | AH42: 105 | AI42: 1106895646 | AJ42: JENNYFER ANDREA BELTRAN SUAREZ | AK42: 2022-02-17 | AM42: 1016074802 | AN42: NATALIA ANDREA SERRATO CRUZ | AO42: 2022-02-17 | AQ42: Terminado | AR42: 0.7618476
A43: 30 | B43: 2022 | C43: FDLF-CD-030-2022 | D43: https://community.secop.gov.co/Public/Tendering/OpportunityDetail/Index?noticeUID=CO1.NTC.2626889&isFromPublicArea=True&isModal=False | E43: Contratos de prestación de servicios profesionales y de apoyo a la gestión | F43: Contratación directa | G43: Prestación de servicios profesionales y de apoyo a la gestión, o para la ejecución de trabajos artísticos que sólo puedan encomendarse a determinadas personas naturales | H43: APOYAR JURÍDICAMENTE LA EJECUCIÓN DE LAS ACCIONES REQUERIDAS PARA LA DEPURACIÓN DE LAS ACTUACIONES ADMINISTRATIVAS QUE CURSAN EN LA ALCALDÍA LOCAL | I43: Inversión | L43: =IF(ISERROR(VLOOKUP(K43,#REF!,2,FALSE))," ",VLOOKUP(K43,#REF!,2,FALSE)) ->  | M43: =IF(ISERROR(VLOOKUP(K43,#REF!,3,FALSE))," ",VLOOKUP(K43,#REF!,3,FALSE)) ->  | O43: 1 | P43: 110xxx93 | Q43: ANGELICA MARIA MUJICA OSPINA | R43: Persona Natural | V43: N/A | W43: 35000000 | X43: 0 | AA43: 35000000 | AB43: 35000000 | AC43: 2022-01-20 | AD43: 2022-02-07 | AE43: 2022-09-06 | AF43: 7 MESES | AQ43: Terminado | AR43: 1
A44: 31 | B44: 2022 | C44: FDLF-CD-031-2022 | D44: https://community.secop.gov.co/Public/Tendering/OpportunityDetail/Index?noticeUID=CO1.NTC.2627188&isFromPublicArea=True&isModal=False | E44: Contratos de prestación de servicios profesionales y de apoyo a la gestión | F44: Contratación directa | G44: Prestación de servicios profesionales y de apoyo a la gestión, o para la ejecución de trabajos artísticos que sólo puedan encomendarse a determinadas personas naturales | H44: APOYAR JURÍDICAMENTE LA EJECUCIÓN DE LAS ACCIONES REQUERIDAS PARA LA DEPURACIÓN DE LAS ACTUACIONES ADMINISTRATIVAS QUE CURSAN EN LA ALCALDÍA LOCAL | I44: Inversión | L44: =IF(ISERROR(VLOOKUP(K44,#REF!,2,FALSE))," ",VLOOKUP(K44,#REF!,2,FALSE)) ->  | M44: =IF(ISERROR(VLOOKUP(K44,#REF!,3,FALSE))," ",VLOOKUP(K44,#REF!,3,FALSE)) ->  | O44: 1 | P44: 102xxx89 | Q44: MARIA ALEJANDRA QUINTERO MARTINEZ | R44: Persona Natural | V44: N/A | W44: 35000000 | X44: 0 | Y44: 1 | Z44: 17500000 | AA44: 52500000 | AB44: 50000000 | AC44: 2022-01-26 | AD44: 2022-02-01 | AE44: 2022-12-15 | AF44: 7 MESES | AG44: 1 | AH44: 105 | AQ44: Terminado | AR44: 0.9523809524
A45: 32 | B45: 2022 | C45: FDLF-CD-032-2022 | D45: https://community.secop.gov.co/Public/Tendering/OpportunityDetail/Index?noticeUID=CO1.NTC.2632189&isFromPublicArea=True&isModal=FalseV | E45: Contratos de prestación de servicios profesionales y de apoyo a la gestión | F45: Contratación directa | G45: Prestación de servicios profesionales y de apoyo a la gestión, o para la ejecución de trabajos artísticos que sólo puedan encomendarse a determinadas personas naturales | H45: APOYAR JURÍDICAMENTE LA EJECUCIÓN DE LAS ACCIONES REQUERIDAS PARA LA DEPURACIÓN DE LAS ACTUACIONES ADMINISTRATIVAS QUE CURSAN EN LA ALCALDÍA LOCAL | I45: Inversión | L45: =IF(ISERROR(VLOOKUP(K45,#REF!,2,FALSE))," ",VLOOKUP(K45,#REF!,2,FALSE)) ->  | M45: =IF(ISERROR(VLOOKUP(K45,#REF!,3,FALSE))," ",VLOOKUP(K45,#REF!,3,FALSE)) ->  | O45: 1 | P45: 80xxx17 | Q45: LUIS ALFONSO CONTRERAS DIAZ | R45: Persona Natural | V45: N/A | W45: 35000000 | X45: 0 | Y45: 1 | Z45: 17500000 | AA45: 52500000 | AB45: 35000000 | AC45: 2022-01-21 | AD45: 2022-02-01 | AE45: 2022-12-15 | AF45: 7 MESES | AG45: 1 | AH45: 105 | AI45: 1022406949 | AJ45: NESTOR OVIDIO ALFONSO GUERRERO | AK45: 2022-04-21 | AQ45: Terminado | AR45: 0.6666666667
A46: 33 | B46: 2022 | C46: FDLF-CD-033-2022 | D46: https://community.secop.gov.co/Public/Tendering/OpportunityDetail/Index?noticeUID=CO1.NTC.2621370&isFromPublicArea=True&isModal=False | E46: Contratos de prestación de servicios profesionales y de apoyo a la gestión | F46: Contratación directa | G46: Prestación de servicios profesionales y de apoyo a la gestión, o para la ejecución de trabajos artísticos que sólo puedan encomendarse a determinadas personas naturales | H46: APOYAR EN LAS TAREAS OPERATIVAS DE CARÁCTER ARCHIVÍSTICO DESARROLLADAS EN LA ALCALDÍA LOCAL PARA GARANTIZAR LA APLICACIÓN CORRECTA DE LOS PROCEDIMIENTOS TÉCNICOS | I46: Inversión | L46: =IF(ISERROR(VLOOKUP(K46,#REF!,2,FALSE))," ",VLOOKUP(K46,#REF!,2,FALSE)) ->  | M46: =IF(ISERROR(VLOOKUP(K46,#REF!,3,FALSE))," ",VLOOKUP(K46,#REF!,3,FALSE)) ->  | O46: 1 | P46: 718xxx73 | Q46: JAIRO ANDRES BARAJAS TOCARRUNCHO | R46: Persona Natural | V46: N/A | W46: 24500000 | X46: 0 | Y46: 1 | Z46: 12250000 | AA46: 36750000 | AB46: 31850000 | AC46: 2022-01-20 | AD46: 2022-01-27 | AE46: 2022-12-11 | AF46: 7 MESES | AG46: 1 | AH46: 105 | AI46: 1012437770 | AJ46: LINA VANESA CUEVAS LOPEZ | AK46: 2022-08-26 | AQ46: Terminado | AR46: 0.8666666667
A47: 34 | B47: 2022 | C47: FDLF-CD-034-2022 | D47: https://community.secop.gov.co/Public/Tendering/OpportunityDetail/Index?noticeUID=CO1.NTC.2640628&isFromPublicArea=True&isModal=False | E47: Contratos de prestación de servicios profesionales y de apoyo a la gestión | F47: Contratación directa | G47: Prestación de servicios profesionales y de apoyo a la gestión, o para la ejecución de trabajos artísticos que sólo puedan encomendarse a determinadas personas naturales | H47: PRESTAR SERVICIOS PROFESIONALES ESPECIALIZADOS PARA APOYAR AL ALCALDE LOCAL EN LA PROMOCIÓN, ACOMPAÑAMIENTO, COORDINACIÓN Y ATENCIÓN DE LAS INSTANCIAS DE COORDINACIÓN INTERINSTITUCIONALES Y LAS INSTANCIAS DE PARTICIPACIÓN LOCALES, ASÍ COMO LOS PROCESOS COMUNITARIOS EN LA LOCALIDAD. | I47: Inversión | L47: =IF(ISERROR(VLOOKUP(K47,#REF!,2,FALSE))," ",VLOOKUP(K47,#REF!,2,FALSE)) ->  | M47: =IF(ISERROR(VLOOKUP(K47,#REF!,3,FALSE))," ",VLOOKUP(K47,#REF!,3,FALSE)) ->  | O47: 1 | P47: 79xxx02 | Q47: ANDRES MAURICIO SARMIENTO MASMELA | R47: Persona Natural | V47: N/A | W47: 93500000 | X47: 0 | AA47: 93500000 | AB47: 0 | AC47: 2022-01-21 | AD47: 2022-01-24 | AE47: 2022-12-23 | AF47: 11 MESES | AQ47: Terminado | AR47: 0
A48: 35 | B48: 2022 | C48: FDLF-CD-035-2022 | D48: https://community.secop.gov.co/Public/Tendering/OpportunityDetail/Index?noticeUID=CO1.NTC.2640565&isFromPublicArea=True&isModal=False | E48: Contratos de prestación de servicios profesionales y de apoyo a la gestión | F48: Contratación directa | G48: Prestación de servicios profesionales y de apoyo a la gestión, o para la ejecución de trabajos artísticos que sólo puedan encomendarse a determinadas personas naturales | H48: PRESTAR SERVICIOS PROFESIONALES ESPECIALIZADOS PARA LA FORMULACIÓN, SEGUIMIENTO Y EVALUACIÓN DE POLÍTICAS, PLANES, PROGRAMAS Y PROYECTOS DE DESARROLLO LOCAL, PARA EL CUMPLIMIENTO DE LAS METAS DEL PLAN DE DESARROLLO LOCAL DE FONTIBÓN. | I48: Inversión | L48: =IF(ISERROR(VLOOKUP(K48,#REF!,2,FALSE))," ",VLOOKUP(K48,#REF!,2,FALSE)) ->  | M48: =IF(ISERROR(VLOOKUP(K48,#REF!,3,FALSE))," ",VLOOKUP(K48,#REF!,3,FALSE)) ->  | O48: 1 | P48: 530xxx42 | Q48: DIANA CAROLINA GIRALDO MAYORGA | R48: Persona Natural | V48: N/A | W48: 80300000 | X48: 0 | Y48: 1 | Z48: 7300000 | AA48: 87600000 | AB48: 74460000 | AC48: 2022-01-24 | AD48: 2022-01-25 | AE48: 2023-01-23 | AF48: 11 MESES | AG48: 1 | AH48: 30 | AQ48: Terminado | AR48: 0.85
A49: 36 | B49: 2022 | C49: FDLF-CD-036-2022 | D49: https://community.secop.gov.co/Public/Tendering/OpportunityDetail/Index?noticeUID=CO1.NTC.2640799&isFromPublicArea=True&isModal=False | E49: Contratos de prestación de servicios profesionales y de apoyo a la gestión | F49: Contratación directa | G49: Prestación de servicios profesionales y de apoyo a la gestión, o para la ejecución de trabajos artísticos que sólo puedan encomendarse a determinadas personas naturales | H49: APOYAR AL ALCALDE LOCAL EN LA PROMOCIÓN, ARTICULACIÓN, ACOMPAÑAMIENTO Y SEGUIMIENTO PARA LA ATENCIÓN Y PROTECCIÓN DE LOS ANIMALES DOMÉSTICOS Y SILVESTRES DE LA LOCALIDAD | I49: Inversión | L49: =IF(ISERROR(VLOOKUP(K49,#REF!,2,FALSE))," ",VLOOKUP(K49,#REF!,2,FALSE)) ->  | M49: =IF(ISERROR(VLOOKUP(K49,#REF!,3,FALSE))," ",VLOOKUP(K49,#REF!,3,FALSE)) ->  | O49: 1 | P49: 102xxx55 | Q49: OSCAR ALEJANDRO GONZALEZ GOMEZ | R49: Persona Natural | V49: N/A | W49: 60500000 | X49: 0 | AA49: 60500000 | AB49: 56283333 | AC49: 2022-01-21 | AD49: 2022-01-24 | AE49: 2022-12-23 | AF49: 11 MESES | AQ49: Terminado | AR49: 0.9303030248
A50: 37 | B50: 2022 | C50: FDLF-CD-037-2022 | D50: https://community.secop.gov.co/Public/Tendering/OpportunityDetail/Index?noticeUID=CO1.NTC.2633938&isFromPublicArea=True&isModal=False | E50: Contratos de prestación de servicios profesionales y de apoyo a la gestión | F50: Contratación directa | G50: Prestación de servicios profesionales y de apoyo a la gestión, o para la ejecución de trabajos artísticos que sólo puedan encomendarse a determinadas personas naturales | H50: PRESTAR LOS SERVICIOS PROFESIONALES A LA ALCALDÍA LOCAL DE FONTIBÓN, PARA LA FORMULACIÓN, EVALUACIÓN, SEGUIMIENTO Y APOYO A LA SUPERVISIÓN DEL PROYECTO DE VÍCTIMAS ASÍ COMO EL ACOMPAÑAMIENTO A LOS PROCESOS QUE SE ADELANTEN PARA LA POBLACIÓN DE VÍCTIMAS QUE HABITA EN LA LOCALIDAD | I50: Inversión | L50: =IF(ISERROR(VLOOKUP(K50,#REF!,2,FALSE))," ",VLOOKUP(K50,#REF!,2,FALSE)) ->  | M50: =IF(ISERROR(VLOOKUP(K50,#REF!,3,FALSE))," ",VLOOKUP(K50,#REF!,3,FALSE)) ->  | O50: 1 | P50: 101xxx48 | Q50: DIANA MARCELA TIBATA AVELLANEDA | R50: Persona Natural | V50: N/A | W50: 66000000 | X50: 0 | Y50: 1 | Z50: 3000000 | AA50: 69000000 | AB50: 54000000 | AC50: 2022-01-27 | AD50: 2022-02-01 | AE50: 2022-01-15 | AF50: 11 MESES | AG50: 1 | AH50: 15 | AQ50: Terminado | AR50: 0.7826086957
A51: 38 | B51: 2022 | C51: FDLF-CD-038-2022 | D51: https://community.secop.gov.co/Public/Tendering/OpportunityDetail/Index?noticeUID=CO1.NTC.2731813&isFromPublicArea=True&isModal=False | E51: Contratos de prestación de servicios profesionales y de apoyo a la gestión | F51: Contratación directa | G51: Prestación de servicios profesionales y de apoyo a la gestión, o para la ejecución de trabajos artísticos que sólo puedan encomendarse a determinadas personas naturales | H51: PRESTAR LOS SERVICIOS PROFESIONALES PARA LA OPERACIÓN, SEGUIMIENTO Y CUMPLIMIENTO DE LOS PROCESOS Y PROCEDIMIENTOS DEL SERVICIO APOYO ECONÓMICO TIPO C, REQUERIDOS PARA EL OPORTUNO Y ADECUADO REGISTRO, CRUCE Y REPORTE DE LOS DATOS EN EL SISTEMA MISIONAL SIRBE, QUE CONTRIBUYAN A LA GARANTÍA DE LOS DERECHOS DE LA POBLACIÓN MAYOR EN EL MARCO DE LA POLÍTICA PÚBLICA SOCIAL PARA EL ENVEJECIMIENTO Y LA VEJEZ EN EL DISTRITO CAPITAL A CARGO DE LA ALCALDÍA LOCAL | I51: Inversión | L51: =IF(ISERROR(VLOOKUP(K51,#REF!,2,FALSE))," ",VLOOKUP(K51,#REF!,2,FALSE)) ->  | M51: =IF(ISERROR(VLOOKUP(K51,#REF!,3,FALSE))," ",VLOOKUP(K51,#REF!,3,FALSE)) ->  | O51: 1 | P51: 527xxx44 | Q51: DUDLEY JOHANA PALACIOS GARCIA | R51: Persona Natural | V51: N/A | W51: 35000000 | X51: 0 | Y51: 1 | Z51: 17500000 | AA51: 52500000 | AB51: 50000000 | AC51: 2022-01-27 | AD51: 2022-02-01 | AE51: 2022-12-15 | AF51: 7 MESES | AG51: 1 | AH51: 105 | AQ51: Terminado | AR51: 0.9523809524
A52: 39 | B52: 2022 | C52: FDLF-CD-039-2022 | D52: https://community.secop.gov.co/Public/Tendering/OpportunityDetail/Index?noticeUID=CO1.NTC.2642250&isFromPublicArea=True&isModal=False | E52: Contratos de prestación de servicios profesionales y de apoyo a la gestión | F52: Contratación directa | G52: Prestación de servicios profesionales y de apoyo a la gestión, o para la ejecución de trabajos artísticos que sólo puedan encomendarse a determinadas personas naturales | H52: PRESTAR SERVICIOS DE APOYO TÉCNICO ADMINISTRATIVO Y OPERATIVO DEL DESPACHO DE LA ALCALDÍA LOCAL DE FONTIBÓN | I52: Inversión | L52: =IF(ISERROR(VLOOKUP(K52,#REF!,2,FALSE))," ",VLOOKUP(K52,#REF!,2,FALSE)) ->  | M52: =IF(ISERROR(VLOOKUP(K52,#REF!,3,FALSE))," ",VLOOKUP(K52,#REF!,3,FALSE)) ->  | O52: 1 | P52: 529xxx47 | Q52: ANGELICA MARIA SALAZAR BAYONA | R52: Persona Natural | V52: N/A | W52: 27300000 | X52: 0 | Y52: 1 | Z52: 13650000 | AA52: 40950000 | AB52: 40950000 | AC52: 2022-01-21 | AD52: 2022-01-25 | AE52: 2022-12-09 | AF52: 7 MESES | AG52: 1 | AH52: 105 | AQ52: Terminado | AR52: 1
A53: 40 | B53: 2022 | C53: FDLF-CD-040-2022 | D53: https://community.secop.gov.co/Public/Tendering/OpportunityDetail/Index?noticeUID=CO1.NTC.2657351&isFromPublicArea=True&isModal=False | E53: Contratos de prestación de servicios profesionales y de apoyo a la gestión | F53: Contratación directa | G53: Prestación de servicios profesionales y de apoyo a la gestión, o para la ejecución de trabajos artísticos que sólo puedan encomendarse a determinadas personas naturales | H53: PRESTAR SERVICIOS PROFESIONALES PARA REALIZAR EL ACOMPAÑAMIENTO OPERATIVO Y COMUNITARIO A LOS DIFERENTES SECTORES POBLACIONALES Y SU INTERLOCUCIÓN CON LA JUNTA ADMINISTRADORA LOCAL DE FONTIBÓN | I53: Inversión | L53: =IF(ISERROR(VLOOKUP(K53,#REF!,2,FALSE))," ",VLOOKUP(K53,#REF!,2,FALSE)) ->  | M53: =IF(ISERROR(VLOOKUP(K53,#REF!,3,FALSE))," ",VLOOKUP(K53,#REF!,3,FALSE)) ->  | O53: 1 | P53: 112xxx96 | Q53: HENRY MAURICIO MENDOZA CRUZ | R53: Persona Natural | V53: N/A | W53: 60500000 | X53: 0 | Y53: 1 | Z53: 5500000 | AA53: 66000000 | AB53: 56100000 | AC53: 2022-01-24 | AD53: 2022-01-25 | AE53: 2023-01-24 | AF53: 11 MESES | AG53: 1 | AH53: 30 | AQ53: Terminado | AR53: 0.85
A54: 41 | B54: 2022 | C54: FDLF-CD-041-2022 | D54: https://community.secop.gov.co/Public/Tendering/OpportunityDetail/Index?noticeUID=CO1.NTC.2640776&isFromPublicArea=True&isModal=False | E54: Contratos de prestación de servicios profesionales y de apoyo a la gestión | F54: Contratación directa | G54: Prestación de servicios profesionales y de apoyo a la gestión, o para la ejecución de trabajos artísticos que sólo puedan encomendarse a determinadas personas naturales | H54: PRESTAR SERVICIOS COMO PROFESIONAL PARA LA FORMULACIÓN, EVALUACIÓN, SEGUIMIENTO Y APOYO A LA SUPERVISIÓN DEL PROYECTO 1762 EN LOS COMPONENTES DE ORIENTACIÓN, ASESORÍA FAMILIAR, POSICIONAMIENTO Y PROMOCIÓN DEL BUEN TRATO | I54: Inversión | L54: =IF(ISERROR(VLOOKUP(K54,#REF!,2,FALSE))," ",VLOOKUP(K54,#REF!,2,FALSE)) ->  | M54: =IF(ISERROR(VLOOKUP(K54,#REF!,3,FALSE))," ",VLOOKUP(K54,#REF!,3,FALSE)) ->  | O54: 1 | P54: 527xxx34 | Q54: ADRIANA MARIA UMBARILA CASTILLO | R54: Persona Natural | V54: N/A | W54: 51700000 | X54: -19113334 | AA54: 32586666 | AB54: 32586666 | AC54: 2022-01-21 | AD54: 2022-01-26 | AE54: 2022-08-23 | AF54: 11 MESES | AQ54: Terminado | AR54: 1
A55: 42 | B55: 2022 | C55: FDLF-CD-042-2022 | D55: https://community.secop.gov.co/Public/Tendering/OpportunityDetail/Index?noticeUID=CO1.NTC.2640764&isFromPublicArea=True&isModal=False | E55: Contratos de prestación de servicios profesionales y de apoyo a la gestión | F55: Contratación directa | G55: Prestación de servicios profesionales y de apoyo a la gestión, o para la ejecución de trabajos artísticos que sólo puedan encomendarse a determinadas personas naturales | H55: PRESTAR SERVICIOS PROFESIONALES PARA APOYAR EL PROYECTO DE PARTICIPACION EN LA PROMOCIÓN, ACOMPAÑAMIENTO Y ATENCIÓN DE LAS INSTANCIAS DE ARTICULACIONES INTERINSTITUCIONALES Y LAS INSTANCIAS DE PARTICIPACIÓN LOCALES, ASÍ COMO LOS PROCESOS COMUNITARIOS EN LA LOCALIDAD | I55: Inversión | L55: =IF(ISERROR(VLOOKUP(K55,#REF!,2,FALSE))," ",VLOOKUP(K55,#REF!,2,FALSE)) ->  | M55: =IF(ISERROR(VLOOKUP(K55,#REF!,3,FALSE))," ",VLOOKUP(K55,#REF!,3,FALSE)) ->  | O55: 1 | P55: 525xxx89 | Q55: BIBIANA BAUTISTA ZABALETA | R55: Persona Natural | V55: N/A | W55: 38500000 | X55: 0 | Y55: 1 | Z55: 17416667 | AA55: 55916667 | AB55: 55000000 | AC55: 2022-01-21 | AD55: 2022-02-01 | AE55: 2022-12-05 | AF55: 7 MESES | AG55: 1 | AH55: 95 | AQ55: Terminado | AR55: 0.9836065515
A56: 43 | B56: 2022 | C56: FDLF-CD-043-2022 | D56: https://community.secop.gov.co/Public/Tendering/OpportunityDetail/Index?noticeUID=CO1.NTC.2714544&isFromPublicArea=True&isModal=False | E56: Contratos de prestación de servicios profesionales y de apoyo a la gestión | F56: Contratación directa | G56: Prestación de servicios profesionales y de apoyo a la gestión, o para la ejecución de trabajos artísticos que sólo puedan encomendarse a determinadas personas naturales | H56: PRESTAR SERVICIOS TÉCNICOS PARA LA OPERACIÓN, SEGUIMIENTO Y CUMPLIMIENTO DE LOS PROCESOS Y PROCEDIMIENTOS DEL SERVICIO SOCIAL APOYO PARA LA SEGURIDAD ECONÓMICA TIPO C, REQUERIDOS PARA EL OPORTUNO Y ADECUADO REGISTRO, CRUCE Y REPORTE DE DATOS EN EL SISTEMA DE INFORMACIÓN Y REGISTRO DE BENEFICIARIOS SIRBE, QUE CONTRIBUYAN A LA GARANTÍA DE LOS DERECHOS DE LA POBLACIÓN MAYOR EN EL MARCO DE LA POLÍTICA PÚBLICA SOCIAL PARA EL ENVEJECIMIENTO Y LA VEJEZ EN EL DISTRITO CAPITAL A CARGO DE LA ALCALDÍA LOCA | I56: Inversión | L56: =IF(ISERROR(VLOOKUP(K56,#REF!,2,FALSE))," ",VLOOKUP(K56,#REF!,2,FALSE)) ->  | M56: =IF(ISERROR(VLOOKUP(K56,#REF!,3,FALSE))," ",VLOOKUP(K56,#REF!,3,FALSE)) ->  | O56: 1 | P56: 52xxx45 | Q56: HELENA MARITZA LOPEZ | R56: Persona Natural | V56: N/A | W56: 25200000 | X56: 0 | Y56: 1 | Z56: 12600000 | AA56: 37800000 | AB56: 36120000 | AC56: 2022-01-26 | AD56: 2022-01-31 | AE56: 2022-12-15 | AF56: 7 MESES | AG56: 1 | AH56: 105 | AQ56: Terminado | AR56: 0.9555555556
A57: 44 | B57: 2022 | C57: FDLF-CD-044-2022 | D57: https://community.secop.gov.co/Public/Tendering/OpportunityDetail/Index?noticeUID=CO1.NTC.2657613&isFromPublicArea=True&isModal=False | E57: Contratos de prestación de servicios profesionales y de apoyo a la gestión | F57: Contratación directa | G57: Prestación de servicios profesionales y de apoyo a la gestión, o para la ejecución de trabajos artísticos que sólo puedan encomendarse a determinadas personas naturales | H57: PRESTAR SUS SERVICIOS DE APOYO TÉCNICOS PARA LA GESTIÓN POLICIVA EN LOS PROCESOS DE LAS DIFERENTES ACTUACIONES ADMINISTRATIVAS EXISTENTES Y LA IMPLEMENTACIÓN DE LOS RESPECTIVOS TRÁMITES DE VERIFICACIÓN, SOPORTE Y ACOMPAÑAMIENTO | I57: Inversión | L57: =IF(ISERROR(VLOOKUP(K57,#REF!,2,FALSE))," ",VLOOKUP(K57,#REF!,2,FALSE)) ->  | M57: =IF(ISERROR(VLOOKUP(K57,#REF!,3,FALSE))," ",VLOOKUP(K57,#REF!,3,FALSE)) ->  | O57: 1 | P57: 796xxx53 | Q57: DIEGO FERNANDO MONCADA MORENO | R57: Persona Natural | V57: N/A | W57: 24500000 | X57: 0 | Y57: 1 | Z57: 12250000 | AA57: 36750000 | AB57: 35000000 | AC57: 2022-01-25 | AD57: 2022-01-31 | AE57: 2022-12-15 | AF57: 7 MESES | AG57: 1 | AH57: 105 | AQ57: Terminado | AR57: 0.9523809524
A58: 45 | B58: 2022 | C58: FDLF-CD-045-2022 | D58: https://community.secop.gov.co/Public/Tendering/OpportunityDetail/Index?noticeUID=CO1.NTC.2644862&isFromPublicArea=True&isModal=False | E58: Contratos de prestación de servicios profesionales y de apoyo a la gestión | F58: Contratación directa | G58: Prestación de servicios profesionales y de apoyo a la gestión, o para la ejecución de trabajos artísticos que sólo puedan encomendarse a determinadas personas naturales | H58: PRESTAR SERVICIOS COMO PROFESIONAL PARA APOYAR A LA ALCALDÍA LOCAL DE FONTIBÓN EN EL DESARROLLO DEL PROYECTO 1762 EN LOS COMPONENTES DE ORIENTACIÓN, ASESORÍA FAMILIAR, POSICIONAMIENTO Y PROMOCIÓN DEL BUEN TRATO | I58: Inversión | L58: =IF(ISERROR(VLOOKUP(K58,#REF!,2,FALSE))," ",VLOOKUP(K58,#REF!,2,FALSE)) ->  | M58: =IF(ISERROR(VLOOKUP(K58,#REF!,3,FALSE))," ",VLOOKUP(K58,#REF!,3,FALSE)) ->  | O58: 1 | P58: 243xxx00 | Q58: MARIA DEL PILAR CHIQUITO TORRES | R58: Persona Natural | V58: N/A | W58: 31640000 | X58: 0 | AA58: 31640000 | AB58: 31640000 | AC58: 2022-01-22 | AD58: 2022-02-01 | AE58: 2022-08-31 | AF58: 7 MESES | AQ58: Terminado | AR58: 1
A59: 46 | B59: 2022 | C59: FDLF-CD-046-2022 | D59: https://community.secop.gov.co/Public/Tendering/OpportunityDetail/Index?noticeUID=CO1.NTC.2687306&isFromPublicArea=True&isModal=False | E59: Contratos de prestación de servicios profesionales y de apoyo a la gestión | F59: Contratación directa | G59: Prestación de servicios profesionales y de apoyo a la gestión, o para la ejecución de trabajos artísticos que sólo puedan encomendarse a determinadas personas naturales | H59: APOYAR JURÍDICAMENTE LA EJECUCIÓN DE LAS ACCIONES REQUERIDAS PARA EL TRÁMITE E IMPULSO PROCESAL DE LAS ACTUACIONES CONTRAVENCIONALES Y/O QUERELLAS QUE CURSEN EN LAS INSPECCIONES DE POLICÍA DE LA LOCALIDAD | I59: Inversión | L59: =IF(ISERROR(VLOOKUP(K59,#REF!,2,FALSE))," ",VLOOKUP(K59,#REF!,2,FALSE)) ->  | M59: =IF(ISERROR(VLOOKUP(K59,#REF!,3,FALSE))," ",VLOOKUP(K59,#REF!,3,FALSE)) ->  | O59: 1 | P59: 333xxx50 | Q59: LUZ MERY PATERNINA MEDINA | R59: Persona Natural | V59: N/A | W59: 35000000 | X59: 0 | Y59: 1 | Z59: 17500000 | AA59: 52500000 | AB59: 50000000 | AC59: 2022-01-26 | AD59: 2022-02-01 | AE59: 2022-12-15 | AF59: 7 MESES | AG59: 1 | AH59: 105 | AQ59: Terminado | AR59: 0.9523809524
A60: 47 | B60: 2022 | C60: FDLF-CD-047-2022 | D60: https://community.secop.gov.co/Public/Tendering/OpportunityDetail/Index?noticeUID=CO1.NTC.2746307&isFromPublicArea=True&isModal=False | E60: Contratos de prestación de servicios profesionales y de apoyo a la gestión | F60: Contratación directa | G60: Prestación de servicios profesionales y de apoyo a la gestión, o para la ejecución de trabajos artísticos que sólo puedan encomendarse a determinadas personas naturales | H60: PRESTAR SERVICIOS DE APOYO TECNICO EN LA ALCALDÍA DE FONTIBÓN, PARA EL DESARROLLO LOS ACUERDOS CIUDADANOS PARA EL ESPACIO PÚBLICO EN EL MARCO DEL PROYECTO DE INVERSIÒN No 1776 | I60: Inversión | L60: =IF(ISERROR(VLOOKUP(K60,#REF!,2,FALSE))," ",VLOOKUP(K60,#REF!,2,FALSE)) ->  | M60: =IF(ISERROR(VLOOKUP(K60,#REF!,3,FALSE))," ",VLOOKUP(K60,#REF!,3,FALSE)) ->  | O60: 1 | P60: 100xxx88 | Q60: LAYNE YESSENIA ACUÑA ESLAVA | R60: Persona Natural | V60: N/A | W60: 30800000 | X60: 0 | Y60: 1 | Z60: 2800000 | AA60: 33600000 | AB60: 28000000 | AC60: 2022-01-27 | AD60: 2022-02-01 | AE60: 2022-02-01 | AF60: 11 MESES | AG60: 1 | AH60: 30 | AQ60: Terminado | AR60: 0.8333333333
A61: 48 | B61: 2022 | C61: FDLF-CD-048-2022 | D61: https://community.secop.gov.co/Public/Tendering/OpportunityDetail/Index?noticeUID=CO1.NTC.2650290&isFromPublicArea=True&isModal=False | E61: Contratos de prestación de servicios profesionales y de apoyo a la gestión | F61: Contratación directa | G61: Prestación de servicios profesionales y de apoyo a la gestión, o para la ejecución de trabajos artísticos que sólo puedan encomendarse a determinadas personas naturales | H61: PRESTAR SERVICIOS DE APOYO COMO AUXILIAR ADMINISTRATIVO Y OPERATIVO EN LA ALCALDÍA DE FONTIBÓN, PARA EL DESARROLLO LOS ACUERDOS CIUDADANOS PARA EL ESPACIO PÚBLICO EN EL MARCO DEL PROYECTO DE INVERSIÒN No 1776 | I61: Inversión | L61: =IF(ISERROR(VLOOKUP(K61,#REF!,2,FALSE))," ",VLOOKUP(K61,#REF!,2,FALSE)) ->  | M61: =IF(ISERROR(VLOOKUP(K61,#REF!,3,FALSE))," ",VLOOKUP(K61,#REF!,3,FALSE)) ->  | O61: 1 | P61: 518xxx41 | Q61: NUBIA RODRIGUEZ | R61: Persona Natural | V61: N/A | W61: 29700000 | X61: 0 | Y61: 1 | Z61: 2700000 | AA61: 32400000 | AB61: 27000000 | AC61: 2022-01-25 | AD61: 2022-02-01 | AE61: 2022-02-01 | AF61: 11 MESES | AG61: 1 | AH61: 30 | AQ61: Terminado | AR61: 0.8333333333
A62: 49 | B62: 2022 | C62: FDLF-CD-049-2022 | D62: https://community.secop.gov.co/Public/Tendering/OpportunityDetail/Index?noticeUID=CO1.NTC.2650461&isFromPublicArea=True&isModal=False | E62: Contratos de prestación de servicios profesionales y de apoyo a la gestión | F62: Contratación directa | G62: Prestación de servicios profesionales y de apoyo a la gestión, o para la ejecución de trabajos artísticos que sólo puedan encomendarse a determinadas personas naturales | H62: PRESTAR SERVICIOS DE APOYO COMO AUXILIAR ADMINISTRATIVO Y OPERATIVO EN LA ALCALDÍA DE FONTIBÓN, PARA EL DESARROLLO LOS ACUERDOS CIUDADANOS PARA EL ESPACIO PÚBLICO EN EL MARCO DEL PROYECTO DE INVERSIÒN No 1776 | I62: Inversión | L62: =IF(ISERROR(VLOOKUP(K62,#REF!,2,FALSE))," ",VLOOKUP(K62,#REF!,2,FALSE)) ->  | M62: =IF(ISERROR(VLOOKUP(K62,#REF!,3,FALSE))," ",VLOOKUP(K62,#REF!,3,FALSE)) ->  | O62: 1 | P62: 911xxx73 | Q62: PEDRO JULIO JIMENEZ CHIA | R62: Persona Natural | V62: N/A | W62: 29700000 | X62: 0 | Y62: 1 | Z62: 2700000 | AA62: 32400000 | AB62: 27000000 | AC62: 2022-01-26 | AD62: 2022-02-01 | AE62: 2022-02-01 | AF62: 11 MESES | AG62: 1 | AH62: 30 | AQ62: Terminado | AR62: 0.8333333333
A63: 50 | B63: 2022 | C63: FDLF-CD-050-2022 | D63: https://community.secop.gov.co/Public/Tendering/OpportunityDetail/Index?noticeUID=CO1.NTC.2648709&isFromPublicArea=True&isModal=False | E63: Contratos de prestación de servicios profesionales y de apoyo a la gestión | F63: Contratación directa | G63: Prestación de servicios profesionales y de apoyo a la gestión, o para la ejecución de trabajos artísticos que sólo puedan encomendarse a determinadas personas naturales | H63: APOYAR LA GESTIÓN DOCUMENTAL DE LA ALCALDÍA LOCAL EN LA IMPLEMENTACIÓN DE LOS PROCESOS DE CLASIFICACIÓN, ORDENACIÓN, SELECCIÓN NATURAL, FOLIACIÓN, IDENTIFICACIÓN, LEVANTAMIENTO DE INVENTARIOS, ALMACENAMIENTO Y APLICACIÓN DE PROTOCOLOS DE ELIMINACIÓN Y TRANSFERENCIAS DOCUMENTALES | I63: Inversión | L63: =IF(ISERROR(VLOOKUP(K63,#REF!,2,FALSE))," ",VLOOKUP(K63,#REF!,2,FALSE)) ->  | M63: =IF(ISERROR(VLOOKUP(K63,#REF!,3,FALSE))," ",VLOOKUP(K63,#REF!,3,FALSE)) ->  | O63: 1 | P63: 801xxx86 | Q63: JOHN FREDY HERRERA RINCON | R63: Persona Natural | V63: N/A | W63: 17500000 | X63: 0 | AA63: 17500000 | AB63: 17500000 | AC63: 2022-01-25 | AD63: 2022-02-01 | AE63: 2022-08-31 | AF63: 7 MESES | AQ63: Terminado | AR63: 1
A64: 51 | B64: 2022 | C64: FDLF-CD-051-2022 | D64: https://community.secop.gov.co/Public/Tendering/OpportunityDetail/Index?noticeUID=CO1.NTC.2650452&isFromPublicArea=True&isModal=False | E64: Contratos de prestación de servicios profesionales y de apoyo a la gestión | F64: Contratación directa | G64: Prestación de servicios profesionales y de apoyo a la gestión, o para la ejecución de trabajos artísticos que sólo puedan encomendarse a determinadas personas naturales | H64: Prestar servicios profesionales para apoyar la formulación, seguimiento y supervisión de los procesos derivados del proyecto de inversión No.1758, en el marco de las necesidades de la alcaldía local de Fontibón. | I64: Inversión | L64: =IF(ISERROR(VLOOKUP(K64,#REF!,2,FALSE))," ",VLOOKUP(K64,#REF!,2,FALSE)) ->  | M64: =IF(ISERROR(VLOOKUP(K64,#REF!,3,FALSE))," ",VLOOKUP(K64,#REF!,3,FALSE)) ->  | O64: 1 | P64: 101xxx03 | Q64: JUANITA GIRALDO SALGADO | R64: Persona Natural | V64: N/A | W64: 31640000 | X64: 0 | AA64: 31640000 | AB64: 4520000 | AC64: 2022-01-26 | AD64: 2022-02-01 | AE64: 2022-08-31 | AF64: 7 MESES | AQ64: Terminado | AR64: 0.1428571429
A65: 52 | B65: 2022 | C65: FDLF-CD-052-2022 | D65: https://community.secop.gov.co/Public/Tendering/OpportunityDetail/Index?noticeUID=CO1.NTC.2682101&isFromPublicArea=True&isModal=False | E65: Contratos de prestación de servicios profesionales y de apoyo a la gestión | F65: Contratación directa | G65: Prestación de servicios profesionales y de apoyo a la gestión, o para la ejecución de trabajos artísticos que sólo puedan encomendarse a determinadas personas naturales | H65: PRESTAR SERVICIOS PROFESIONALES PARA APOYAR LOS PROYECTOS DE INVERSIÓN ORIENTADOS A LOS TEMAS DE EDUCACIÓN SUPERIOR | I65: Inversión | L65: =IF(ISERROR(VLOOKUP(K65,#REF!,2,FALSE))," ",VLOOKUP(K65,#REF!,2,FALSE)) ->  | M65: =IF(ISERROR(VLOOKUP(K65,#REF!,3,FALSE))," ",VLOOKUP(K65,#REF!,3,FALSE)) ->  | O65: 1 | P65: 798xxx96 | Q65: MARLON EDISON GONZALEZ SILVA | R65: Persona Natural | V65: N/A | W65: 35000000 | X65: 0 | Y65: 1 | Z65: 17500000 | AA65: 52500000 | AB65: 50000000 | AC65: 2022-01-26 | AD65: 2022-02-01 | AE65: 2022-12-15 | AF65: 7 MESES | AG65: 1 | AH65: 105 | AQ65: Terminado | AR65: 0.9523809524
A66: 53 | B66: 2022 | C66: FDLF-CD-053-2022 | D66: https://community.secop.gov.co/Public/Tendering/OpportunityDetail/Index?noticeUID=CO1.NTC.2682045&isFromPublicArea=True&isModal=False | E66: Contratos de prestación de servicios profesionales y de apoyo a la gestión | F66: Contratación directa | G66: Prestación de servicios profesionales y de apoyo a la gestión, o para la ejecución de trabajos artísticos que sólo puedan encomendarse a determinadas personas naturales | H66: PRESTAR SERVICIOS PROFESIONALES PARA APOYAR LOS PROYECTOS DE INVERSIÓN ORIENTADOS A LOS TEMAS DE EDUCACIÓN SUPERIOR | I66: Inversión | L66: =IF(ISERROR(VLOOKUP(K66,#REF!,2,FALSE))," ",VLOOKUP(K66,#REF!,2,FALSE)) ->  | M66: =IF(ISERROR(VLOOKUP(K66,#REF!,3,FALSE))," ",VLOOKUP(K66,#REF!,3,FALSE)) ->  | O66: 1 | P66: 808xxx89 | Q66: HOSMAN YESID HUERTAS QUIROGA | R66: Persona Natural | V66: N/A | W66: 42000000 | X66: 0 | AA66: 42000000 | AB66: 42000000 | AC66: 2022-01-26 | AD66: 2022-02-02 | AE66: 2022-09-01 | AF66: 7 MESES | AQ66: Terminado | AR66: 1
A67: 54 | B67: 2022 | C67: FDLF-CD-054-2022 | D67: https://community.secop.gov.co/Public/Tendering/OpportunityDetail/Index?noticeUID=CO1.NTC.2682050&isFromPublicArea=True&isModal=False | E67: Contratos de prestación de servicios profesionales y de apoyo a la gestión | F67: Contratación directa | G67: Prestación de servicios profesionales y de apoyo a la gestión, o para la ejecución de trabajos artísticos que sólo puedan encomendarse a determinadas personas naturales | H67: PRESTAR SERVICIOS COMO PROFESIONAL DE APOYO EN FORMULACIÓN, EJECUCIÓN Y SEGUIMIENTO PARA LAS ACTIVIDADES DEL PROYECTO DE FUNCIONAMIENTO DE LA ALCALDÍA LOCAL DE FONTIBÓN | I67: Inversión | L67: =IF(ISERROR(VLOOKUP(K67,#REF!,2,FALSE))," ",VLOOKUP(K67,#REF!,2,FALSE)) ->  | M67: =IF(ISERROR(VLOOKUP(K67,#REF!,3,FALSE))," ",VLOOKUP(K67,#REF!,3,FALSE)) ->  | O67: 1 | P67: 101xxx59 | Q67: JAIR ANDRES ACEVEDO RINCON | R67: Persona Natural | V67: N/A | W67: 38500000 | X67: 0 | Y67: 1 | Z67: 19250000 | AA67: 57750000 | AB67: 55550000 | AC67: 2022-01-26 | AD67: 2022-01-28 | AE67: 2022-12-12 | AF67: 7 MESES | AG67: 1 | AH67: 105 | AQ67: Terminado | AR67: 0.9619047619
A68: 55 | B68: 2022 | C68: FDLF-CD-055-2022 | D68: https://community.secop.gov.co/Public/Tendering/OpportunityDetail/Index?noticeUID=CO1.NTC.2681975&isFromPublicArea=True&isModal=False | E68: Contratos de prestación de servicios profesionales y de apoyo a la gestión | F68: Contratación directa | G68: Prestación de servicios profesionales y de apoyo a la gestión, o para la ejecución de trabajos artísticos que sólo puedan encomendarse a determinadas personas naturales | H68: Apoyar la formulación, ejecución, seguimiento y mejora continua de las herramientas que conforman la Gestión Ambiental Institucional de la Alcaldía Local | I68: Inversión | L68: =IF(ISERROR(VLOOKUP(K68,#REF!,2,FALSE))," ",VLOOKUP(K68,#REF!,2,FALSE)) ->  | M68: =IF(ISERROR(VLOOKUP(K68,#REF!,3,FALSE))," ",VLOOKUP(K68,#REF!,3,FALSE)) ->  | O68: 1 | P68: 102xxx21 | Q68: ANGIE LORENA GARCIA VERA | R68: Persona Natural | V68: N/A | W68: 36204000 | X68: 0 | Y68: 1 | Z68: 18102000 | AA68: 54306000 | AB68: 51720000 | AC68: 2022-01-26 | AD68: 2022-02-01 | AE68: 2022-12-15 | AF68: 7 MESES | AG68: 1 | AH68: 105 | AQ68: Terminado | AR68: 0.9523809524
A69: 56 | B69: 2022 | C69: FDLF-CD-056-2022 | D69: https://community.secop.gov.co/Public/Tendering/OpportunityDetail/Index?noticeUID=CO1.NTC.2676680&isFromPublicArea=True&isModal=False | E69: Contratos de prestación de servicios profesionales y de apoyo a la gestión | F69: Contratación directa | G69: Prestación de servicios profesionales y de apoyo a la gestión, o para la ejecución de trabajos artísticos que sólo puedan encomendarse a determinadas personas naturales | H69: PRESTAR LOS SERVICIOS DE APOYO ASISTENCIAL PARA LA ATENCIÓN, RECEPCIÓN Y TRÁMITE DE LOS DOCUMENTOS Y CORRESPONDENCIA DE ACUERDO A LOS APLICATIVOS EN GENERAL Y LO ESTABLECIDO POR LA SECRETARÍA DISTRITAL DE GOBIERNO | I69: Inversión | L69: =IF(ISERROR(VLOOKUP(K69,#REF!,2,FALSE))," ",VLOOKUP(K69,#REF!,2,FALSE)) ->  | M69: =IF(ISERROR(VLOOKUP(K69,#REF!,3,FALSE))," ",VLOOKUP(K69,#REF!,3,FALSE)) ->  | O69: 1 | P69: 530xxx97 | Q69: SONIA ESPERANZA SANTOS GIL | R69: Persona Natural | V69: N/A | W69: 17500000 | X69: 0 | Y69: 1 | Z69: 8750000 | AA69: 26250000 | AB69: 25250000 | AC69: 2022-01-25 | AD69: 2022-01-27 | AE69: 2022-12-12 | AF69: 7 MESES | AG69: 1 | AH69: 105 | AQ69: Terminado | AR69: 0.9619047619
A70: 57 | B70: 2022 | C70: FDLF-CD-057-2022 | D70: https://community.secop.gov.co/Public/Tendering/OpportunityDetail/Index?noticeUID=CO1.NTC.2753637&isFromPublicArea=True&isModal=true&asPopupView=true | E70: Contratos de prestación de servicios profesionales y de apoyo a la gestión | F70: Contratación directa | G70: Prestación de servicios profesionales y de apoyo a la gestión, o para la ejecución de trabajos artísticos que sólo puedan encomendarse a determinadas personas naturales | H70: PRESTAR SERVICIOS TÉCNICOS DE APOYO PARA LA FORMULACIÓN, EVALUACIÓN, SEGUIMIENTO DE PROYECTOS PARA EL MANTENIMEINTO Y SOSTENIBILIDAD DE LOS BIENES DE LA ALCALDÍA LOCAL DE FONTIBÓN | I70: Inversión | L70: =IF(ISERROR(VLOOKUP(K70,#REF!,2,FALSE))," ",VLOOKUP(K70,#REF!,2,FALSE)) ->  | M70: =IF(ISERROR(VLOOKUP(K70,#REF!,3,FALSE))," ",VLOOKUP(K70,#REF!,3,FALSE)) ->  | O70: 1 | P70: 807xxx40 | Q70: JORGE ALEJANDRO DELGADO GONGORA | R70: Persona Natural | V70: N/A | W70: 41800000 | X70: 0 | AA70: 41800000 | AB70: 23686667 | AC70: 2022-01-27 | AD70: 2022-02-03 | AE70: 2022-08-10 | AF70: 11 MESES | AQ70: Terminado | AR70: 0.5666666746
A71: 58 | B71: 2022 | C71: FDLF-CD-058-2022 | D71: https://community.secop.gov.co/Public/Tendering/OpportunityDetail/Index?noticeUID=CO1.NTC.2677039&isFromPublicArea=True&isModal=False | E71: Contratos de prestación de servicios profesionales y de apoyo a la gestión | F71: Contratación directa | G71: Prestación de servicios profesionales y de apoyo a la gestión, o para la ejecución de trabajos artísticos que sólo puedan encomendarse a determinadas personas naturales | H71: PRESTAR SERVICIOS PROFESIONALES PARA APOYAR A LA ALCALDÍA LOCAL EN LA FORMULACIÓN, PLANEACIÓN, PRESENTACIÓN Y SEGUIMIENTO DE LOS PROYECTOS DE INFRAESTRUCTURA DE LA ALCALDÍA | I71: Inversión | L71: =IF(ISERROR(VLOOKUP(K71,#REF!,2,FALSE))," ",VLOOKUP(K71,#REF!,2,FALSE)) ->  | M71: =IF(ISERROR(VLOOKUP(K71,#REF!,3,FALSE))," ",VLOOKUP(K71,#REF!,3,FALSE)) ->  | O71: 1 | P71: 105xxx14 | Q71: CRISTIAN FERNANDO PEREZ ACOSTA | R71: Persona Natural | V71: N/A | W71: 70400000 | X71: 0 | AA71: 70400000 | AB71: 42240000 | AC71: 2022-01-25 | AD71: 2022-02-01 | AE71: 2022-08-18 | AF71: 11 MESES | AQ71: Terminado | AR71: 0.6
A72: 59 | B72: 2022 | C72: FDLF-CD-059-2022 | D72: https://community.secop.gov.co/Public/Tendering/OpportunityDetail/Index?noticeUID=CO1.NTC.2700478&isFromPublicArea=True&isModal=False | E72: Contratos de prestación de servicios profesionales y de apoyo a la gestión | F72: Contratación directa | G72: Prestación de servicios profesionales y de apoyo a la gestión, o para la ejecución de trabajos artísticos que sólo puedan encomendarse a determinadas personas naturales | H72: PRESTAR SERVICIOS PROFESIONALES PARA APOYAR A LA ALCALDÍA LOCAL DE FONTIBÓN ORIENTADOS AL CUMPLIMIENTO DE LAS METAS DEL PROYECTO DE INVERSIÓN No 1770 | I72: Inversión | L72: =IF(ISERROR(VLOOKUP(K72,#REF!,2,FALSE))," ",VLOOKUP(K72,#REF!,2,FALSE)) ->  | M72: =IF(ISERROR(VLOOKUP(K72,#REF!,3,FALSE))," ",VLOOKUP(K72,#REF!,3,FALSE)) ->  | O72: 1 | P72: 103xxx44 | Q72: EDWIN ANDRES LOPEZ AMAYA | R72: Persona Natural | V72: N/A | W72: 52800000 | X72: 0 | AA72: 52800000 | AB72: 48000000 | AC72: 2022-01-26 | AD72: 2022-02-01 | AE72: 2022-12-31 | AF72: 11 MESES | AQ72: Terminado | AR72: 0.9090909091
A73: 60 | B73: 2022 | C73: FDLF-CD-060-2022 | D73: https://community.secop.gov.co/Public/Tendering/OpportunityDetail/Index?noticeUID=CO1.NTC.2732538&isFromPublicArea=True&isModal=False | E73: Contratos de prestación de servicios profesionales y de apoyo a la gestión | F73: Contratación directa | G73: Prestación de servicios profesionales y de apoyo a la gestión, o para la ejecución de trabajos artísticos que sólo puedan encomendarse a determinadas personas naturales | H73: APOYAR EN LAS TAREAS OPERATIVAS DE CARÁCTER ARCHIVÍSTICO DESARROLLADAS EN LA ALCALDÍA LOCAL PARA GARANTIZAR LA APLICACIÓN CORRECTA DE LOS PROCEDIMIENTOS TÉCNICOS | I73: Inversión | L73: =IF(ISERROR(VLOOKUP(K73,#REF!,2,FALSE))," ",VLOOKUP(K73,#REF!,2,FALSE)) ->  | M73: =IF(ISERROR(VLOOKUP(K73,#REF!,3,FALSE))," ",VLOOKUP(K73,#REF!,3,FALSE)) ->  | O73: 1 | P73: 101xxx14 | Q73: LADY GERALDINE DUQUE RODRIGUEZ | R73: Persona Natural | V73: N/A | W73: 24500000 | X73: 0 | Y73: 1 | Z73: 12250000 | AA73: 36750000 | AB73: 34650000 | AC73: 2022-01-28 | AD73: 2022-02-04 | AE73: 2022-12-18 | AF73: 7 MESES | AG73: 1 | AH73: 105 | AQ73: Terminado | AR73: 0.9428571429
A74: 61 | B74: 2022 | C74: FDLF-CD-061-2021 | D74: https://community.secop.gov.co/Public/Tendering/OpportunityDetail/Index?noticeUID=CO1.NTC.2718099&isFromPublicArea=True&isModal=true&asPopupView=true | E74: Contratos de prestación de servicios profesionales y de apoyo a la gestión | F74: Contratación directa | G74: Prestación de servicios profesionales y de apoyo a la gestión, o para la ejecución de trabajos artísticos que sólo puedan encomendarse a determinadas personas naturales | H74: APOYAR TÉCNICAMENTE A LOS RESPONSABLES E INTEGRANTES DE LOS PROCESOS EN LA IMPLEMENTACIÓN DE HERRAMIENTAS DE GESTIÓN, SIGUIENDO LOS LINEAMIENTOS METODOLÓGICOS ESTABLECIDOS POR LA OFICINA ASESORA DE PLANEACIÓN DE LA SECRETARÍA DISTRITAL DE GOBIERNO | I74: Inversión | L74: =IF(ISERROR(VLOOKUP(K74,#REF!,2,FALSE))," ",VLOOKUP(K74,#REF!,2,FALSE)) ->  | M74: =IF(ISERROR(VLOOKUP(K74,#REF!,3,FALSE))," ",VLOOKUP(K74,#REF!,3,FALSE)) ->  | O74: 1 | P74: 798xxx24 | Q74: PABLO ENRIQUE DELGADO MELENDEZ | R74: Persona Natural | V74: N/A | W74: 68200000 | X74: 0 | Y74: 1 | Z74: 2066666 | AA74: 70266666 | AB74: 60553333 | AC74: 2022-01-27 | AD74: 2022-02-08 | AE74: 2023-03-02 | AF74: 11 MESES | AG74: 1 | AH74: 10 | AQ74: En ejecución | AR74: 0.8617647093
A75: 62 | B75: 2022 | C75: FDLF-CD-062-2022 | D75: https://community.secop.gov.co/Public/Tendering/OpportunityDetail/Index?noticeUID=CO1.NTC.2725894&isFromPublicArea=True&isModal=False | E75: Contratos de prestación de servicios profesionales y de apoyo a la gestión | F75: Contratación directa | G75: Prestación de servicios profesionales y de apoyo a la gestión, o para la ejecución de trabajos artísticos que sólo puedan encomendarse a determinadas personas naturales | H75: PRESTAR LOS SERVICIOS DE APOYO ASISTENCIAL PARA LA ATENCIÓN, RECEPCIÓN Y TRÁMITE DE LOS DOCUMENTOS Y CORRESPONDENCIA DE ACUERDO A LOS APLICATIVOS EN GENERAL Y LO ESTABLECIDO POR LA SECRETARÍA DISTRITAL DE GOBIERNO | I75: Inversión | L75: =IF(ISERROR(VLOOKUP(K75,#REF!,2,FALSE))," ",VLOOKUP(K75,#REF!,2,FALSE)) ->  | M75: =IF(ISERROR(VLOOKUP(K75,#REF!,3,FALSE))," ",VLOOKUP(K75,#REF!,3,FALSE)) ->  | O75: 1 | P75: 397xxx78 | Q75: MARIA DEL PILAR CADENA BELTRAN | R75: Persona Natural | V75: N/A | W75: 17500000 | X75: 0 | Y75: 1 | Z75: 8750000 | AA75: 26250000 | AB75: 24916667 | AC75: 2022-01-28 | AD75: 2022-02-02 | AE75: 2022-12-16 | AF75: 7 MESES | AG75: 1 | AH75: 105 | AQ75: Terminado | AR75: 0.9492063619
A76: 63 | B76: 2022 | C76: FDLF-CD-063-2022 | D76: https://community.secop.gov.co/Public/Tendering/OpportunityDetail/Index?noticeUID=CO1.NTC.2774931&isFromPublicArea=True&isModal=true&asPopupView=true | E76: Contratos de prestación de servicios profesionales y de apoyo a la gestión | F76: Contratación directa | G76: Prestación de servicios profesionales y de apoyo a la gestión, o para la ejecución de trabajos artísticos que sólo puedan encomendarse a determinadas personas naturales | H76: PRESTAR SERVICIOS DE APOYO ADMINISTRATIVO Y ASISTENCIALMENTE A LA GESTIÓN POLICIVA DE LA ALCALDÍA LOCAL | I76: Inversión | L76: =IF(ISERROR(VLOOKUP(K76,#REF!,2,FALSE))," ",VLOOKUP(K76,#REF!,2,FALSE)) ->  | M76: =IF(ISERROR(VLOOKUP(K76,#REF!,3,FALSE))," ",VLOOKUP(K76,#REF!,3,FALSE)) ->  | O76: 1 | P76: 102xxx85 | Q76: DIANA CAROLINA MARTINEZ MARTINEZ | R76: Persona Natural | V76: N/A | W76: 18200000 | X76: 0 | Y76: 1 | Z76: 9100000 | AA76: 27300000 | AB76: 14820000 | AC76: 2022-01-28 | AD76: 2022-02-07 | AE76: 2022-12-21 | AF76: 7 MESES | AG76: 1 | AH76: 105 | AI76: 52848705 | AJ76: CAROLINA HERNANDEZ HERRERA | AK76: 2022-03-10 | AQ76: Terminado | AR76: 0.5428571429
A77: 64 | B77: 2022 | C77: FDLF-CD-064-2022 | D77: https://community.secop.gov.co/Public/Tendering/OpportunityDetail/Index?noticeUID=CO1.NTC.2782495&isFromPublicArea=True&isModal=true&asPopupView=true | E77: Contratos de prestación de servicios profesionales y de apoyo a la gestión | F77: Contratación directa | G77: Prestación de servicios profesionales y de apoyo a la gestión, o para la ejecución de trabajos artísticos que sólo puedan encomendarse a determinadas personas naturales | H77: APOYAR TÉCNICAMENTE LAS DISTINTAS ETAPAS DE LOS PROCESOS DE COMPETENCIA DE LAS INSPECCIONES DE POLICÍA DE LA LOCALIDAD, SEGÚN REPARTO | I77: Inversión | L77: =IF(ISERROR(VLOOKUP(K77,#REF!,2,FALSE))," ",VLOOKUP(K77,#REF!,2,FALSE)) ->  | M77: =IF(ISERROR(VLOOKUP(K77,#REF!,3,FALSE))," ",VLOOKUP(K77,#REF!,3,FALSE)) ->  | O77: 1 | P77: 101xxx26 | Q77: JAZZ ARIZA GUERRERO | R77: Persona Natural | V77: N/A | W77: 36204000 | X77: 0 | AA77: 36204000 | AB77: 36204000 | AC77: 2022-01-28 | AD77: 2022-02-03 | AE77: 2022-09-02 | AF77: 7 MESES | AQ77: Terminado | AR77: 1
A78: 65 | B78: 2022 | C78: FDLF-CD-065-2022 | D78: https://community.secop.gov.co/Public/Tendering/OpportunityDetail/Index?noticeUID=CO1.NTC.2794101&isFromPublicArea=True&isModal=true&asPopupView=true | E78: Contratos de prestación de servicios profesionales y de apoyo a la gestión | F78: Contratación directa | G78: Prestación de servicios profesionales y de apoyo a la gestión, o para la ejecución de trabajos artísticos que sólo puedan encomendarse a determinadas personas naturales | H78: PRESTAR EL SERVICIO PARA APOYAR CON LA CONDUCCIÓN DE VEHÍCULOS LIVIANOS, PESADOS Y/O MAQUINARIA PESADA QUE SE ENCUENTRAN AL SERVICIO DE LAS ACTIVIDADES QUE SE DESARROLLAN EN EL FONDO DE DESARROLLO LOCAL DE FONTIBÓN | I78: Inversión | L78: =IF(ISERROR(VLOOKUP(K78,#REF!,2,FALSE))," ",VLOOKUP(K78,#REF!,2,FALSE)) ->  | M78: =IF(ISERROR(VLOOKUP(K78,#REF!,3,FALSE))," ",VLOOKUP(K78,#REF!,3,FALSE)) ->  | O78: 1 | P78: 808xxx92 | Q78: JHON MAURICIO MEDINA | R78: Persona Natural | V78: N/A | W78: 18900000 | X78: 0 | AA78: =+W78+X78+Z78 -> 18900000 | AB78: 15660000 | AC78: 2022-01-28 | AD78: 2022-02-07 | AE78: 2022-09-06 | AF78: 7 MESES | AQ78: Terminado | AR78: =IF(ISERROR(AB78/AA78),"-",(AB78/AA78)) -> 0.8285714286
A79: 66 | B79: 2022 | C79: FDLF-CD-066-2022 | D79: https://community.secop.gov.co/Public/Tendering/OpportunityDetail/Index?noticeUID=CO1.NTC.2688101&isFromPublicArea=True&isModal=False | E79: Contratos de prestación de servicios profesionales y de apoyo a la gestión | F79: Contratación directa | G79: Prestación de servicios profesionales y de apoyo a la gestión, o para la ejecución de trabajos artísticos que sólo puedan encomendarse a determinadas personas naturales | H79: Prestar el sevicio para apoyar con la conducción de vehículos livianos, pesados y/o maquinaria pesada que se encuentran al servicio de las actividades que se desarrollan en el fondo de desarrollo local de Fontibón | I79: Inversión | L79: =IF(ISERROR(VLOOKUP(K79,#REF!,2,FALSE))," ",VLOOKUP(K79,#REF!,2,FALSE)) ->  | M79: =IF(ISERROR(VLOOKUP(K79,#REF!,3,FALSE))," ",VLOOKUP(K79,#REF!,3,FALSE)) ->  | O79: 1 | P79: 102xxx12 | Q79: YIMI OSWALDO GOMEZ | R79: Persona Natural | V79: N/A | W79: 41800000 | X79: 0 | AA79: 41800000 | AB79: 29133334 | AC79: 2022-01-25 | AD79: 2022-01-27 | AE79: 2022-09-16 | AF79: 11 MESES | AQ79: Terminado | AR79: 0.6969697129
A80: 67 | B80: 2022 | C80: FDLF-CD-067-2022 | D80: https://community.secop.gov.co/Public/Tendering/OpportunityDetail/Index?noticeUID=CO1.NTC.2768578&isFromPublicArea=True&isModal=true&asPopupView=true | E80: Contratos de prestación de servicios profesionales y de apoyo a la gestión | F80: Contratación directa | G80: Prestación de servicios profesionales y de apoyo a la gestión, o para la ejecución de trabajos artísticos que sólo puedan encomendarse a determinadas personas naturales | H80: APOYAR ADMINISTRATIVA Y ASISTENCIALMENTE A LAS INSPECCIONES DE POLICÍA DE LA LOCALIDAD | I80: Inversión | L80: =IF(ISERROR(VLOOKUP(K80,#REF!,2,FALSE))," ",VLOOKUP(K80,#REF!,2,FALSE)) ->  | M80: =IF(ISERROR(VLOOKUP(K80,#REF!,3,FALSE))," ",VLOOKUP(K80,#REF!,3,FALSE)) ->  | O80: 1 | P80: 101xxx84 | Q80: DIEGO ALEJANDRO CASTRO MUNZA | R80: Persona Natural | V80: N/A | W80: 17500000 | X80: 0 | Y80: 1 | Z80: 8750000 | AA80: 26250000 | AB80: 24916667 | AC80: 2022-01-28 | AD80: 2022-02-02 | AE80: 2022-12-16 | AF80: 7 MESES | AG80: 1 | AH80: 105 | AQ80: Terminado | AR80: 0.9492063619
A81: 68 | B81: 2022 | C81: FDLF-CD-068-2022 | D81: https://community.secop.gov.co/Public/Tendering/OpportunityDetail/Index?noticeUID=CO1.NTC.2716569&isFromPublicArea=True&isModal=False | E81: Contratos de prestación de servicios profesionales y de apoyo a la gestión | F81: Contratación directa | G81: Prestación de servicios profesionales y de apoyo a la gestión, o para la ejecución de trabajos artísticos que sólo puedan encomendarse a determinadas personas naturales | H81: PRESTAR LOS SERVICIOS DE APOYO TÉCNICO EN LA EJECUCIÓN DE LAS ACTIVIDADES OPERATIVAS Y ADMINISTRATIVAS RELACIONADAS CON EL TRAMITE PERTINENTE A LAS COMUNICACIONES INTERNAS Y EXTERNAS CON EL FIN DE CONTROLAR DE FORMA ÁGIL Y OPORTUNA LOS DOCUMENTOS ENVIADOS Y RECIBIDOS POR LAS DEPENDENCIAS, DE ACUERDO A LOS APLICATIVOS EN GENERAL Y LO ESTABLECIDO POR LA SECRETARIA DISTRITAL DE GOBIERNO | I81: Inversión | L81: =IF(ISERROR(VLOOKUP(K81,#REF!,2,FALSE))," ",VLOOKUP(K81,#REF!,2,FALSE)) ->  | M81: =IF(ISERROR(VLOOKUP(K81,#REF!,3,FALSE))," ",VLOOKUP(K81,#REF!,3,FALSE)) ->  | O81: 1 | P81: 539xxx44 | Q81: XIMENA ANDREA PARRAGA GOMEZ | R81: Persona Natural | V81: N/A | W81: 24500000 | X81: 0 | Y81: 1 | Z81: 12250000 | AA81: 36750000 | AB81: 34883333 | AC81: 2022-01-27 | AD81: 2022-02-02 | AE81: 2022-12-16 | AF81: 7 MESES | AG81: 1 | AH81: 105 | AQ81: Terminado | AR81: 0.9492063401
A82: 69 | B82: 2022 | C82: FDLF-CD-069-2022 | D82: https://community.secop.gov.co/Public/Tendering/OpportunityDetail/Index?noticeUID=CO1.NTC.2726373&isFromPublicArea=True&isModal=False | E82: Contratos de prestación de servicios profesionales y de apoyo a la gestión | F82: Contratación directa | G82: Prestación de servicios profesionales y de apoyo a la gestión, o para la ejecución de trabajos artísticos que sólo puedan encomendarse a determinadas personas naturales | H82: PRESTAR LOS SERVICIOS DE APOYO ASISTENCIAL PARA LA ATENCIÓN, RECEPCIÓN Y TRÁMITE DE LOS DOCUMENTOS Y CORRESPONDENCIA DE ACUERDO A LOS APLICATIVOS EN GENERAL Y LO ESTABLECIDO POR LA SECRETARÍA DISTRITAL DE GOBIERNO | I82: Inversión | L82: =IF(ISERROR(VLOOKUP(K82,#REF!,2,FALSE))," ",VLOOKUP(K82,#REF!,2,FALSE)) ->  | M82: =IF(ISERROR(VLOOKUP(K82,#REF!,3,FALSE))," ",VLOOKUP(K82,#REF!,3,FALSE)) ->  | O82: 1 | P82: 528xxx44 | Q82: DIANA JULIETH SANCHEZ SUAREZ | R82: Persona Natural | V82: N/A | W82: 17500000 | X82: 0 | Y82: 1 | Z82: 8750000 | AA82: 26250000 | AB82: 19850557 | AC82: 2022-01-27 | AD82: 2022-02-02 | AE82: 2022-12-16 | AF82: 7 MESES | AG82: 1 | AH82: 105 | AI82: 1016034743 | AJ82: JUAN ANTONIO ESPITIA ACERO | AK82: 2022-03-10 | AQ82: Terminado | AR82: 0.7562116952
A83: 70 | B83: 2022 | C83: FDLF-CD-070-2022 | D83: https://community.secop.gov.co/Public/Tendering/OpportunityDetail/Index?noticeUID=CO1.NTC.2687351&isFromPublicArea=True&isModal=False | E83: Contratos de prestación de servicios profesionales y de apoyo a la gestión | F83: Contratación directa | G83: Prestación de servicios profesionales y de apoyo a la gestión, o para la ejecución de trabajos artísticos que sólo puedan encomendarse a determinadas personas naturales | H83: APOYAR JURÍDICAMENTE LA EJECUCIÓN DE LAS ACCIONES REQUERIDAS PARA EL TRÁMITE E IMPULSO PROCESAL DE LAS ACTUACIONES CONTRAVENCIONALES Y/O QUERELLAS QUE CURSEN EN LAS INSPECCIONES DE POLICÍA DE LA LOCALIDAD | I83: Inversión | L83: =IF(ISERROR(VLOOKUP(K83,#REF!,2,FALSE))," ",VLOOKUP(K83,#REF!,2,FALSE)) ->  | M83: =IF(ISERROR(VLOOKUP(K83,#REF!,3,FALSE))," ",VLOOKUP(K83,#REF!,3,FALSE)) ->  | O83: 1 | P83: 103xxx68 | Q83: NATALIA ALEJANDRA SEDANO GARZON | R83: Persona Natural | V83: N/A | W83: 35000000 | X83: 0 | Y83: 1 | Z83: 17500000 | AA83: 52500000 | AB83: 39996999 | AC83: 2022-01-25 | AD83: 2022-01-27 | AE83: 2022-12-11 | AF83: 7 MESES | AG83: 1 | AH83: 105 | AI83: 1016074802 | AJ83: NATALIA ANDREA SERRATO CRUZ | AK83: 2022-02-17 | AM83: 1032489616 | AN83: MARIA CAMILA FARFAN LEIVA | AO83: 2022-07-26 | AQ83: Terminado | AR83: 0.7618476
A84: 71 | B84: 2022 | C84: FDLF-CD-071-2022 | D84: https://community.secop.gov.co/Public/Tendering/OpportunityDetail/Index?noticeUID=CO1.NTC.2689262&isFromPublicArea=True&isModal=False | E84: Contratos de prestación de servicios profesionales y de apoyo a la gestión | F84: Contratación directa | G84: Prestación de servicios profesionales y de apoyo a la gestión, o para la ejecución de trabajos artísticos que sólo puedan encomendarse a determinadas personas naturales | H84: APOYAR JURÍDICAMENTE LA EJECUCIÓN DE LAS ACCIONES REQUERIDAS PARA EL TRÁMITE E IMPULSO PROCESAL DE LAS ACTUACIONES CONTRAVENCIONALES Y/O QUERELLAS QUE CURSEN EN LAS INSPECCIONES DE POLICÍA DE LA LOCALIDAD | I84: Inversión | L84: =IF(ISERROR(VLOOKUP(K84,#REF!,2,FALSE))," ",VLOOKUP(K84,#REF!,2,FALSE)) ->  | M84: =IF(ISERROR(VLOOKUP(K84,#REF!,3,FALSE))," ",VLOOKUP(K84,#REF!,3,FALSE)) ->  | O84: 1 | P84: 583xxx20 | Q84: RICAURTE TARQUINO BECERRA | R84: Persona Natural | V84: N/A | W84: 35000000 | X84: 0 | Y84: 1 | Z84: 17500000 | AA84: 52500000 | AB84: 50500000 | AC84: 2022-01-26 | AD84: 2022-01-28 | AE84: 2022-12-12 | AF84: 7 MESES | AG84: 1 | AH84: 105 | AQ84: Terminado | AR84: 0.9619047619
A85: 72 | B85: 2022 | C85: FDLF-CD-072-2022 | D85: https://community.secop.gov.co/Public/Tendering/OpportunityDetail/Index?noticeUID=CO1.NTC.2689369&isFromPublicArea=True&isModal=False | E85: Contratos de prestación de servicios profesionales y de apoyo a la gestión | F85: Contratación directa | G85: Prestación de servicios profesionales y de apoyo a la gestión, o para la ejecución de trabajos artísticos que sólo puedan encomendarse a determinadas personas naturales | H85: APOYAR JURÍDICAMENTE LA EJECUCIÓN DE LAS ACCIONES REQUERIDAS PARA EL TRÁMITE E IMPULSO PROCESAL DE LAS ACTUACIONES CONTRAVENCIONALES Y/O QUERELLAS QUE CURSEN EN LAS INSPECCIONES DE POLICÍA DE LA LOCALIDAD | I85: Inversión | L85: =IF(ISERROR(VLOOKUP(K85,#REF!,2,FALSE))," ",VLOOKUP(K85,#REF!,2,FALSE)) ->  | M85: =IF(ISERROR(VLOOKUP(K85,#REF!,3,FALSE))," ",VLOOKUP(K85,#REF!,3,FALSE)) ->  | O85: 1 | P85: 791xxx70 | Q85: WILFORD LIBERMAN RODRIGUEZ FONSECA | R85: Persona Natural | V85: N/A | W85: 35000000 | X85: 0 | Y85: 1 | Z85: 17500000 | AA85: 52500000 | AB85: 50500000 | AC85: 2022-01-26 | AD85: 2022-01-28 | AE85: 2022-12-12 | AF85: 7 MESES | AG85: 1 | AH85: 105 | AQ85: Terminado | AR85: 0.9619047619
A86: 73 | B86: 2022 | C86: FDLF-CD-073-2022 | D86: https://community.secop.gov.co/Public/Tendering/OpportunityDetail/Index?noticeUID=CO1.NTC.2711262&isFromPublicArea=True&isModal=true&asPopupView=true | E86: Contratos de prestación de servicios profesionales y de apoyo a la gestión | F86: Contratación directa | G86: Prestación de servicios profesionales y de apoyo a la gestión, o para la ejecución de trabajos artísticos que sólo puedan encomendarse a determinadas personas naturales | H86: PRESTAR SERVICIOS PROFESIONALES PARA APOYAR LA FORMULACIÓN, SEGUIMIENTO Y SUPERVISIÓN DE LOS PROCESOS CONTRACTUALES DERIVADOS DEL PROYECTO DE INVERSIÓN NO.1766, EN EL MARCO DE LAS NECESIDADES DE LA ALCALDÍA LOCAL DE FONTIBÓN | I86: Inversión | L86: =IF(ISERROR(VLOOKUP(K86,#REF!,2,FALSE))," ",VLOOKUP(K86,#REF!,2,FALSE)) ->  | M86: =IF(ISERROR(VLOOKUP(K86,#REF!,3,FALSE))," ",VLOOKUP(K86,#REF!,3,FALSE)) ->  | O86: 1 | P86: 102xxx96 | Q86: ROLF GUNTHER STRAUSS LAVERDE | R86: Persona Natural | V86: N/A | W86: 71500000 | X86: -23616666 | AA86: 47883334 | AB86: 47883334 | AC86: 2022-01-26 | AD86: 2022-01-27 | AE86: 2022-09-07 | AF86: 11 MESES | AQ86: Terminado | AR86: 1
A87: 74 | B87: 2022 | C87: FDLF-CD-074-2022 | D87: https://community.secop.gov.co/Public/Tendering/OpportunityDetail/Index?noticeUID=CO1.NTC.2689698&isFromPublicArea=True&isModal=False | E87: Contratos de prestación de servicios profesionales y de apoyo a la gestión | F87: Contratación directa | G87: Prestación de servicios profesionales y de apoyo a la gestión, o para la ejecución de trabajos artísticos que sólo puedan encomendarse a determinadas personas naturales | H87: PRESTAR SERVICIOS DE APOYO TÉCNICO AL ÁREA DE GESTIÓN DE DESARROLLO LOCAL DE FONTIBÓN EN EL MARCO DEL PROYECTO 1772 | I87: Inversión | L87: =IF(ISERROR(VLOOKUP(K87,#REF!,2,FALSE))," ",VLOOKUP(K87,#REF!,2,FALSE)) ->  | M87: =IF(ISERROR(VLOOKUP(K87,#REF!,3,FALSE))," ",VLOOKUP(K87,#REF!,3,FALSE)) ->  | O87: 1 | P87: 190xxx20 | Q87: EMETERIO BETANCOURT FUENTES | R87: Persona Natural | V87: N/A | W87: 42350000 | X87: 0 | AA87: 42350000 | AB87: 38885000 | AC87: 2022-01-25 | AD87: 2022-01-28 | AE87: 2022-12-27 | AF87: 11 MESES | AQ87: Terminado | AR87: 0.9181818182
A88: 75 | B88: 2022 | C88: FDLF-CD-075-2022 | D88: https://community.secop.gov.co/Public/Tendering/OpportunityDetail/Index?noticeUID=CO1.NTC.2690353&isFromPublicArea=True&isModal=False | E88: Contratos de prestación de servicios profesionales y de apoyo a la gestión | F88: Contratación directa | G88: Prestación de servicios profesionales y de apoyo a la gestión, o para la ejecución de trabajos artísticos que sólo puedan encomendarse a determinadas personas naturales | H88: PRESTAR SERVICIOS PROFESIONALES PARA LA GESTIÓN Y SEGUIMIENTO DE ACTIVIDADES ENFOCADAS A LA GESTIÓN AMBIENTAL EXTERNA, ENCAMINADAS A LA MITIGACIÓN DE LOS DIFERENTES IMPACTOS AMBIENTALES Y LA CONSERVACIÓN DE LOS RECURSOS NATURALES DE LA LOCALIDAD | I88: Inversión | L88: =IF(ISERROR(VLOOKUP(K88,#REF!,2,FALSE))," ",VLOOKUP(K88,#REF!,2,FALSE)) ->  | M88: =IF(ISERROR(VLOOKUP(K88,#REF!,3,FALSE))," ",VLOOKUP(K88,#REF!,3,FALSE)) ->  | O88: 1 | P88: 791xxx58 | Q88: JHON HAMMER PARRADO RODRIGUEZ | R88: Persona Natural | V88: N/A | W88: 31640000 | X88: 0 | AA88: 31640000 | AB88: 31640000 | AC88: 2022-01-25 | AD88: 2022-02-01 | AE88: 2022-08-30 | AF88: 7 MESES | AQ88: Terminado | AR88: 1
A89: 76 | B89: 2022 | C89: FDLF-CD-076-2022 | D89: https://community.secop.gov.co/Public/Tendering/OpportunityDetail/Index?noticeUID=CO1.NTC.2690649&isFromPublicArea=True&isModal=False | E89: Contratos de prestación de servicios profesionales y de apoyo a la gestión | F89: Contratación directa | G89: Prestación de servicios profesionales y de apoyo a la gestión, o para la ejecución de trabajos artísticos que sólo puedan encomendarse a determinadas personas naturales | H89: PRESTAR SERVICIOS PROFESIONALES EN LA IMPLEMENTACIÓN DE ACCIONES PARA CAMBIAR HÁBITOS DE CONSUMO SEGÚN LO ESTABLECIDO EN EL PROYECTO DE INVERSIÓN LOCAL 1772 | I89: Inversión | L89: =IF(ISERROR(VLOOKUP(K89,#REF!,2,FALSE))," ",VLOOKUP(K89,#REF!,2,FALSE)) ->  | M89: =IF(ISERROR(VLOOKUP(K89,#REF!,3,FALSE))," ",VLOOKUP(K89,#REF!,3,FALSE)) ->  | O89: 1 | P89: 525xxx83 | Q89: RUTH MERCEDES SANABRIA PARDO | R89: Persona Natural | V89: N/A | W89: 55000000 | X89: 0 | AA89: 55000000 | AB89: 38000000 | AC89: 2022-01-26 | AD89: 2022-01-28 | AE89: 2022-09-15 | AF89: 11 MESES | AQ89: Terminado | AR89: 0.6909090909
A90: 77 | B90: 2022 | C90: FDLF-CD-077-2022 | D90: https://community.secop.gov.co/Public/Tendering/OpportunityDetail/Index?noticeUID=CO1.NTC.2690949&isFromPublicArea=True&isModal=False | E90: Contratos de prestación de servicios profesionales y de apoyo a la gestión | F90: Contratación directa | G90: Prestación de servicios profesionales y de apoyo a la gestión, o para la ejecución de trabajos artísticos que sólo puedan encomendarse a determinadas personas naturales | H90: PRESTAR SERVICIOS DE APOYO EN LAS ACTIVIDADES DE SEGURIDAD Y CONVIVENCIA CIUDADANA, DE ACUERDO CON LAS NECESIDADES Y ESTRATEGIAS EMANADAS DESDE LA ALCALDÍA LOCAL DE FONTIBON | I90: Inversión | L90: =IF(ISERROR(VLOOKUP(K90,#REF!,2,FALSE))," ",VLOOKUP(K90,#REF!,2,FALSE)) ->  | M90: =IF(ISERROR(VLOOKUP(K90,#REF!,3,FALSE))," ",VLOOKUP(K90,#REF!,3,FALSE)) ->  | O90: 1 | P90: 114xxx19 | Q90: ESAU ARNULFO AMORTEGUI PINEDA | R90: Persona Natural | V90: N/A | W90: 17500000 | X90: 0 | Y90: 1 | Z90: 8750000 | AA90: 26250000 | AB90: 25250000 | AC90: 2022-01-26 | AD90: 2022-01-28 | AE90: 2022-12-11 | AF90: 7 MESES | AG90: 1 | AH90: 105 | AQ90: Terminado | AR90: 0.9619047619
A91: 78 | B91: 2022 | C91: FDLF-CD-078-2022 | D91: https://community.secop.gov.co/Public/Tendering/OpportunityDetail/Index?noticeUID=CO1.NTC.2691407&isFromPublicArea=True&isModal=False | E91: Contratos de prestación de servicios profesionales y de apoyo a la gestión | F91: Contratación directa | G91: Prestación de servicios profesionales y de apoyo a la gestión, o para la ejecución de trabajos artísticos que sólo puedan encomendarse a determinadas personas naturales | H91: PRESTAR SERVICIOS DE APOYO EN LAS ACTIVIDADES DE SEGURIDAD Y CONVIVENCIA CIUDADANA, DE ACUERDO CON LAS NECESIDADES Y ESTRATEGIAS EMANADAS DESDE LA ALCALDÍA LOCAL DE FONTIBÓN | I91: Inversión | L91: =IF(ISERROR(VLOOKUP(K91,#REF!,2,FALSE))," ",VLOOKUP(K91,#REF!,2,FALSE)) ->  | M91: =IF(ISERROR(VLOOKUP(K91,#REF!,3,FALSE))," ",VLOOKUP(K91,#REF!,3,FALSE)) ->  | O91: 1 | P91: 103xxx80 | Q91: JHAISON LEONARDO CIFUENTES ARIAS | R91: Persona Natural | V91: N/A | W91: 17500000 | X91: 0 | Y91: 1 | Z91: 8750000 | AA91: 26250000 | AB91: 25250000 | AC91: 2022-01-26 | AD91: 2022-01-28 | AE91: 2022-12-12 | AF91: 7 MESES | AG91: 1 | AH91: 105 | AQ91: Terminado | AR91: 0.9619047619
A92: 79 | B92: 2022 | C92: FDLF-CD-079-2022 | D92: https://community.secop.gov.co/Public/Tendering/OpportunityDetail/Index?noticeUID=CO1.NTC.2691281&isFromPublicArea=True&isModal=False | E92: Contratos de prestación de servicios profesionales y de apoyo a la gestión | F92: Contratación directa | G92: Prestación de servicios profesionales y de apoyo a la gestión, o para la ejecución de trabajos artísticos que sólo puedan encomendarse a determinadas personas naturales | H92: PRESTAR SERVICIOS DE APOYO EN LAS ACTIVIDADES DE SEGURIDAD Y CONVIVENCIA CIUDADANA, DE ACUERDO CON LAS NECESIDADES Y ESTRATEGIAS EMANADAS DESDE LA ALCALDÍA LOCAL DE FONTIBÓN | I92: Inversión | L92: =IF(ISERROR(VLOOKUP(K92,#REF!,2,FALSE))," ",VLOOKUP(K92,#REF!,2,FALSE)) ->  | M92: =IF(ISERROR(VLOOKUP(K92,#REF!,3,FALSE))," ",VLOOKUP(K92,#REF!,3,FALSE)) ->  | O92: 1 | P92: 793xxx83 | Q92: CARLOS JULIO GORDILLO | R92: Persona Natural | V92: N/A | W92: 17500000 | X92: 0 | Y92: 1 | Z92: 8750000 | AA92: 26250000 | AB92: 25250000 | AC92: 2022-01-26 | AD92: 2022-01-28 | AE92: 2022-12-12 | AF92: 7 MESES | AG92: 1 | AH92: 105 | AQ92: Terminado | AR92: 0.9619047619
A93: 80 | B93: 2022 | C93: FDLF-CD-080-2022 | D93: https://community.secop.gov.co/Public/Tendering/OpportunityDetail/Index?noticeUID=CO1.NTC.2689457&isFromPublicArea=True&isModal=False | E93: Contratos de prestación de servicios profesionales y de apoyo a la gestión | F93: Contratación directa | G93: Prestación de servicios profesionales y de apoyo a la gestión, o para la ejecución de trabajos artísticos que sólo puedan encomendarse a determinadas personas naturales | H93: PRESTAR SERVICIOS COMO PROFESIONAL PARA APOYAR A LA ALCALDÍA LOCAL DE FONTIBÓN EN EL DESARROLLO DEL PROYECTO 1762 EN LOS COMPONENTES DE ORIENTACIÓN, ASESORÍA FAMILIAR, POSICIONAMIENTO Y PROMOCIÓN DEL BUEN TRATO | I93: Inversión | L93: =IF(ISERROR(VLOOKUP(K93,#REF!,2,FALSE))," ",VLOOKUP(K93,#REF!,2,FALSE)) ->  | M93: =IF(ISERROR(VLOOKUP(K93,#REF!,3,FALSE))," ",VLOOKUP(K93,#REF!,3,FALSE)) ->  | O93: 1 | P93: 791xxx95 | Q93: HUGO LOPEZ ORTEGA | R93: Persona Natural | V93: N/A | W93: 31640000 | X93: 0 | Y93: 1 | Z93: 15820000 | AA93: 47460000 | AB93: 45200000 | AC93: 2022-01-26 | AD93: 2022-02-01 | AE93: 2022-12-15 | AF93: 7 MESES | AG93: 1 | AH93: 105 | AQ93: Terminado | AR93: 0.9523809524
A94: 81 | B94: 2022 | C94: FDLF-CD-081-2022 | D94: https://community.secop.gov.co/Public/Tendering/OpportunityDetail/Index?noticeUID=CO1.NTC.2736148&isFromPublicArea=True&isModal=true&asPopupView=true | E94: Contratos de prestación de servicios profesionales y de apoyo a la gestión | F94: Contratación directa | G94: Prestación de servicios profesionales y de apoyo a la gestión, o para la ejecución de trabajos artísticos que sólo puedan encomendarse a determinadas personas naturales | H94: PRESTAR SERVICIOS DE APOYO TÉCNICO EN EL MARCO DEL PROYECTO 1759 | I94: Inversión | L94: =IF(ISERROR(VLOOKUP(K94,#REF!,2,FALSE))," ",VLOOKUP(K94,#REF!,2,FALSE)) ->  | M94: =IF(ISERROR(VLOOKUP(K94,#REF!,3,FALSE))," ",VLOOKUP(K94,#REF!,3,FALSE)) ->  | O94: 1 | P94: 100xxx41 | Q94: GYNETH GABRIELA GONZALEZ PUENTES | R94: Persona Natural | V94: N/A | W94: 21000000 | X94: 0 | Y94: 1 | Z94: 10500000 | AA94: 31500000 | AB94: 30000000 | AC94: 2022-01-26 | AD94: 2022-02-01 | AE94: 2022-12-15 | AF94: 7 MESES | AG94: 1 | AH94: 105 | AQ94: Terminado | AR94: 0.9523809524
A95: 82 | B95: 2022 | C95: FDLF-CD-082-2022 | D95: https://community.secop.gov.co/Public/Tendering/OpportunityDetail/Index?noticeUID=CO1.NTC.2687179&isFromPublicArea=True&isModal=False | E95: Contratos de prestación de servicios profesionales y de apoyo a la gestión | F95: Contratación directa | G95: Prestación de servicios profesionales y de apoyo a la gestión, o para la ejecución de trabajos artísticos que sólo puedan encomendarse a determinadas personas naturales | H95: APOYAR AL ALCALDE LOCAL EN LA GESTIÓN DE LOS ASUNTOS RELACIONADOS CON SEGURIDAD CIUDADANA, CONVIVENCIA Y PREVENCIÓN DE CONFLICTIVIDADES, VIOLENCIAS Y DELITOS EN LA LOCALIDAD, DE CONFORMIDAD CON EL MARCO NORMATIVO APLICABLE EN LA MATERIA | I95: Inversión | L95: =IF(ISERROR(VLOOKUP(K95,#REF!,2,FALSE))," ",VLOOKUP(K95,#REF!,2,FALSE)) ->  | M95: =IF(ISERROR(VLOOKUP(K95,#REF!,3,FALSE))," ",VLOOKUP(K95,#REF!,3,FALSE)) ->  | O95: 1 | P95: 101xxx91 | Q95: CAMILO ANDRES RINCON GONZALEZ | R95: Persona Natural | V95: N/A | W95: 85800000 | X95: 0 | AA95: 85800000 | AB95: 79300000 | AC95: 2022-01-25 | AD95: 2022-01-26 | AE95: 2022-12-25 | AF95: 11 MESES | AQ95: Terminado | AR95: 0.9242424242
A96: 83 | B96: 2022 | C96: FDLF-CD-083-2022 | D96: https://community.secop.gov.co/Public/Tendering/OpportunityDetail/Index?noticeUID=CO1.NTC.2700730&isFromPublicArea=True&isModal=False | E96: Contratos de prestación de servicios profesionales y de apoyo a la gestión | F96: Contratación directa | G96: Prestación de servicios profesionales y de apoyo a la gestión, o para la ejecución de trabajos artísticos que sólo puedan encomendarse a determinadas personas naturales | H96: PRESTAR SERVICIOS PROFESIONALES PARA APOYAR LA FORMULACIÓN DE ESTRATEGIAS COMUNICATIVAS RELACIONADAS CON EL TEMA DE MUJER, GÉNERO Y POBLACIONES DIVERSAS | I96: Inversión | L96: =IF(ISERROR(VLOOKUP(K96,#REF!,2,FALSE))," ",VLOOKUP(K96,#REF!,2,FALSE)) ->  | M96: =IF(ISERROR(VLOOKUP(K96,#REF!,3,FALSE))," ",VLOOKUP(K96,#REF!,3,FALSE)) ->  | O96: 1 | P96: 307xxx85 | Q96: FLOR DELY OCAMPO | R96: Persona Natural | V96: N/A | W96: 38500000 | X96: 0 | AA96: 38500000 | AB96: 38500000 | AC96: 2022-01-26 | AD96: 2022-02-01 | AE96: 2022-08-31 | AF96: 7 MESES | AQ96: Terminado | AR96: 1
A97: 84 | B97: 2022 | C97: FDLF-CD-084-2022 | D97: https://community.secop.gov.co/Public/Tendering/OpportunityDetail/Index?noticeUID=CO1.NTC.2701211&isFromPublicArea=True&isModal=False | E97: Contratos de prestación de servicios profesionales y de apoyo a la gestión | F97: Contratación directa | G97: Prestación de servicios profesionales y de apoyo a la gestión, o para la ejecución de trabajos artísticos que sólo puedan encomendarse a determinadas personas naturales | H97: PRESTAR SERVICIOS PROFESIONALES PARA APOYAR LA FORMULACIÓN DE ACCIONES RELACIONADAS CON EL TEMA DE MUJER, GÉNERO Y POBLACIONES DIVERSAS | I97: Inversión | L97: =IF(ISERROR(VLOOKUP(K97,#REF!,2,FALSE))," ",VLOOKUP(K97,#REF!,2,FALSE)) ->  | M97: =IF(ISERROR(VLOOKUP(K97,#REF!,3,FALSE))," ",VLOOKUP(K97,#REF!,3,FALSE)) ->  | O97: 1 | P97: 101xxx39 | Q97: GINNA PAOLA RODRIGUEZ LOPEZ | R97: Persona Natural | V97: N/A | W97: 35000000 | X97: 0 | Y97: 1 | Z97: 17500000 | AA97: 52500000 | AB97: 48833333 | AC97: 2022-01-27 | AD97: 2022-02-08 | AE97: 2022-12-22 | AF97: 7 MESES | AG97: 1 | AH97: 105 | AI97: 1014218875 | AJ97: JULIANA BALLESTEROS CASILIMAS | AK97: 2022-10-13 | AQ97: Terminado | AR97: 0.9301587238
A98: 85 | B98: 2022 | C98: FDLF-CD-085-2022 | D98: https://community.secop.gov.co/Public/Tendering/OpportunityDetail/Index?noticeUID=CO1.NTC.2701075&isFromPublicArea=True&isModal=true&asPopupView=true | E98: Contratos de prestación de servicios profesionales y de apoyo a la gestión | F98: Contratación directa | G98: Prestación de servicios profesionales y de apoyo a la gestión, o para la ejecución de trabajos artísticos que sólo puedan encomendarse a determinadas personas naturales | H98: PRESTAR SERVICIOS PROFESIONALES PARA APOYAR LA IMPLEMENTACIÓN DE ACCIONES RELACIONADAS CON EL TEMA DE MUJER, GÉNERO Y POBLACIONES DIVERSAS | I98: Inversión | L98: =IF(ISERROR(VLOOKUP(K98,#REF!,2,FALSE))," ",VLOOKUP(K98,#REF!,2,FALSE)) ->  | M98: =IF(ISERROR(VLOOKUP(K98,#REF!,3,FALSE))," ",VLOOKUP(K98,#REF!,3,FALSE)) ->  | O98: 1 | P98: 102xxx58 | Q98: ANGELICA ROCIO RAMOS ACEROS | R98: Persona Natural | V98: N/A | W98: 31640000 | X98: 0 | AA98: 31640000 | AB98: 29078667 | AC98: 2022-01-26 | AD98: 2022-02-15 | AE98: 2022-09-14 | AF98: 7 MESES | AQ98: Terminado | AR98: 0.9190476296
A99: 86 | B99: 2022 | C99: FDLF-CD-086-2022 | D99: https://community.secop.gov.co/Public/Tendering/OpportunityDetail/Index?noticeUID=CO1.NTC.2701096&isFromPublicArea=True&isModal=true&asPopupView=true | E99: Contratos de prestación de servicios profesionales y de apoyo a la gestión | F99: Contratación directa | G99: Prestación de servicios profesionales y de apoyo a la gestión, o para la ejecución de trabajos artísticos que sólo puedan encomendarse a determinadas personas naturales | H99: PRESTAR SERVICIOS PROFESIONALES PARA APOYAR LA IMPLEMENTACIÓN DE ACCIONES RELACIONADAS CON EL TEMA DE MUJER, GÉNERO Y POBLACIONES DIVERSAS | I99: Inversión | L99: =IF(ISERROR(VLOOKUP(K99,#REF!,2,FALSE))," ",VLOOKUP(K99,#REF!,2,FALSE)) ->  | M99: =IF(ISERROR(VLOOKUP(K99,#REF!,3,FALSE))," ",VLOOKUP(K99,#REF!,3,FALSE)) ->  | O99: 1 | P99: 531xxx03 | Q99: KARINA GUZMAN LEAL | R99: Persona Natural | V99: N/A | W99: 31640000 | X99: 0 | Y99: 1 | Z99: 15820000 | AA99: 47460000 | AB99: 45049333 | AC99: 2022-01-27 | AD99: 2022-02-02 | AE99: 2022-12-16 | AF99: 7 MESES | AG99: 1 | AH99: 105 | AQ99: Terminado | AR99: 0.9492063422
A100: 87 | B100: 2022 | C100: FDLF-CD-087-2022 | D100: https://community.secop.gov.co/Public/Tendering/OpportunityDetail/Index?noticeUID=CO1.NTC.2701402&isFromPublicArea=True&isModal=true&asPopupView=true | E100: Contratos de prestación de servicios profesionales y de apoyo a la gestión | F100: Contratación directa | G100: Prestación de servicios profesionales y de apoyo a la gestión, o para la ejecución de trabajos artísticos que sólo puedan encomendarse a determinadas personas naturales | H100: PRESTAR SERVICIOS PROFESIONALES PARA APOYAR LA IMPLEMENTACIÓN DE ACCIONES RELACIONADAS CON EL TEMA DE MUJER, GÉNERO Y POBLACIONES DIVERSAS | I100: Inversión | L100: =IF(ISERROR(VLOOKUP(K100,#REF!,2,FALSE))," ",VLOOKUP(K100,#REF!,2,FALSE)) ->  | M100: =IF(ISERROR(VLOOKUP(K100,#REF!,3,FALSE))," ",VLOOKUP(K100,#REF!,3,FALSE)) ->  | O100: 1 | P100: 102xxx90 | Q100: LINA MARIA MARTINEZ ARDILA | R100: Persona Natural | V100: N/A | W100: 31640000 | X100: 0 | AA100: 31640000 | AB100: 31640000 | AC100: 2022-01-26 | AD100: 2022-02-02 | AE100: 2022-09-01 | AF100: 7 MESES | AQ100: Terminado | AR100: 1
A101: 88 | B101: 2022 | C101: FDLF-CD-088-2022 | D101: https://community.secop.gov.co/Public/Tendering/OpportunityDetail/Index?noticeUID=CO1.NTC.2686547&isFromPublicArea=True&isModal=true&asPopupView=true | E101: Contratos de prestación de servicios profesionales y de apoyo a la gestión | F101: Contratación directa | G101: Prestación de servicios profesionales y de apoyo a la gestión, o para la ejecución de trabajos artísticos que sólo puedan encomendarse a determinadas personas naturales | H101: COORDINAR LA ARTICULACIÓN, ASISTENCIA Y ACOMPAÑAMIENTO DE LOS PROCESOS DE PLANEACIÓN LOCAL, PARA LA PROMOCIÓN DE LA PARTICIPACIÓN DE LAS MUJERES Y DE LA EQUIDAD DE GÉNERO, PARA MATERIALIZAR EN LA LOCALIDAD LAS ESTRATEGIAS DE TERRITORIALIZACIÓN Y TRANSVERSALIZACIÓN DE LA POLÍTICA PUBLICA DE MUJERES Y EQUIDAD DE GÉNERO, PPMYEG | I101: Inversión | L101: =IF(ISERROR(VLOOKUP(K101,#REF!,2,FALSE))," ",VLOOKUP(K101,#REF!,2,FALSE)) ->  | M101: =IF(ISERROR(VLOOKUP(K101,#REF!,3,FALSE))," ",VLOOKUP(K101,#REF!,3,FALSE)) ->  | O101: 1 | P101: 10xxx89 | Q101: JEISSON HERLEY CAMACHO TELLEZ | R101: Persona Natural | V101: N/A | W101: 42000000 | X101: 0 | Y101: 1 | Z101: 21000000 | AA101: 63000000 | AB101: 59800000 | AC101: 2022-01-26 | AD101: 2022-02-02 | AE101: 2022-12-16 | AF101: 7 MESES | AG101: 1 | AH101: 105 | AQ101: Terminado | AR101: 0.9492063492
A102: 89 | B102: 2022 | C102: FDLF-CD-089-2022 | D102: https://community.secop.gov.co/Public/Tendering/OpportunityDetail/Index?noticeUID=CO1.NTC.2701150&isFromPublicArea=True&isModal=true&asPopupView=true | E102: Contratos de prestación de servicios profesionales y de apoyo a la gestión | F102: Contratación directa | G102: Prestación de servicios profesionales y de apoyo a la gestión, o para la ejecución de trabajos artísticos que sólo puedan encomendarse a determinadas personas naturales | H102: PRESTAR SERVICIOS PROFESIONALES PARA APOYAR EL PROYECTO DE PARTICIPACION EN LA PROMOCIÓN, ACOMPAÑAMIENTO Y ATENCIÓN DE LAS INSTANCIAS DE ARTICULACIONES INTERINSTITUCIONALES Y LAS INSTANCIAS DE PARTICIPACIÓN LOCALES, ASÍ COMO LOS PROCESOS COMUNITARIOS EN LA LOCALIDAD | I102: Inversión | L102: =IF(ISERROR(VLOOKUP(K102,#REF!,2,FALSE))," ",VLOOKUP(K102,#REF!,2,FALSE)) ->  | M102: =IF(ISERROR(VLOOKUP(K102,#REF!,3,FALSE))," ",VLOOKUP(K102,#REF!,3,FALSE)) ->  | O102: 1 | P102: 523xxx16 | Q102: NELLY ANGELICA MELENDEZ NUÑEZ | R102: Persona Natural | V102: N/A | W102: 31640000 | X102: 0 | Y102: 1 | Z102: 14313333 | AA102: 45953333 | AB102: 45200000 | AC102: 2022-01-26 | AD102: 2022-02-01 | AE102: 2022-12-05 | AF102: 7 MESES | AG102: 1 | AH102: 95 | AQ102: Terminado | AR102: 0.9836065645
A103: 90 | B103: 2022 | C103: FDLF-CD-090-2022 | D103: https://community.secop.gov.co/Public/Tendering/OpportunityDetail/Index?noticeUID=CO1.NTC.2701525&isFromPublicArea=True&isModal=true&asPopupView=true | E103: Contratos de prestación de servicios profesionales y de apoyo a la gestión | F103: Contratación directa | G103: Prestación de servicios profesionales y de apoyo a la gestión, o para la ejecución de trabajos artísticos que sólo puedan encomendarse a determinadas personas naturales | H103: APOYAR TÉCNICAMENTE LAS DISTINTAS ETAPAS DE LOS PROCESOS DE COMPETENCIA DE LA ALCALDÍA LOCAL PARA LA DEPURACIÓN DE ACTUACIONES ADMINISTRATIVAS | I103: Inversión | L103: =IF(ISERROR(VLOOKUP(K103,#REF!,2,FALSE))," ",VLOOKUP(K103,#REF!,2,FALSE)) ->  | M103: =IF(ISERROR(VLOOKUP(K103,#REF!,3,FALSE))," ",VLOOKUP(K103,#REF!,3,FALSE)) ->  | O103: 1 | P103: 395xxx92 | Q103: ANA YANET LEGUIZAMON FADIÑO | R103: Persona Natural | V103: N/A | W103: 36204000 | X103: 0 | Y103: 1 | Z103: 18102000 | AA103: 54306000 | AB103: 44904000 | AC103: 2022-01-26 | AD103: 2022-02-02 | AE103: 2022-12-16 | AF103: 7 MESES | AG103: 1 | AH103: 105 | AI103: 1030533242 | AJ103: DIEGO ALEJANDRO HERNANDEZ BOCANEGRA | AK103: 2022-07-01 | AQ103: Terminado | AR103: 0.8268699591
A104: 91 | B104: 2022 | C104: FDLF-CD-091-2022 | D104: https://community.secop.gov.co/Public/Tendering/OpportunityDetail/Index?noticeUID=CO1.NTC.2701442&isFromPublicArea=True&isModal=true&asPopupView=true | E104: Contratos de prestación de servicios profesionales y de apoyo a la gestión | F104: Contratación directa | G104: Prestación de servicios profesionales y de apoyo a la gestión, o para la ejecución de trabajos artísticos que sólo puedan encomendarse a determinadas personas naturales | H104: APOYAR TÉCNICAMENTE LAS DISTINTAS ETAPAS DE LOS PROCESOS DE COMPETENCIA DE LA ALCALDÍA LOCAL PARA LA DEPURACIÓN DE ACTUACIONES ADMINISTRATIVAS | I104: Inversión | L104: =IF(ISERROR(VLOOKUP(K104,#REF!,2,FALSE))," ",VLOOKUP(K104,#REF!,2,FALSE)) ->  | M104: =IF(ISERROR(VLOOKUP(K104,#REF!,3,FALSE))," ",VLOOKUP(K104,#REF!,3,FALSE)) ->  | O104: 1 | P104: 102xxx98 | Q104: JUAN PABLO ORTEGA WALTEROS | R104: Persona Natural | V104: N/A | W104: 36204000 | X104: 0 | AA104: 36204000 | AB104: 30687200 | AC104: 2022-01-26 | AD104: 2022-02-03 | AE104: 2022-09-02 | AF104: 7 MESES | AQ104: Terminado | AR104: 0.8476190476
A105: 92 | B105: 2022 | C105: FDLF-CD-092-2022 | D105: https://community.secop.gov.co/Public/Tendering/OpportunityDetail/Index?noticeUID=CO1.NTC.2701454&isFromPublicArea=True&isModal=true&asPopupView=true | E105: Contratos de prestación de servicios profesionales y de apoyo a la gestión | F105: Contratación directa | G105: Prestación de servicios profesionales y de apoyo a la gestión, o para la ejecución de trabajos artísticos que sólo puedan encomendarse a determinadas personas naturales | H105: PRESTAR SERVICIOS PROFESIONALES PARA APOYAR JURÍDICA Y ADMINISTRATIVAMENTE A LA ALCALDÍA LOCAL EN LAS ACTIVIDADES PROPIAS DE LAS OBLIGACIONES DE LA ALCALDÍA LOCAL COMO AUTORIDAD DE POLICÍA | I105: Inversión | L105: =IF(ISERROR(VLOOKUP(K105,#REF!,2,FALSE))," ",VLOOKUP(K105,#REF!,2,FALSE)) ->  | M105: =IF(ISERROR(VLOOKUP(K105,#REF!,3,FALSE))," ",VLOOKUP(K105,#REF!,3,FALSE)) ->  | O105: 1 | P105: 101xxx07 | Q105: CRISTIAN JAVIER ORTIZ OROZCO | R105: Persona Natural | V105: N/A | W105: 32200000 | X105: 0 | AA105: 32200000 | AB105: 32200000 | AC105: 2022-01-26 | AD105: 2022-02-03 | AE105: 2022-09-02 | AF105: 7 MESES | AQ105: Terminado | AR105: 1
A106: 93 | B106: 2022 | C106: FDLF-CD-093-2022 | D106: https://community.secop.gov.co/Public/Tendering/OpportunityDetail/Index?noticeUID=CO1.NTC.2708402&isFromPublicArea=True&isModal=true&asPopupView=true | E106: Contratos de prestación de servicios profesionales y de apoyo a la gestión | F106: Contratación directa | G106: Prestación de servicios profesionales y de apoyo a la gestión, o para la ejecución de trabajos artísticos que sólo puedan encomendarse a determinadas personas naturales | H106: PRESTAR SERVICIOS DE APOYO TÉCNICO PARA REALIZAR ACTIVIDADES DE ASISTENCIA DOCUMENTAL EN LA EJECUCIÓN DEL PROYECTO 1762 | I106: Inversión | L106: =IF(ISERROR(VLOOKUP(K106,#REF!,2,FALSE))," ",VLOOKUP(K106,#REF!,2,FALSE)) ->  | M106: =IF(ISERROR(VLOOKUP(K106,#REF!,3,FALSE))," ",VLOOKUP(K106,#REF!,3,FALSE)) ->  | O106: 1 | P106: 528xxx98 | Q106: JENNY PAOLA RODRIGUEZ LARA | R106: Persona Natural | V106: N/A | W106: 38500000 | X106: 0 | Y106: 1 | Z106: 2800000 | AA106: 41300000 | AB106: 35000000 | AC106: 2022-01-26 | AD106: 2022-02-01 | AE106: 2023-01-21 | AF106: 11 MESES | AG106: 1 | AH106: 20 | AQ106: Terminado | AR106: 0.8474576271
A107: 94 | B107: 2022 | C107: FDLF-CD-094-2022 | D107: https://community.secop.gov.co/Public/Tendering/OpportunityDetail/Index?noticeUID=CO1.NTC.2708093&isFromPublicArea=True&isModal=true&asPopupView=true | E107: Contratos de prestación de servicios profesionales y de apoyo a la gestión | F107: Contratación directa | G107: Prestación de servicios profesionales y de apoyo a la gestión, o para la ejecución de trabajos artísticos que sólo puedan encomendarse a determinadas personas naturales | H107: PRESTAR SERVICIOS PROFESIONALES PARA EL DESARROLLO DE PRODUCTOS PARA LA APROPIACIÓN, DIFUSIÓN Y SOCIALIZACIÓN PARA LA ALCALDÍA LOCAL DE FONTIBÓN EN PROYECTOS DE REACTIVACIÓN ECONÓMICA | I107: Inversión | L107: =IF(ISERROR(VLOOKUP(K107,#REF!,2,FALSE))," ",VLOOKUP(K107,#REF!,2,FALSE)) ->  | M107: =IF(ISERROR(VLOOKUP(K107,#REF!,3,FALSE))," ",VLOOKUP(K107,#REF!,3,FALSE)) ->  | O107: 1 | P107: 802xxx23 | Q107: JULIAN ANDRES LOPEZ CERON | R107: Persona Natural | V107: N/A | W107: 35000000 | X107: 0 | AA107: 35000000 | AB107: 35000000 | AC107: 2022-01-26 | AD107: 2022-02-01 | AE107: 2022-08-31 | AF107: 7 MESES | AQ107: Terminado | AR107: 1
A108: 95 | B108: 2022 | C108: FDLF-CD-095-2022 | D108: https://community.secop.gov.co/Public/Tendering/OpportunityDetail/Index?noticeUID=CO1.NTC.2711049&isFromPublicArea=True&isModal=true&asPopupView=true | E108: Contratos de prestación de servicios profesionales y de apoyo a la gestión | F108: Contratación directa | G108: Prestación de servicios profesionales y de apoyo a la gestión, o para la ejecución de trabajos artísticos que sólo puedan encomendarse a determinadas personas naturales | H108: PRESTAR SERVICIOS DE APOYO TÉCNICO PARA LA OPERACIÓN, SEGUIMIENTO Y CUMPLIMIENTO DE LOS PROCESOS Y PROCEDIMIENTOS DE LA ALCALDÍA LOCAL DE FONTIBÓN ORIENTADOS AL CUMPLIMIENTO DE LAS METAS DEL PROYECTO DE INVERSIÓN No 1761 | I108: Inversión | L108: =IF(ISERROR(VLOOKUP(K108,#REF!,2,FALSE))," ",VLOOKUP(K108,#REF!,2,FALSE)) ->  | M108: =IF(ISERROR(VLOOKUP(K108,#REF!,3,FALSE))," ",VLOOKUP(K108,#REF!,3,FALSE)) ->  | O108: 1 | P108: 101xxx05 | Q108: JESSICA LIZETH LOPEZ ACERO | R108: Persona Natural | V108: N/A | W108: 24500000 | X108: 0 | Y108: 1 | Z108: 12250000 | AA108: 36750000 | AB108: 35000000 | AC108: 2022-01-26 | AD108: 2022-02-01 | AE108: 2022-12-15 | AF108: 7 MESES | AG108: 1 | AH108: 105 | AQ108: Terminado | AR108: 0.9523809524
A109: 96 | B109: 2022 | C109: FDLF-CD-096-2022 | D109: https://community.secop.gov.co/Public/Tendering/OpportunityDetail/Index?noticeUID=CO1.NTC.2715708&isFromPublicArea=True&isModal=true&asPopupView=true | E109: Contratos de prestación de servicios profesionales y de apoyo a la gestión | F109: Contratación directa | G109: Prestación de servicios profesionales y de apoyo a la gestión, o para la ejecución de trabajos artísticos que sólo puedan encomendarse a determinadas personas naturales | H109: PRESTAR SERVICIOS DE APOYO COMO AUXILIAR ADMINISTRATIVO Y OPERATIVO EN LA ALCALDÍA DE FONTIBÓN, PARA EL DESARROLLO LOS ACUERDOS CIUDADANOS PARA EL ESPACIO PÚBLICO EN EL MARCO DEL PROYECTO DE INVERSIÓN No 1776 | I109: Inversión | L109: =IF(ISERROR(VLOOKUP(K109,#REF!,2,FALSE))," ",VLOOKUP(K109,#REF!,2,FALSE)) ->  | M109: =IF(ISERROR(VLOOKUP(K109,#REF!,3,FALSE))," ",VLOOKUP(K109,#REF!,3,FALSE)) ->  | O109: 1 | P109: 101xxx86 | Q109: JENNY ALEJANDRA ZAPATA GALLEGOS | R109: Persona Natural | V109: N/A | W109: 18900000 | X109: 0 | Y109: 1 | Z109: 9450000 | AA109: 28350000 | AB109: 27270000 | AC109: 2022-01-26 | AD109: 2022-01-28 | AE109: 2022-12-12 | AF109: 7 MESES | AG109: 1 | AH109: 105 | AQ109: Terminado | AR109: 0.9619047619
A110: 97 | B110: 2022 | C110: FDLF-CD-097-2022 | D110: https://community.secop.gov.co/Public/Tendering/OpportunityDetail/Index?noticeUID=CO1.NTC.2715587&isFromPublicArea=True&isModal=true&asPopupView=true | E110: Contratos de prestación de servicios profesionales y de apoyo a la gestión | F110: Contratación directa | G110: Prestación de servicios profesionales y de apoyo a la gestión, o para la ejecución de trabajos artísticos que sólo puedan encomendarse a determinadas personas naturales | H110: PRESTAR SERVICIOS DE APOYO COMO AUXILIAR ADMINISTRATIVO Y OPERATIVO EN LA ALCALDÍA LOCAL DE FONTIBÓN EN EL MARCO DEL PROYECTO DE INVERSIÓN No 1772 | I110: Inversión | L110: =IF(ISERROR(VLOOKUP(K110,#REF!,2,FALSE))," ",VLOOKUP(K110,#REF!,2,FALSE)) ->  | M110: =IF(ISERROR(VLOOKUP(K110,#REF!,3,FALSE))," ",VLOOKUP(K110,#REF!,3,FALSE)) ->  | O110: 1 | P110: 102xxx49 | Q110: JOSE YAMID HERRERA TELLEZ | R110: Persona Natural | V110: N/A | W110: 17500000 | X110: 0 | Y110: 1 | Z110: 8750000 | AA110: 26250000 | AB110: 25250000 | AC110: 2022-01-26 | AD110: 2022-01-28 | AE110: 2022-12-12 | AF110: 7 MESES | AG110: 1 | AH110: 105 | AQ110: Terminado | AR110: 0.9619047619
A111: 98 | B111: 2022 | C111: FDLF-CD-098-2022 | D111: https://community.secop.gov.co/Public/Tendering/OpportunityDetail/Index?noticeUID=CO1.NTC.2686577&isFromPublicArea=True&isModal=true&asPopupView=true | E111: Contratos de prestación de servicios profesionales y de apoyo a la gestión | F111: Contratación directa | G111: Prestación de servicios profesionales y de apoyo a la gestión, o para la ejecución de trabajos artísticos que sólo puedan encomendarse a determinadas personas naturales | H111: PRESTAR SUS SERVICIOS DE APOYO TÉCNICO CONTABLE EN LOS PROCESOS DE CAUSACIÓN, SISTEMATIZACIÓN, REGISTROS DE INFORMACIÓN Y PRESENTACIÓN DE INFORMES, DANDO CUMPLIMIENTO AL MARCO NORMATIVO PARA ENTIDADES DE GOBIERNO, ASÍ COMO LAS POLÍTICAS CONTABLES A LA SECRETARIA DE GOBIERNO Y LOS FONDOS DE DESARROLLO LOCAL | I111: Inversión | L111: =IF(ISERROR(VLOOKUP(K111,#REF!,2,FALSE))," ",VLOOKUP(K111,#REF!,2,FALSE)) ->  | M111: =IF(ISERROR(VLOOKUP(K111,#REF!,3,FALSE))," ",VLOOKUP(K111,#REF!,3,FALSE)) ->  | O111: 1 | P111: 525xxx25 | Q111: JEIMMY MEDRANO CACERES | R111: Persona Natural | V111: N/A | W111: 38500000 | X111: 0 | AA111: 38500000 | AB111: 26250000 | AC111: 2022-01-26 | AD111: 2022-02-01 | AE111: 2022-09-15 | AF111: 11 MESES | AQ111: Terminado | AR111: 0.6818181818
A112: 99 | B112: 2022 | C112: FDLF-CD-099-2022 | D112: https://community.secop.gov.co/Public/Tendering/OpportunityDetail/Index?noticeUID=CO1.NTC.2719383&isFromPublicArea=True&isModal=true&asPopupView=true | E112: Contratos de prestación de servicios profesionales y de apoyo a la gestión | F112: Contratación directa | G112: Prestación de servicios profesionales y de apoyo a la gestión, o para la ejecución de trabajos artísticos que sólo puedan encomendarse a determinadas personas naturales | H112: RESTAR SERVICIOS TÉCNICOS PARA EL APOYO A LAS ACTIVIDADES CORRESPONDIENTES A TEMAS DE MALLA VIAL, OBRAS, ESPACIO PÚBLICO E INFRAESTRUCTURA PARA LA ALCALDÍA LOCAL DE FONTIBÓN | I112: Inversión | L112: =IF(ISERROR(VLOOKUP(K112,#REF!,2,FALSE))," ",VLOOKUP(K112,#REF!,2,FALSE)) ->  | M112: =IF(ISERROR(VLOOKUP(K112,#REF!,3,FALSE))," ",VLOOKUP(K112,#REF!,3,FALSE)) ->  | O112: 1 | P112: 107xxx99 | Q112: ANDRES FELIPE TORRES OLARTE | R112: Persona Natural | V112: N/A | W112: 43054000 | X112: 0 | AA112: 43054000 | AB112: 39140000 | AC112: 2022-01-26 | AD112: 2022-02-01 | AE112: 2022-12-31 | AF112: 11 MESES | AQ112: Terminado | AR112: 0.9090909091
A113: 100 | B113: 2022 | C113: FDLF-CD-100-2022 | D113: https://community.secop.gov.co/Public/Tendering/OpportunityDetail/Index?noticeUID=CO1.NTC.2719853&isFromPublicArea=True&isModal=true&asPopupView=true | E113: Contratos de prestación de servicios profesionales y de apoyo a la gestión | F113: Contratación directa | G113: Prestación de servicios profesionales y de apoyo a la gestión, o para la ejecución de trabajos artísticos que sólo puedan encomendarse a determinadas personas naturales | H113: PRESTAR SERVICIOS PROFESIONALES EN LA GESTIÓN DE DESARROLLO LOCAL, REALIZANDO ACTIVIDADES ESTADÍSTICAS DE LOS PROYECTOS DE INVERSIÓN, DATOS ABIERTOS, ASÍ COMO DE IDENTIFICACIÓN, GEORREFERENCIACIÓN Y ADQUISICIÓN DE INFORMACIÓN PREDIAL PARA ALCALDÍA LOCAL DE FONTIBÓN | I113: Inversión | L113: =IF(ISERROR(VLOOKUP(K113,#REF!,2,FALSE))," ",VLOOKUP(K113,#REF!,2,FALSE)) ->  | M113: =IF(ISERROR(VLOOKUP(K113,#REF!,3,FALSE))," ",VLOOKUP(K113,#REF!,3,FALSE)) ->  | O113: 1 | P113: 102xxx21 | Q113: JESUS DAVID CAÑAS CORTES | R113: Persona Natural | V113: N/A | W113: 31605000 | X113: 0 | Y113: 1 | Z113: 15652000 | AA113: 47257000 | AB113: 45150000 | AC113: 2022-01-26 | AD113: 2022-02-01 | AE113: 2022-12-14 | AF113: 7 MESES | AG113: 1 | AH113: 105 | AQ113: Terminado | AR113: 0.9554140127
A114: 101 | B114: 2022 | C114: FDLF-CD-101-2022 | D114: https://community.secop.gov.co/Public/Tendering/OpportunityDetail/Index?noticeUID=CO1.NTC.2703960&isFromPublicArea=True&isModal=true&asPopupView=true | E114: Contratos de prestación de servicios profesionales y de apoyo a la gestión | F114: Contratación directa | G114: Prestación de servicios profesionales y de apoyo a la gestión, o para la ejecución de trabajos artísticos que sólo puedan encomendarse a determinadas personas naturales | H114: PRESTAR SERVICIOS PROFESIONALES PARA APOYAR A LA ALCALDÍA LOCAL EN LA FORMULACIÓN, PLANEACIÓN, PRESENTACIÓN Y SEGUIMIENTO DE LOS PROYECTOS DE INFRAESTRUCTURA DE LA ALCALDÍA | I114: Inversión | L114: =IF(ISERROR(VLOOKUP(K114,#REF!,2,FALSE))," ",VLOOKUP(K114,#REF!,2,FALSE)) ->  | M114: =IF(ISERROR(VLOOKUP(K114,#REF!,3,FALSE))," ",VLOOKUP(K114,#REF!,3,FALSE)) ->  | O114: 1 | P114: 103xxx62 | Q114: CRISTIAN CERINZA OSPINA | R114: Persona Natural | V114: N/A | W114: 73700000 | X114: 0 | AA114: 73700000 | AB114: 67000000 | AC114: 2022-01-25 | AD114: 2022-02-01 | AE114: 2022-12-31 | AF114: 11 MESES | AQ114: Terminado | AR114: 0.9090909091
A115: 102 | B115: 2022 | C115: FDLF-CD-102-2022 | D115: https://community.secop.gov.co/Public/Tendering/OpportunityDetail/Index?noticeUID=CO1.NTC.2710096&isFromPublicArea=True&isModal=true&asPopupView=true | E115: Contratos de prestación de servicios profesionales y de apoyo a la gestión | F115: Contratación directa | G115: Prestación de servicios profesionales y de apoyo a la gestión, o para la ejecución de trabajos artísticos que sólo puedan encomendarse a determinadas personas naturales | H115: APOYAR JURÍDICAMENTE LA EJECUCIÓN DE LAS ACCIONES REQUERIDAS PARA LA DEPURACIÓN DE LAS ACTUACIONES ADMINISTRATIVAS QUE CURSAN EN LA ALCALDÍA LOCAL | I115: Inversión | L115: =IF(ISERROR(VLOOKUP(K115,#REF!,2,FALSE))," ",VLOOKUP(K115,#REF!,2,FALSE)) ->  | M115: =IF(ISERROR(VLOOKUP(K115,#REF!,3,FALSE))," ",VLOOKUP(K115,#REF!,3,FALSE)) ->  | O115: 1 | P115: 192xxx58 | Q115: ORLANDO ANTONIO CHINGATE CABRERA | R115: Persona Natural | V115: N/A | W115: 35000000 | X115: 0 | Y115: 1 | Z115: 17500000 | AA115: 52500000 | AB115: 50000000 | AC115: 2022-01-28 | AD115: 2022-02-01 | AE115: 2022-12-15 | AF115: 7 MESES | AG115: 1 | AH115: 105 | AQ115: Terminado | AR115: 0.9523809524
A116: 103 | B116: 2022 | C116: FDLF-CD-103-2022 | D116: https://community.secop.gov.co/Public/Tendering/OpportunityDetail/Index?noticeUID=CO1.NTC.2686759&isFromPublicArea=True&isModal=true&asPopupView=true | E116: Contratos de prestación de servicios profesionales y de apoyo a la gestión | F116: Contratación directa | G116: Prestación de servicios profesionales y de apoyo a la gestión, o para la ejecución de trabajos artísticos que sólo puedan encomendarse a determinadas personas naturales | H116: Prestar servicios profesionales a la Alcaldía local de Fontibón, para realizar el control, seguimiento, actualización y análisis del banco de programas y proyectos, así como también los instrumentos de la planeación. | I116: Inversión | L116: =IF(ISERROR(VLOOKUP(K116,#REF!,2,FALSE))," ",VLOOKUP(K116,#REF!,2,FALSE)) ->  | M116: =IF(ISERROR(VLOOKUP(K116,#REF!,3,FALSE))," ",VLOOKUP(K116,#REF!,3,FALSE)) ->  | O116: 1 | P116: 80xxx50 | Q116: JAVIER ARMANDO DIAZ MORALES | R116: Persona Natural | V116: N/A | W116: 60500000 | X116: 0 | Y116: 1 | Z116: 1833333 | AA116: 62333333 | AB116: 55000000 | AC116: 2022-01-26 | AD116: 2022-02-01 | AE116: 2023-01-10 | AF116: 11 MESES | AG116: 1 | AH116: 10 | AQ116: Terminado | AR116: 0.8823529459
A117: 104 | B117: 2022 | C117: FDLF-CD-104-2022 | D117: https://community.secop.gov.co/Public/Tendering/OpportunityDetail/Index?noticeUID=CO1.NTC.2735187&isFromPublicArea=True&isModal=true&asPopupView=true | E117: Contratos de prestación de servicios profesionales y de apoyo a la gestión | F117: Contratación directa | G117: Prestación de servicios profesionales y de apoyo a la gestión, o para la ejecución de trabajos artísticos que sólo puedan encomendarse a determinadas personas naturales | H117: PRESTAR SERVICIOS DE APOYO TÉCNICO A LA ALCALDÍA LOCAL DE FONTIBÓN COMO MONITOR DEPORTIVO PARA LA FORMACIÓN DE LAS ESCUELAS DEPORTIVAS DE FONTIBÓN. | I117: Inversión | L117: =IF(ISERROR(VLOOKUP(K117,#REF!,2,FALSE))," ",VLOOKUP(K117,#REF!,2,FALSE)) ->  | M117: =IF(ISERROR(VLOOKUP(K117,#REF!,3,FALSE))," ",VLOOKUP(K117,#REF!,3,FALSE)) ->  | O117: 1 | P117: 102xxx64 | Q117: DIEGO FERNANDO ALARCON LARA | R117: Persona Natural | V117: N/A | W117: 19250000 | X117: 0 | Y117: 1 | Z117: 9625000 | AA117: 28875000 | AB117: 19250000 | AC117: 2022-01-28 | AD117: 2022-02-03 | AE117: 2022-12-17 | AF117: 7 MESES | AG117: 1 | AH117: 105 | AQ117: Terminado | AR117: 0.6666666667
A118: 105 | B118: 2022 | C118: FDLF-CD-105-2022 | D118: https://community.secop.gov.co/Public/Tendering/OpportunityDetail/Index?noticeUID=CO1.NTC.2733118&isFromPublicArea=True&isModal=true&asPopupView=true | E118: Contratos de prestación de servicios profesionales y de apoyo a la gestión | F118: Contratación directa | G118: Prestación de servicios profesionales y de apoyo a la gestión, o para la ejecución de trabajos artísticos que sólo puedan encomendarse a determinadas personas naturales | H118: PRESTAR SERVICIOS DE APOYO TÉCNICO A LA ALCALDÍA LOCAL DE FONTIBÓN COMO MONITOR DEPORTIVO PARA LA FORMACIÓN DE LAS ESCUELAS DEPORTIVAS DE FONTIBÓN | I118: Inversión | L118: =IF(ISERROR(VLOOKUP(K118,#REF!,2,FALSE))," ",VLOOKUP(K118,#REF!,2,FALSE)) ->  | M118: =IF(ISERROR(VLOOKUP(K118,#REF!,3,FALSE))," ",VLOOKUP(K118,#REF!,3,FALSE)) ->  | O118: 1 | P118: 101xxx31 | Q118: JENNIFER JOHANNA VILLAMIL DIAZ | R118: Persona Natural | V118: N/A | W118: 19250000 | X118: 0 | Y118: 1 | Z118: 9625000 | AA118: 28875000 | AB118: 27316667 | AC118: 2022-01-26 | AD118: 2022-02-03 | AE118: 2022-12-17 | AF118: 7 MESES | AG118: 1 | AH118: 105 | AQ118: Terminado | AR118: 0.9460317576
A119: 106 | B119: 2022 | C119: FDLF-CD-106-2022 | D119: https://community.secop.gov.co/Public/Tendering/OpportunityDetail/Index?noticeUID=CO1.NTC.2755962&isFromPublicArea=True&isModal=true&asPopupView=true | E119: Contratos de prestación de servicios profesionales y de apoyo a la gestión | F119: Contratación directa | G119: Prestación de servicios profesionales y de apoyo a la gestión, o para la ejecución de trabajos artísticos que sólo puedan encomendarse a determinadas personas naturales | H119: PRESTAR SERVICIOS DE APOYO TÉCNICO A LA ALCALDÍA LOCAL DE FONTIBÓN COMO MONITOR DEPORTIVO PARA LA FORMACIÓN DE LAS ESCUELAS DEPORTIVAS DE FONTIBÓN | I119: Inversión | L119: =IF(ISERROR(VLOOKUP(K119,#REF!,2,FALSE))," ",VLOOKUP(K119,#REF!,2,FALSE)) ->  | M119: =IF(ISERROR(VLOOKUP(K119,#REF!,3,FALSE))," ",VLOOKUP(K119,#REF!,3,FALSE)) ->  | O119: 1 | P119: 101xxx66 | Q119: JOHN ANDERSON SANCHEZ FIRACATIVE | R119: Persona Natural | V119: N/A | W119: 19250000 | X119: 0 | Y119: 1 | Z119: 9625000 | AA119: 28875000 | AB119: 27225000 | AC119: 2022-01-27 | AD119: 2022-02-04 | AE119: 2022-12-18 | AF119: 7 MESES | AG119: 1 | AH119: 105 | AQ119: Terminado | AR119: 0.9428571429
A120: 107 | B120: 2022 | C120: FDLF-CD-107-2022 | D120: https://community.secop.gov.co/Public/Tendering/OpportunityDetail/Index?noticeUID=CO1.NTC.2756969&isFromPublicArea=True&isModal=true&asPopupView=true | E120: Contratos de prestación de servicios profesionales y de apoyo a la gestión | F120: Contratación directa | G120: Prestación de servicios profesionales y de apoyo a la gestión, o para la ejecución de trabajos artísticos que sólo puedan encomendarse a determinadas personas naturales | H120: PRESTAR SERVICIOS DE APOYO TÉCNICO A LA ALCALDÍA LOCAL DE FONTIBÓN COMO MONITOR DEPORTIVO PARA LA FORMACIÓN DE LAS ESCUELAS DEPORTIVAS DE FONTIBÓN | I120: Inversión | L120: =IF(ISERROR(VLOOKUP(K120,#REF!,2,FALSE))," ",VLOOKUP(K120,#REF!,2,FALSE)) ->  | M120: =IF(ISERROR(VLOOKUP(K120,#REF!,3,FALSE))," ",VLOOKUP(K120,#REF!,3,FALSE)) ->  | O120: 1 | P120: 101xxx99 | Q120: WILLIAM JAVIER REYES RUGELES | R120: Persona Natural | V120: N/A | W120: 19250000 | X120: 0 | Y120: 1 | Z120: 9625000 | AA120: 28875000 | AB120: 27316667 | AC120: 2022-01-27 | AD120: 2022-02-03 | AE120: 2022-12-17 | AF120: 7 MESES | AG120: 1 | AH120: 105 | AQ120: Terminado | AR120: 0.9460317576
A121: 108 | B121: 2022 | C121: FDLF-CD-108-2022 | D121: https://community.secop.gov.co/Public/Tendering/OpportunityDetail/Index?noticeUID=CO1.NTC.2753119&isFromPublicArea=True&isModal=true&asPopupView=true | E121: Contratos de prestación de servicios profesionales y de apoyo a la gestión | F121: Contratación directa | G121: Prestación de servicios profesionales y de apoyo a la gestión, o para la ejecución de trabajos artísticos que sólo puedan encomendarse a determinadas personas naturales | H121: PRESTAR SERVICIOS DE APOYO TÉCNICO A LA ALCALDÍA LOCAL DE FONTIBÓN COMO MONITOR DEPORTIVO PARA LA FORMACIÓN DE LAS ESCUELAS DEPORTIVAS DE FONTIBÓN | I121: Inversión | L121: =IF(ISERROR(VLOOKUP(K121,#REF!,2,FALSE))," ",VLOOKUP(K121,#REF!,2,FALSE)) ->  | M121: =IF(ISERROR(VLOOKUP(K121,#REF!,3,FALSE))," ",VLOOKUP(K121,#REF!,3,FALSE)) ->  | O121: 1 | P121: 101xxx64 | Q121: ROBINSON GUSTAVO PINZON TORRES | R121: Persona Natural | V121: N/A | W121: 19250000 | X121: 0 | AA121: 19250000 | AB121: 16225000 | AC121: 2022-01-28 | AD121: 2022-02-04 | AE121: 2022-09-03 | AF121: 7 MESES | AQ121: Terminado | AR121: 0.8428571429
A122: 109 | B122: 2022 | C122: FDLF-CD-109-2022 | D122: https://community.secop.gov.co/Public/Tendering/OpportunityDetail/Index?noticeUID=CO1.NTC.2747080&isFromPublicArea=True&isModal=true&asPopupView=true | E122: Contratos de prestación de servicios profesionales y de apoyo a la gestión | F122: Contratación directa | G122: Prestación de servicios profesionales y de apoyo a la gestión, o para la ejecución de trabajos artísticos que sólo puedan encomendarse a determinadas personas naturales | H122: PRESTAR SERVICIOS COMO APOYO TÉCNICO Y OPERATIVO EN LA ALCALDÍA FONTIBÓN, PARA EL DESARROLLO DE TEMAS DEPORTIVOS Y RECREATIVOS | I122: Inversión | L122: =IF(ISERROR(VLOOKUP(K122,#REF!,2,FALSE))," ",VLOOKUP(K122,#REF!,2,FALSE)) ->  | M122: =IF(ISERROR(VLOOKUP(K122,#REF!,3,FALSE))," ",VLOOKUP(K122,#REF!,3,FALSE)) ->  | O122: 1 | P122: 101xxx67 | Q122: DORIS ADRIANA RODRIGUEZ FONSECA | R122: Persona Natural | V122: N/A | W122: 19250000 | X122: 0 | Y122: 1 | Z122: 9625000 | AA122: 28875000 | AB122: 21816667 | AC122: 2022-01-27 | AD122: 2022-02-03 | AE122: 2022-12-17 | AF122: 7 MESES | AG122: 1 | AH122: 105 | AQ122: Terminado | AR122: 0.7555555671
A123: 110 | B123: 2022 | C123: FDLF-CD-110-2022 | D123: https://community.secop.gov.co/Public/Tendering/OpportunityDetail/Index?noticeUID=CO1.NTC.2702427&isFromPublicArea=True&isModal=true&asPopupView=true | E123: Contratos de prestación de servicios profesionales y de apoyo a la gestión | F123: Contratación directa | G123: Prestación de servicios profesionales y de apoyo a la gestión, o para la ejecución de trabajos artísticos que sólo puedan encomendarse a determinadas personas naturales | H123: PRESTAR SERVICIOS PROFESIONALES PARA APOYAR LA FORMULACIÓN, SEGUIMIENTO Y SUPERVISIÓN DE LOS PROCESOS DERIVADOS DEL PROYECTO DE INVERSIÓN NO.1757, ORIENTADO A LOS TEMAS DEPORTIVOS DE ACTIVIDAD FÍSICA Y RECREATIVOS EN LA LOCALIDAD | I123: Inversión | L123: =IF(ISERROR(VLOOKUP(K123,#REF!,2,FALSE))," ",VLOOKUP(K123,#REF!,2,FALSE)) ->  | M123: =IF(ISERROR(VLOOKUP(K123,#REF!,3,FALSE))," ",VLOOKUP(K123,#REF!,3,FALSE)) ->  | O123: 1 | P123: 102xxx31 | Q123: LEONARDO NARVAEZ PUERTA | R123: Persona Natural | V123: N/A | W123: 31640000 | X123: 0 | Y123: 1 | Z123: 15820000 | AA123: 47460000 | AB123: 45200000 | AC123: 2022-01-25 | AD123: 2022-02-01 | AE123: 2022-12-15 | AF123: 7 MESES | AG123: 1 | AH123: 105 | AQ123: Terminado | AR123: 0.9523809524
A124: 111 | B124: 2022 | C124: FDLF-CD-111-2022 | D124: https://community.secop.gov.co/Public/Tendering/OpportunityDetail/Index?noticeUID=CO1.NTC.2710611&isFromPublicArea=True&isModal=true&asPopupView=true | E124: Contratos de prestación de servicios profesionales y de apoyo a la gestión | F124: Contratación directa | G124: Prestación de servicios profesionales y de apoyo a la gestión, o para la ejecución de trabajos artísticos que sólo puedan encomendarse a determinadas personas naturales | H124: PRESTAR SERVICIOS PROFESIONALES PARA APOYAR LA FORMULACIÓN, SEGUIMIENTO Y SUPERVISIÓN DE LOS PROCESOS DERIVADOS DEL PROYECTO DE INVERSIÓN NO.1757, ORIENTADO A LOS TEMAS DEPORTIVOS DE ACTIVIDAD FÍSICA Y RECREATIVOS EN LA LOCALIDAD | I124: Inversión | L124: =IF(ISERROR(VLOOKUP(K124,#REF!,2,FALSE))," ",VLOOKUP(K124,#REF!,2,FALSE)) ->  | M124: =IF(ISERROR(VLOOKUP(K124,#REF!,3,FALSE))," ",VLOOKUP(K124,#REF!,3,FALSE)) ->  | O124: 1 | P124: 101xxx81 | Q124: JOHN FREDDY AMAYA MORENO | R124: Persona Natural | V124: N/A | W124: 31640000 | X124: 0 | Y124: 1 | Z124: 15820000 | AA124: 47460000 | AB124: 40680000 | AC124: 2022-01-26 | AD124: 2022-02-01 | AE124: 2022-12-15 | AF124: 7 MESES | AG124: 1 | AH124: 105 | AQ124: Terminado | AR124: 0.8571428571
A125: 112 | B125: 2022 | C125: FDLF-CD-112-2022 | D125: https://community.secop.gov.co/Public/Tendering/OpportunityDetail/Index?noticeUID=CO1.NTC.2726546&isFromPublicArea=True&isModal=true&asPopupView=true | E125: Contratos de prestación de servicios profesionales y de apoyo a la gestión | F125: Contratación directa | G125: Prestación de servicios profesionales y de apoyo a la gestión, o para la ejecución de trabajos artísticos que sólo puedan encomendarse a determinadas personas naturales | H125: PRESTAR SERVICIOS DE APOYO A LA GESTION EN TEMAS OPERATIVOS Y LOGÍSTICOS DEL DESPACHO DE LA ALCALDÍA LOCAL DE FONTIBÓN. | I125: Inversión | L125: =IF(ISERROR(VLOOKUP(K125,#REF!,2,FALSE))," ",VLOOKUP(K125,#REF!,2,FALSE)) ->  | M125: =IF(ISERROR(VLOOKUP(K125,#REF!,3,FALSE))," ",VLOOKUP(K125,#REF!,3,FALSE)) ->  | O125: 1 | P125: 101xxx22 | Q125: JOHANA VITELBINA BERMUDEZ | R125: Persona Natural | V125: N/A | W125: 39600000 | X125: 0 | AA125: 39600000 | AB125: 36000000 | AC125: 2022-01-26 | AD125: 2022-02-01 | AE125: 2022-12-31 | AF125: 11 MESES | AQ125: Terminado | AR125: 0.9090909091
A126: 113 | B126: 2022 | C126: FDLF-CD-113-2022 | D126: https://community.secop.gov.co/Public/Tendering/OpportunityDetail/Index?noticeUID=CO1.NTC.2716115&isFromPublicArea=True&isModal=true&asPopupView=true | E126: Contratos de prestación de servicios profesionales y de apoyo a la gestión | F126: Contratación directa | G126: Prestación de servicios profesionales y de apoyo a la gestión, o para la ejecución de trabajos artísticos que sólo puedan encomendarse a determinadas personas naturales | H126: PRESTAR SERVICIOS DE APOYO TÉCNICO A LA ALCALDÍA LOCAL DE FONTIBÓN EN EL MARCO DEL PROYECTO 1768 | I126: Inversión | L126: =IF(ISERROR(VLOOKUP(K126,#REF!,2,FALSE))," ",VLOOKUP(K126,#REF!,2,FALSE)) ->  | M126: =IF(ISERROR(VLOOKUP(K126,#REF!,3,FALSE))," ",VLOOKUP(K126,#REF!,3,FALSE)) ->  | O126: 1 | P126: 100xxx67 | Q126: LAURA DANIELA BARRETO MOLINA | R126: Persona Natural | V126: N/A | W126: 24500000 | X126: 0 | Y126: 1 | Z126: 12250000 | AA126: 36750000 | AB126: 24500000 | AC126: 2022-01-26 | AD126: 2022-02-04 | AE126: 2022-12-18 | AF126: 7 MESES | AG126: 1 | AH126: 105 | AI126: 52200812 | AJ126: ANDREA MARTINEZ PINEDA | AK126: 2022-04-11 | AQ126: Terminado | AR126: 0.6666666667
A127: 114 | B127: 2022 | C127: FDLF-CD-114-2022 | D127: https://community.secop.gov.co/Public/Tendering/OpportunityDetail/Index?noticeUID=CO1.NTC.2714599&isFromPublicArea=True&isModal=true&asPopupView=true | E127: Contratos de prestación de servicios profesionales y de apoyo a la gestión | F127: Contratación directa | G127: Prestación de servicios profesionales y de apoyo a la gestión, o para la ejecución de trabajos artísticos que sólo puedan encomendarse a determinadas personas naturales | H127: PRESTAR SERVICIOS DE APOYO COMO AUXILIAR ADMINISTRATIVO Y OPERATIVO A LA ALCALDÍA LOCAL DE FONTIBÓN EN EL MARCO DEL PROYECTO DE INVERSIÒN No 1768 | I127: Inversión | L127: =IF(ISERROR(VLOOKUP(K127,#REF!,2,FALSE))," ",VLOOKUP(K127,#REF!,2,FALSE)) ->  | M127: =IF(ISERROR(VLOOKUP(K127,#REF!,3,FALSE))," ",VLOOKUP(K127,#REF!,3,FALSE)) ->  | O127: 1 | P127: 102xxx17 | Q127: KEVIN JEAN POLL AGUDELO MURCIA | R127: Persona Natural | V127: N/A | W127: 17500000 | X127: 0 | Y127: 1 | Z127: 8750000 | AA127: 26250000 | AB127: 24833333 | AC127: 2022-01-26 | AD127: 2022-02-03 | AE127: 2022-12-17 | AF127: 7 MESES | AG127: 1 | AH127: 105 | AQ127: Terminado | AR127: 0.9460317333
A128: 115 | B128: 2022 | C128: FDLF-CD-115-2022 | D128: https://community.secop.gov.co/Public/Tendering/OpportunityDetail/Index?noticeUID=CO1.NTC.2730639&isFromPublicArea=True&isModal=true&asPopupView=true | E128: Contratos de prestación de servicios profesionales y de apoyo a la gestión | F128: Contratación directa | G128: Prestación de servicios profesionales y de apoyo a la gestión, o para la ejecución de trabajos artísticos que sólo puedan encomendarse a determinadas personas naturales | H128: RESTAR SERVICIOS DE APOYO COMO AUXILIAR ADMINISTRATIVO Y OPERATIVO A LA ALCALDÍA LOCAL DE FONTIBÓN EN EL MARCO DEL PROYECTO DE INVERSIÒN No 1768. | I128: Inversión | L128: =IF(ISERROR(VLOOKUP(K128,#REF!,2,FALSE))," ",VLOOKUP(K128,#REF!,2,FALSE)) ->  | M128: =IF(ISERROR(VLOOKUP(K128,#REF!,3,FALSE))," ",VLOOKUP(K128,#REF!,3,FALSE)) ->  | O128: 1 | P128: 119xxx42 | Q128: ESTEFANIA PEÑA RUIZ | R128: Persona Natural | V128: N/A | W128: 17500000 | X128: 0 | AA128: 17500000 | AB128: 17500000 | AC128: 2022-01-26 | AD128: 2022-02-03 | AE128: 2022-09-02 | AF128: 7 MESES | AQ128: Terminado | AR128: 1
A129: 116 | B129: 2022 | C129: FDLF-CD-116-2022 | D129: https://community.secop.gov.co/Public/Tendering/OpportunityDetail/Index?noticeUID=CO1.NTC.2685517&isFromPublicArea=True&isModal=true&asPopupView=true | E129: Contratos de prestación de servicios profesionales y de apoyo a la gestión | F129: Contratación directa | G129: Prestación de servicios profesionales y de apoyo a la gestión, o para la ejecución de trabajos artísticos que sólo puedan encomendarse a determinadas personas naturales | H129: APOYAR JURÍDICAMENTE LA EJECUCIÓN DE LAS ACCIONES REQUERIDAS PARA LA DEPURACIÓN DE LAS ACTUACIONES ADMINISTRATIVAS QUE CURSAN EN LA ALCALDÍA LOCAL | I129: Inversión | L129: =IF(ISERROR(VLOOKUP(K129,#REF!,2,FALSE))," ",VLOOKUP(K129,#REF!,2,FALSE)) ->  | M129: =IF(ISERROR(VLOOKUP(K129,#REF!,3,FALSE))," ",VLOOKUP(K129,#REF!,3,FALSE)) ->  | O129: 1 | P129: 79xxx65 | Q129: FRANCISCO JIMENEZ BEDOYA | R129: Persona Natural | V129: N/A | W129: 35000000 | X129: 0 | AA129: 35000000 | AB129: 35000000 | AC129: 2022-01-25 | AD129: 2022-02-01 | AE129: 2022-08-31 | AF129: 7 MESES | AQ129: Terminado | AR129: 1
A130: 117 | B130: 2022 | C130: FDLF-CD-117-2022 | D130: https://community.secop.gov.co/Public/Tendering/OpportunityDetail/Index?noticeUID=CO1.NTC.2740219&isFromPublicArea=True&isModal=true&asPopupView=true | E130: Contratos de prestación de servicios profesionales y de apoyo a la gestión | F130: Contratación directa | G130: Prestación de servicios profesionales y de apoyo a la gestión, o para la ejecución de trabajos artísticos que sólo puedan encomendarse a determinadas personas naturales | H130: PRESTAR SERVICIOS PROFESIONALES DE APOYO EN LOS PROCESOS DE COBRO PERSUASIVO DE LAS OBLIGACIONES CLARAS, EXPRESAS, Y ACTUALMENTE EXIGIBLES, POR CONCEPTO DE MULTAS EN EL MARCO DE LA GESTIÓN POLICIVA. | I130: Inversión | L130: =IF(ISERROR(VLOOKUP(K130,#REF!,2,FALSE))," ",VLOOKUP(K130,#REF!,2,FALSE)) ->  | M130: =IF(ISERROR(VLOOKUP(K130,#REF!,3,FALSE))," ",VLOOKUP(K130,#REF!,3,FALSE)) ->  | O130: 1 | P130: 531xxx51 | Q130: DIANA CAROLINA LEON VALERO | R130: Persona Natural | V130: N/A | W130: 36050000 | X130: 0 | Y130: 1 | Z130: 18025000 | AA130: 54075000 | AB130: 36050000 | AC130: 2022-01-26 | AD130: 2022-02-02 | AE130: 2022-12-16 | AF130: 7 MESES | AG130: 1 | AH130: 105 | AI130: 79469522 | AJ130: JAVIER OLAYA MONTES | AK130: 2022-08-31 | AQ130: Terminado | AR130: 0.6666666667
A131: 118 | B131: 2022 | C131: FDLF-CD-118-2022 | D131: https://community.secop.gov.co/Public/Tendering/OpportunityDetail/Index?noticeUID=CO1.NTC.2741029&isFromPublicArea=True&isModal=true&asPopupView=true | E131: Contratos de prestación de servicios profesionales y de apoyo a la gestión | F131: Contratación directa | G131: Prestación de servicios profesionales y de apoyo a la gestión, o para la ejecución de trabajos artísticos que sólo puedan encomendarse a determinadas personas naturales | H131: PRESTAR SERVICIOS PROFESIONALES PARA APOYAR LA FORMULACIÓN, GESTIÓN Y SEGUIMIENTO DE ACTIVIDADES ENFOCADAS A LA GESTIÓN AMBIENTAL EXTERNA, ENCAMINADAS A LA MITIGACIÓN DE LOS DIFERENTES IMPACTOS AMBIENTALES Y LA CONSERVACIÓN DE LOS RECURSOS NATURALES DE LA LOCALIDAD. | I131: Inversión | L131: =IF(ISERROR(VLOOKUP(K131,#REF!,2,FALSE))," ",VLOOKUP(K131,#REF!,2,FALSE)) ->  | M131: =IF(ISERROR(VLOOKUP(K131,#REF!,3,FALSE))," ",VLOOKUP(K131,#REF!,3,FALSE)) ->  | O131: 1 | P131: 103xxx48 | Q131: MARIA CAMILA TALERO RAMOS | R131: Persona Natural | V131: N/A | W131: 31640000 | X131: 0 | AA131: 31640000 | AB131: 31640000 | AC131: 2022-01-27 | AD131: 2022-02-02 | AE131: 2022-09-01 | AF131: 7 MESES | AQ131: Terminado | AR131: 1
A132: 119 | B132: 2022 | C132: FDLF-CD-119-2022 | D132: https://community.secop.gov.co/Public/Tendering/OpportunityDetail/Index?noticeUID=CO1.NTC.2768020&isFromPublicArea=True&isModal=true&asPopupView=true | E132: Contratos de prestación de servicios profesionales y de apoyo a la gestión | F132: Contratación directa | G132: Prestación de servicios profesionales y de apoyo a la gestión, o para la ejecución de trabajos artísticos que sólo puedan encomendarse a determinadas personas naturales | H132: PRESTAR SERVICIOS TÉCNICOS PARA EL APOYO A LAS ACTIVIDADES CORRESPONDIENTES A LAS ACTIVIDADES OPERATIVAS DE MAQUINARIA PESADA PARA LA ALCALDÍA LOCAL DE FONTIBÓN | I132: Inversión | L132: =IF(ISERROR(VLOOKUP(K132,#REF!,2,FALSE))," ",VLOOKUP(K132,#REF!,2,FALSE)) ->  | M132: =IF(ISERROR(VLOOKUP(K132,#REF!,3,FALSE))," ",VLOOKUP(K132,#REF!,3,FALSE)) ->  | O132: 1 | P132: 101xxx53 | Q132: JUAN NICOLAS LOPEZ LEON | R132: Persona Natural | V132: N/A | W132: 25200000 | X132: 0 | Y132: 1 | Z132: 12600000 | AA132: 37800000 | AB132: 35880000 | AC132: 2022-01-28 | AD132: 2022-02-02 | AE132: 2022-12-16 | AF132: 7 MESES | AG132: 1 | AH132: 105 | AQ132: Terminado | AR132: 0.9492063492
A133: 120 | B133: 2022 | C133: FDLF-CD-120-2022 | D133: https://community.secop.gov.co/Public/Tendering/OpportunityDetail/Index?noticeUID=CO1.NTC.2757049&isFromPublicArea=True&isModal=true&asPopupView=true | E133: Contratos de prestación de servicios profesionales y de apoyo a la gestión | F133: Contratación directa | G133: Prestación de servicios profesionales y de apoyo a la gestión, o para la ejecución de trabajos artísticos que sólo puedan encomendarse a determinadas personas naturales | H133: APOYAR TÉCNICAMENTE LAS DISTINTAS ETAPAS DE LOS PROCESOS DE COMPETENCIA DE LAS INSPECCIONES DE POLICÍA DE LA LOCALIDAD, SEGÚN REPARTO | I133: Inversión | L133: =IF(ISERROR(VLOOKUP(K133,#REF!,2,FALSE))," ",VLOOKUP(K133,#REF!,2,FALSE)) ->  | M133: =IF(ISERROR(VLOOKUP(K133,#REF!,3,FALSE))," ",VLOOKUP(K133,#REF!,3,FALSE)) ->  | O133: 1 | P133: 795xxx43 | Q133: WILLIAM NIÑO LEAL | R133: Persona Natural | V133: N/A | W133: 36204000 | X133: 0 | Y133: 1 | Z133: 18102000 | AA133: 54306000 | AB133: 34997200 | AC133: 2022-01-28 | AD133: 2022-02-08 | AE133: 2022-12-22 | AF133: 7 MESES | AG133: 1 | AH133: 105 | AQ133: Terminado | AR133: 0.6444444444
A134: 121 | B134: 2022 | C134: FDLF-CD-121-2022 | D134: https://community.secop.gov.co/Public/Tendering/OpportunityDetail/Index?noticeUID=CO1.NTC.2747056&isFromPublicArea=True&isModal=true&asPopupView=true | E134: Contratos de prestación de servicios profesionales y de apoyo a la gestión | F134: Contratación directa | G134: Prestación de servicios profesionales y de apoyo a la gestión, o para la ejecución de trabajos artísticos que sólo puedan encomendarse a determinadas personas naturales | H134: APOYAR TÉCNICAMENTE LAS DISTINTAS ETAPAS DE LOS PROCESOS DE COMPETENCIA DE LAS INSPECCIONES DE POLICÍA DE LA LOCALIDAD, SEGÚN REPARTO. | I134: Inversión | L134: =IF(ISERROR(VLOOKUP(K134,#REF!,2,FALSE))," ",VLOOKUP(K134,#REF!,2,FALSE)) ->  | M134: =IF(ISERROR(VLOOKUP(K134,#REF!,3,FALSE))," ",VLOOKUP(K134,#REF!,3,FALSE)) ->  | O134: 1 | P134: 101xxx77 | Q134: JUAN CARLOS SARMIENTO | R134: Persona Natural | V134: N/A | W134: 36204000 | X134: 0 | AA134: 36204000 | AB134: 36204000 | AC134: 2022-01-28 | AD134: 2022-02-02 | AE134: 2022-09-01 | AF134: 7 MESES | AQ134: Terminado | AR134: 1
A135: 122 | B135: 2022 | C135: FDLF-CD-122-2022 | D135: https://community.secop.gov.co/Public/Tendering/OpportunityDetail/Index?noticeUID=CO1.NTC.2769010&isFromPublicArea=True&isModal=true&asPopupView=true | E135: Contratos de prestación de servicios profesionales y de apoyo a la gestión | F135: Contratación directa | G135: Prestación de servicios profesionales y de apoyo a la gestión, o para la ejecución de trabajos artísticos que sólo puedan encomendarse a determinadas personas naturales | H135: APOYAR TÉCNICAMENTE LAS DISTINTAS ETAPAS DE LOS PROCESOS DE COMPETENCIA DE LAS INSPECCIONES DE POLICÍA DE LA LOCALIDAD, SEGÚN REPARTO | I135: Inversión | L135: =IF(ISERROR(VLOOKUP(K135,#REF!,2,FALSE))," ",VLOOKUP(K135,#REF!,2,FALSE)) ->  | M135: =IF(ISERROR(VLOOKUP(K135,#REF!,3,FALSE))," ",VLOOKUP(K135,#REF!,3,FALSE)) ->  | O135: 1 | P135: 333xxx10 | Q135: JUDY RUBIETH SANCHEZ SALDAÑA | R135: Persona Natural | V135: N/A | W135: 36204000 | X135: 0 | AA135: 36204000 | AB135: 36204000 | AC135: 2022-01-28 | AD135: 2022-02-07 | AE135: 2022-09-06 | AF135: 7 MESES | AQ135: Terminado | AR135: 1
A136: 123 | B136: 2022 | C136: FDLF-CD-123-2022 | D136: https://community.secop.gov.co/Public/Tendering/OpportunityDetail/Index?noticeUID=CO1.NTC.2767577&isFromPublicArea=True&isModal=true&asPopupView=true | E136: Contratos de prestación de servicios profesionales y de apoyo a la gestión | F136: Contratación directa | G136: Prestación de servicios profesionales y de apoyo a la gestión, o para la ejecución de trabajos artísticos que sólo puedan encomendarse a determinadas personas naturales | H136: APOYAR ADMINISTRATIVA Y ASISTENCIALMENTE A LAS INSPECCIONES DE POLICÍA DE LA LOCALIDAD | I136: Inversión | L136: =IF(ISERROR(VLOOKUP(K136,#REF!,2,FALSE))," ",VLOOKUP(K136,#REF!,2,FALSE)) ->  | M136: =IF(ISERROR(VLOOKUP(K136,#REF!,3,FALSE))," ",VLOOKUP(K136,#REF!,3,FALSE)) ->  | O136: 1 | P136: 101xxx43 | Q136: JUAN ANTONIO ESPITIA ACERO | R136: Persona Natural | V136: N/A | W136: 17500000 | X136: 0 | Y136: 1 | Z136: 8750000 | AA136: 26250000 | AB136: 25000000 | AC136: 2022-01-28 | AD136: 2022-02-02 | AE136: 2022-12-16 | AF136: 7 MESES | AG136: 1 | AH136: 105 | AI136: 1023005369 | AJ136: YEIMY ANDREA POVEDA HUERTAS | AK136: 2022-03-11 | AQ136: Terminado | AR136: 0.9523809524
A137: 124 | B137: 2022 | C137: FDLF-CD-124-2022 | D137: https://community.secop.gov.co/Public/Tendering/OpportunityDetail/Index?noticeUID=CO1.NTC.2765159&isFromPublicArea=True&isModal=true&asPopupView=true | E137: Contratos de prestación de servicios profesionales y de apoyo a la gestión | F137: Contratación directa | G137: Prestación de servicios profesionales y de apoyo a la gestión, o para la ejecución de trabajos artísticos que sólo puedan encomendarse a determinadas personas naturales | H137: APOYAR ADMINISTRATIVA Y ASISTENCIALMENTE A LAS INSPECCIONES DE POLICÍA DE LA LOCALIDAD | I137: Inversión | L137: =IF(ISERROR(VLOOKUP(K137,#REF!,2,FALSE))," ",VLOOKUP(K137,#REF!,2,FALSE)) ->  | M137: =IF(ISERROR(VLOOKUP(K137,#REF!,3,FALSE))," ",VLOOKUP(K137,#REF!,3,FALSE)) ->  | O137: 1 | P137: 101xxx94 | Q137: KEVIN ANDRES BEJARANO MENDIETA | R137: Persona Natural | V137: N/A | W137: 17500000 | X137: 0 | Y137: 1 | Z137: 8750000 | AA137: 26250000 | AC137: 2022-01-28 | AD137: 2022-02-02 | AE137: 2022-12-16 | AF137: 7 MESES | AG137: 1 | AH137: 105 | AI137: 1030674943 | AJ137: NILSON FARIC GUTIERREZ GARZON | AK137: 2022-07-29 | AM137: 1073696158 | AN137: ANGIE PAOLA TABARES FAJARDO | AO137: 2022-07-29 | AQ137: Terminado | AR137: 0
A138: 125 | B138: 2022 | C138: FDLF-CD-125-2022 | D138: https://community.secop.gov.co/Public/Tendering/OpportunityDetail/Index?noticeUID=CO1.NTC.2791852&isFromPublicArea=True&isModal=true&asPopupView=true | E138: Contratos de prestación de servicios profesionales y de apoyo a la gestión | F138: Contratación directa | G138: Prestación de servicios profesionales y de apoyo a la gestión, o para la ejecución de trabajos artísticos que sólo puedan encomendarse a determinadas personas naturales | H138: PRESTAR SERVICIOS TÉCNICOS PARA EL APOYO ADMINISTRATIVO A LAS ACTIVIDADES CORRESPONDIENTES A TEMAS DE MALLA VIAL, OBRAS, ESPACIO PÚBLICO E INFRAESTRUCTURA PARA LA ALCALDÍA LOCAL DE FONTIBÓN | I138: Inversión | L138: =IF(ISERROR(VLOOKUP(K138,#REF!,2,FALSE))," ",VLOOKUP(K138,#REF!,2,FALSE)) ->  | M138: =IF(ISERROR(VLOOKUP(K138,#REF!,3,FALSE))," ",VLOOKUP(K138,#REF!,3,FALSE)) ->  | O138: 1 | P138: 352xxx67 | Q138: MARIA JOHANA LOPEZ ULCUE | R138: Persona Natural | V138: N/A | W138: 27398000 | X138: 0 | Y138: 1 | Z138: 13699000 | AA138: 41097000 | AB138: 39140000 | AC138: 2022-01-28 | AD138: 2022-02-01 | AE138: 2022-12-15 | AF138: 7 MESES | AG138: 1 | AH138: 105 | AQ138: Terminado | AR138: 0.9523809524
A139: 126 | B139: 2022 | C139: FDLF-CD-126-2022 | D139: https://community.secop.gov.co/Public/Tendering/OpportunityDetail/Index?noticeUID=CO1.NTC.2765119&isFromPublicArea=True&isModal=true&asPopupView=true | E139: Contratos de prestación de servicios profesionales y de apoyo a la gestión | F139: Contratación directa | G139: Prestación de servicios profesionales y de apoyo a la gestión, o para la ejecución de trabajos artísticos que sólo puedan encomendarse a determinadas personas naturales | H139: PRESTAR SERVICIOS TÉCNICOS PARA EL APOYO A LAS ACTIVIDADES CORRESPONDIENTES A TEMAS DE MALLA VIAL, OBRAS, ESPACIO PÚBLICO E INFRAESTRUCTURA PARA LA ALCALDÍA LOCAL DE FONTIBÓN | I139: Inversión | L139: =IF(ISERROR(VLOOKUP(K139,#REF!,2,FALSE))," ",VLOOKUP(K139,#REF!,2,FALSE)) ->  | M139: =IF(ISERROR(VLOOKUP(K139,#REF!,3,FALSE))," ",VLOOKUP(K139,#REF!,3,FALSE)) ->  | O139: 1 | P139: 194xxx03 | Q139: EDGAR AUGUSTO GRANADOS MEJIA | R139: Persona Natural | V139: N/A | W139: 27398000 | X139: 0 | AA139: 27398000 | AB139: 27398000 | AC139: 2022-01-28 | AD139: 2022-02-02 | AE139: 2022-09-01 | AF139: 7 MESES | AQ139: Terminado | AR139: 1
A140: 127 | B140: 2022 | C140: FDLF-CD-127-2022 | D140: https://community.secop.gov.co/Public/Tendering/OpportunityDetail/Index?noticeUID=CO1.NTC.2794563&isFromPublicArea=True&isModal=true&asPopupView=true | E140: Contratos de prestación de servicios profesionales y de apoyo a la gestión | F140: Contratación directa | G140: Prestación de servicios profesionales y de apoyo a la gestión, o para la ejecución de trabajos artísticos que sólo puedan encomendarse a determinadas personas naturales | H140: PRESTAR SERVICIOS DE APOYO COMO AUXILIAR ADMINISTRATIVO Y OPERATIVO EN EL MARCO DEL PROYECTO DE INVERSIÓN No 1761 | I140: Inversión | L140: =IF(ISERROR(VLOOKUP(K140,#REF!,2,FALSE))," ",VLOOKUP(K140,#REF!,2,FALSE)) ->  | M140: =IF(ISERROR(VLOOKUP(K140,#REF!,3,FALSE))," ",VLOOKUP(K140,#REF!,3,FALSE)) ->  | O140: 1 | P140: 102xxx41 | Q140: JULIE ESTHER RAMIREZ TORRIJOS | R140: Persona Natural | V140: N/A | W140: 18200000 | X140: 0 | AA140: 18200000 | AB140: 18200000 | AC140: 2022-01-28 | AD140: 2022-02-07 | AE140: 2022-09-06 | AF140: 7 MESES | AQ140: Terminado | AR140: 1
A141: 128 | B141: 2022 | C141: FDLF-CD-128-2022 | D141: https://community.secop.gov.co/Public/Tendering/OpportunityDetail/Index?noticeUID=CO1.NTC.2793402&isFromPublicArea=True&isModal=true&asPopupView=true | E141: Contratos de prestación de servicios profesionales y de apoyo a la gestión | F141: Contratación directa | G141: Prestación de servicios profesionales y de apoyo a la gestión, o para la ejecución de trabajos artísticos que sólo puedan encomendarse a determinadas personas naturales | H141: PRESTAR SERVICIOS DE APOYO A LAS ACTIVIDADES OPERATIVAS Y ADMINISTRATIVAS DE LA JUNTA ADMINISTRADORA LOCAL | I141: Inversión | L141: =IF(ISERROR(VLOOKUP(K141,#REF!,2,FALSE))," ",VLOOKUP(K141,#REF!,2,FALSE)) ->  | M141: =IF(ISERROR(VLOOKUP(K141,#REF!,3,FALSE))," ",VLOOKUP(K141,#REF!,3,FALSE)) ->  | O141: 1 | P141: 194xxx66 | Q141: RAUL ARMANDO LUQUE RUIZ | R141: Persona Natural | V141: N/A | W141: 17500000 | X141: 0 | AA141: 17500000 | AB141: 17500000 | AC141: 2022-01-28 | AD141: 2022-02-04 | AE141: 2022-09-30 | AF141: 7 MESES | AQ141: Terminado | AR141: 1
A142: 129 | B142: 2022 | C142: FDLF-CD-129-2022 | D142: https://community.secop.gov.co/Public/Tendering/OpportunityDetail/Index?noticeUID=CO1.NTC.2758886&isFromPublicArea=True&isModal=true&asPopupView=true | E142: Contratos de prestación de servicios profesionales y de apoyo a la gestión | F142: Contratación directa | G142: Prestación de servicios profesionales y de apoyo a la gestión, o para la ejecución de trabajos artísticos que sólo puedan encomendarse a determinadas personas naturales | H142: PRESTAR SERVICIOS PROFESIONALES DE APOYO JURÍDICO EN LAS ETAPAS CONTRACTUALES, REVISIÓN DE PAGOS, LIQUIDACIÓN DE CONTRATOS Y APOYO EN LA DEPURACIÓN DE OBLIGACIONES POR PAGAR | I142: Inversión | L142: =IF(ISERROR(VLOOKUP(K142,#REF!,2,FALSE))," ",VLOOKUP(K142,#REF!,2,FALSE)) ->  | M142: =IF(ISERROR(VLOOKUP(K142,#REF!,3,FALSE))," ",VLOOKUP(K142,#REF!,3,FALSE)) ->  | O142: 1 | P142: 523xxx66 | Q142: YARSELY SUAREZ SUAREZ | R142: Persona Natural | V142: N/A | W142: 37100000 | X142: 0 | Y142: 1 | Z142: 18550000 | AA142: =+W142+X142+Z142 -> 55650000 | AB142: 52470000 | AC142: 2022-01-28 | AD142: 2022-02-04 | AE142: 2022-12-18 | AF142: 7 MESES | AG142: 1 | AH142: 105 | AQ142: Terminado | AR142: =IF(ISERROR(AB142/AA142),"-",(AB142/AA142)) -> 0.9428571429
A143: 130 | B143: 2022 | C143: FDLF-CD-130-2022 | D143: https://community.secop.gov.co/Public/Tendering/OpportunityDetail/Index?noticeUID=CO1.NTC.2735640&isFromPublicArea=True&isModal=true&asPopupView=true | E143: Contratos de prestación de servicios profesionales y de apoyo a la gestión | F143: Contratación directa | G143: Prestación de servicios profesionales y de apoyo a la gestión, o para la ejecución de trabajos artísticos que sólo puedan encomendarse a determinadas personas naturales | H143: SERVICIOS PROFESIONALES PARA LA OPERACIÓN, PRESTACIÓN, SEGUIMIENTO Y CUMPLIMIENTO DE LOS PROCEDIMIENTOS ADMINISTRATIVOS, OPERATIVOS Y PROGRAMÁTICOS DEL SERVICIO APOYO ECONÓMICO TIPO C, QUE CONTRIBUYAN A LA GARANTÍA DE LOS DERECHOS DE LA POBLACIÓN MAYOR EN EL MARCO DE LA POLÍTICA PÚBLICA SOCIAL PARA EL ENVEJECIMIENTO Y LA VEJEZ EN EL DISTRITO CAPITAL A CARGO DE LA ALCALDÍA LOCAL | I143: Inversión | L143: =IF(ISERROR(VLOOKUP(K143,#REF!,2,FALSE))," ",VLOOKUP(K143,#REF!,2,FALSE)) ->  | M143: =IF(ISERROR(VLOOKUP(K143,#REF!,3,FALSE))," ",VLOOKUP(K143,#REF!,3,FALSE)) ->  | O143: 1 | P143: 397xxx66 | Q143: EDITH LUCIA QUECANO CARDENAS | R143: Persona Natural | V143: N/A | W143: 35000000 | X143: 0 | Y143: 1 | Z143: 17500000 | AA143: 52500000 | AB143: 50000000 | AC143: 2022-01-26 | AD143: 2022-02-01 | AE143: 2022-12-15 | AF143: 7 MESES | AG143: 1 | AH143: 105 | AQ143: Terminado | AR143: 0.9523809524
A144: 131 | B144: 2022 | C144: FDLF-CD-131-2022 | D144: https://community.secop.gov.co/Public/Tendering/OpportunityDetail/Index?noticeUID=CO1.NTC.2711609&isFromPublicArea=True&isModal=true&asPopupView=true | E144: Contratos de prestación de servicios profesionales y de apoyo a la gestión | F144: Contratación directa | G144: Prestación de servicios profesionales y de apoyo a la gestión, o para la ejecución de trabajos artísticos que sólo puedan encomendarse a determinadas personas naturales | H144: PRESTAR SERVICIOS PROFESIONALES PARA APOYAR LA FORMULACIÓN, SEGUIMIENTO Y APOYO A LA SUPERVISIÓN DE LOS PROCESOS CONTRACTUALES DERIVADOS DEL PROYECTO DE INVERSIÓN NO.1768, EN EL MARCO DE LAS NECESIDADES DE LA ALCALDÍA LOCAL DE FONTIBÓN | I144: Inversión | L144: =IF(ISERROR(VLOOKUP(K144,#REF!,2,FALSE))," ",VLOOKUP(K144,#REF!,2,FALSE)) ->  | M144: =IF(ISERROR(VLOOKUP(K144,#REF!,3,FALSE))," ",VLOOKUP(K144,#REF!,3,FALSE)) ->  | O144: 1 | P144: 795xxx55 | Q144: RAMIRO CAMARGO MAYORGA | R144: Persona Natural | V144: N/A | W144: 35000000 | X144: 0 | Y144: 1 | Z144: 17500000 | AA144: 52500000 | AB144: 35000000 | AC144: 2022-01-26 | AD144: 2022-02-01 | AE144: 2022-12-15 | AF144: 7 MESES | AG144: 1 | AH144: 105 | AI144: 79671289 | AJ144: JUAN CARLOS LEON GARCIA | AK144: 2022-06-30 | AQ144: Terminado | AR144: 0.6666666667
A145: 132 | B145: 2022 | C145: FDLF-CD-132-2022 | D145: https://community.secop.gov.co/Public/Tendering/OpportunityDetail/Index?noticeUID=CO1.NTC.2735556&isFromPublicArea=True&isModal=true&asPopupView=true | E145: Contratos de prestación de servicios profesionales y de apoyo a la gestión | F145: Contratación directa | G145: Prestación de servicios profesionales y de apoyo a la gestión, o para la ejecución de trabajos artísticos que sólo puedan encomendarse a determinadas personas naturales | H145: PRESTAR SERVICIOS COMO PROFESIONAL PARA APOYAR A LA ALCALDÍA LOCAL DE FONTIBÓN EN EL DESARROLLO DEL PROYECTO 1762 EN LOS COMPONENTES DE ORIENTACIÓN, ASESORÍA FAMILIAR, POSICIONAMIENTO Y PROMOCIÓN DEL BUEN TRATO | I145: Inversión | L145: =IF(ISERROR(VLOOKUP(K145,#REF!,2,FALSE))," ",VLOOKUP(K145,#REF!,2,FALSE)) ->  | M145: =IF(ISERROR(VLOOKUP(K145,#REF!,3,FALSE))," ",VLOOKUP(K145,#REF!,3,FALSE)) ->  | O145: 1 | P145: 102xxx17 | Q145: ERIKA CONSTANZA SOPO GARZON | R145: Persona Natural | V145: N/A | W145: 31640000 | X145: 0 | AA145: 31640000 | AB145: 8889333 | AC145: 2022-01-27 | AD145: 2022-02-02 | AE145: 2022-05-13 | AF145: 7 MESES | AQ145: Terminado | AR145: 0.2809523704
A146: 133 | B146: 2022 | C146: FDLF-CD-133-2022 | D146: https://community.secop.gov.co/Public/Tendering/OpportunityDetail/Index?noticeUID=CO1.NTC.2736756&isFromPublicArea=True&isModal=true&asPopupView=true | E146: Contratos de prestación de servicios profesionales y de apoyo a la gestión | F146: Contratación directa | G146: Prestación de servicios profesionales y de apoyo a la gestión, o para la ejecución de trabajos artísticos que sólo puedan encomendarse a determinadas personas naturales | H146: PRESTAR SERVICIOS COMO PROFESIONAL PARA APOYAR A LA ALCALDÍA LOCAL DE FONTIBÓN EN EL DESARROLLO DEL PROYECTO 1762 EN LOS COMPONENTES DE ORIENTACIÓN, ASESORÍA FAMILIAR, POSICIONAMIENTO Y PROMOCIÓN DEL BUEN TRATO | I146: Inversión | L146: =IF(ISERROR(VLOOKUP(K146,#REF!,2,FALSE))," ",VLOOKUP(K146,#REF!,2,FALSE)) ->  | M146: =IF(ISERROR(VLOOKUP(K146,#REF!,3,FALSE))," ",VLOOKUP(K146,#REF!,3,FALSE)) ->  | O146: 1 | P146: 524xxx98 | Q146: JENNY GISELA CUERVO LOPEZ | R146: Persona Natural | V146: N/A | W146: 31640000 | X146: 0 | Y146: 1 | Z146: 15820000 | AA146: 47460000 | AB146: 45200000 | AC146: 2022-01-26 | AD146: 2022-02-01 | AE146: 2022-12-15 | AF146: 7 MESES | AG146: 1 | AH146: 105 | AQ146: Terminado | AR146: 0.9523809524
A147: 134 | B147: 2022 | C147: FDLF-CD-134-2022 | D147: https://community.secop.gov.co/Public/Tendering/OpportunityDetail/Index?noticeUID=CO1.NTC.2737036&isFromPublicArea=True&isModal=true&asPopupView=true | E147: Contratos de prestación de servicios profesionales y de apoyo a la gestión | F147: Contratación directa | G147: Prestación de servicios profesionales y de apoyo a la gestión, o para la ejecución de trabajos artísticos que sólo puedan encomendarse a determinadas personas naturales | H147: PRESTAR SERVICIOS COMO PROFESIONAL PARA APOYAR A LA ALCALDÍA LOCAL DE FONTIBÓN EN EL DESARROLLO DEL PROYECTO 1762 EN LOS COMPONENTES DE ORIENTACIÓN, ASESORÍA FAMILIAR, POSICIONAMIENTO Y PROMOCIÓN DEL BUEN TRATO | I147: Inversión | L147: =IF(ISERROR(VLOOKUP(K147,#REF!,2,FALSE))," ",VLOOKUP(K147,#REF!,2,FALSE)) ->  | M147: =IF(ISERROR(VLOOKUP(K147,#REF!,3,FALSE))," ",VLOOKUP(K147,#REF!,3,FALSE)) ->  | O147: 1 | P147: 103xxx01 | Q147: MARIA PAULA MALDONADO ROLDAN | R147: Persona Natural | V147: N/A | W147: 31640000 | X147: -16272000 | AA147: 15368000 | AB147: 15368000 | AC147: 2022-01-26 | AD147: 2022-02-02 | AE147: 2022-05-13 | AF147: 7 MESES | AQ147: Terminado | AR147: 1
A148: 135 | B148: 2022 | C148: FDLF-CD-135-2022 | D148: https://community.secop.gov.co/Public/Tendering/OpportunityDetail/Index?noticeUID=CO1.NTC.2711370&isFromPublicArea=True&isModal=true&asPopupView=true | E148: Contratos de prestación de servicios profesionales y de apoyo a la gestión | F148: Contratación directa | G148: Prestación de servicios profesionales y de apoyo a la gestión, o para la ejecución de trabajos artísticos que sólo puedan encomendarse a determinadas personas naturales | H148: PRESTAR SERVICIOS TÉCNICOS PARA EL APOYO A LAS ACTIVIDADES CORRESPONDIENTES A TEMAS DE MALLA VIAL, OBRAS, ESPACIO PÚBLICO E INFRAESTRUCTURA PARA LA ALCALDÍA LOCAL DE FONTIBÓN | I148: Inversión | L148: =IF(ISERROR(VLOOKUP(K148,#REF!,2,FALSE))," ",VLOOKUP(K148,#REF!,2,FALSE)) ->  | M148: =IF(ISERROR(VLOOKUP(K148,#REF!,3,FALSE))," ",VLOOKUP(K148,#REF!,3,FALSE)) ->  | O148: 1 | P148: 156xxx77 | Q148: RAFAEL CESAR LOPEZ PEREZ | R148: Persona Natural | V148: N/A | W148: 27398000 | X148: 0 | Y148: 1 | Z148: 13699000 | AA148: 41097000 | AB148: 39140000 | AC148: 2022-01-26 | AD148: 2022-02-01 | AE148: 2022-12-15 | AF148: 7 MESES | AG148: 1 | AH148: 105 | AQ148: Terminado | AR148: 0.9523809524
A149: 136 | B149: 2022 | C149: FDLF-CD-136-2022 | D149: https://community.secop.gov.co/Public/Tendering/OpportunityDetail/Index?noticeUID=CO1.NTC.2737196&isFromPublicArea=True&isModal=true&asPopupView=true | E149: Contratos de prestación de servicios profesionales y de apoyo a la gestión | F149: Contratación directa | G149: Prestación de servicios profesionales y de apoyo a la gestión, o para la ejecución de trabajos artísticos que sólo puedan encomendarse a determinadas personas naturales | H149: PRESTAR SERVICIOS DE APOYO EN LAS ACTIVIDADES DE SEGURIDAD Y CONVIVENCIA CIUDADANA, DE ACUERDO CON LAS NECESIDADES Y ESTRATEGIAS EMANADAS DESDE LA ALCALDÍA LOCAL DE FONTIBÓN | I149: Inversión | L149: =IF(ISERROR(VLOOKUP(K149,#REF!,2,FALSE))," ",VLOOKUP(K149,#REF!,2,FALSE)) ->  | M149: =IF(ISERROR(VLOOKUP(K149,#REF!,3,FALSE))," ",VLOOKUP(K149,#REF!,3,FALSE)) ->  | O149: 1 | P149: 101xxx74 | Q149: PAOLA ANDREA QUIROGA ARIAS | R149: Persona Natural | V149: N/A | W149: 17500000 | X149: 0 | Y149: 1 | Z149: 8750000 | AA149: 26250000 | AB149: 24916667 | AC149: 2022-01-27 | AD149: 2022-02-02 | AE149: 2022-12-16 | AF149: 7 MESES | AG149: 1 | AH149: 105 | AQ149: Terminado | AR149: 0.9492063619
A150: 137 | B150: 2022 | C150: FDLF-CD-137-2022 | D150: https://community.secop.gov.co/Public/Tendering/OpportunityDetail/Index?noticeUID=CO1.NTC.2698819&isFromPublicArea=True&isModal=true&asPopupView=true | E150: Contratos de prestación de servicios profesionales y de apoyo a la gestión | F150: Contratación directa | G150: Prestación de servicios profesionales y de apoyo a la gestión, o para la ejecución de trabajos artísticos que sólo puedan encomendarse a determinadas personas naturales | H150: PRESTAR SERVICIOS TÉCNICOS PARA BRINDAR APOYO EN EL TRÁMITE Y DESARROLLO DE LOS DESPACHOS COMISORIOS QUE POR COMPETENCIA CORRESPONDEN A LA ALCALDÍA LOCAL DE FONTIBÓN | I150: Inversión | L150: =IF(ISERROR(VLOOKUP(K150,#REF!,2,FALSE))," ",VLOOKUP(K150,#REF!,2,FALSE)) ->  | M150: =IF(ISERROR(VLOOKUP(K150,#REF!,3,FALSE))," ",VLOOKUP(K150,#REF!,3,FALSE)) ->  | O150: 1 | P150: 102xxx42 | Q150: LAURA MILENA LASPRILLA ARGOTE | R150: Persona Natural | V150: N/A | W150: 38500000 | X150: 0 | AA150: 38500000 | AB150: 35000000 | AC150: 2022-01-26 | AD150: 2022-02-01 | AE150: 2022-12-31 | AF150: 11 MESES | AQ150: Terminado | AR150: 0.9090909091
A151: 138 | B151: 2022 | C151: FDLF-CD-138-2022 | D151: https://community.secop.gov.co/Public/Tendering/OpportunityDetail/Index?noticeUID=CO1.NTC.2698573&isFromPublicArea=True&isModal=true&asPopupView=true | E151: Contratos de prestación de servicios profesionales y de apoyo a la gestión | F151: Contratación directa | G151: Prestación de servicios profesionales y de apoyo a la gestión, o para la ejecución de trabajos artísticos que sólo puedan encomendarse a determinadas personas naturales | H151: PRESTAR SERVICIOS PROFESIONALES PARA APOYAR EL ÁREA DE GESTIÓN DE DESARROLLO LOCAL DE FONTIBÓN PARA EL DESARROLLO DEL PROGRAMA PEDAGÓGICO DE RESOLUCIÓN DE CONFLICTOS CON LA COMUNIDAD ESCOLAR DE LA LOCALIDAD EN EL MARCO DEL PROYECTO DE INVERSIÓN 2007 | I151: Inversión | L151: =IF(ISERROR(VLOOKUP(K151,#REF!,2,FALSE))," ",VLOOKUP(K151,#REF!,2,FALSE)) ->  | M151: =IF(ISERROR(VLOOKUP(K151,#REF!,3,FALSE))," ",VLOOKUP(K151,#REF!,3,FALSE)) ->  | O151: 1 | P151: 102xxx49 | Q151: MARIA ALEJANDRA ZULUAGA ABRIL | R151: Persona Natural | V151: N/A | W151: 32200000 | X151: 0 | Y151: 1 | Z151: 16100000 | AA151: 48300000 | AB151: 46000000 | AC151: 2022-01-26 | AD151: 2022-02-01 | AE151: 2022-12-15 | AF151: 7 MESES | AG151: 1 | AH151: 105 | AQ151: Terminado | AR151: 0.9523809524
A152: 139 | B152: 2022 | C152: FDLF-CD-139-2022 | D152: https://community.secop.gov.co/Public/Tendering/OpportunityDetail/Index?noticeUID=CO1.NTC.2686763&isFromPublicArea=True&isModal=true&asPopupView=true | E152: Contratos de prestación de servicios profesionales y de apoyo a la gestión | F152: Contratación directa | G152: Prestación de servicios profesionales y de apoyo a la gestión, o para la ejecución de trabajos artísticos que sólo puedan encomendarse a determinadas personas naturales | H152: PRESTAR SERVICIOS COMO PROFESIONAL PARA LA FORMULACIÓN, EVALUACIÓN, SEGUIMIENTO Y APOYO A LA SUPERVISIÓN DE LOS PROCESOS DERIVADOS DEL PROYECTO DE INVERSIÓN NO.1757, ORIENTADO A LOS TEMAS DEPORTIVOS DE ACTIVIDAD FÍSICA Y RECREATIVOS EN LA LOCALIDAD | I152: Inversión | L152: =IF(ISERROR(VLOOKUP(K152,#REF!,2,FALSE))," ",VLOOKUP(K152,#REF!,2,FALSE)) ->  | M152: =IF(ISERROR(VLOOKUP(K152,#REF!,3,FALSE))," ",VLOOKUP(K152,#REF!,3,FALSE)) ->  | O152: 1 | P152: 103xxx30 | Q152: MIGUEL ANGEL GONZALEZ GARCIA | R152: Persona Natural | V152: N/A | W152: 42000000 | X152: 0 | AA152: 42000000 | AB152: 23800000 | AC152: 2022-01-27 | AD152: 2022-02-02 | AE152: 2022-09-01 | AF152: 7 MESES | AQ152: Terminado | AR152: 0.5666666667
A153: 140 | B153: 2022 | C153: FDLF-CD-140-2022 | D153: https://community.secop.gov.co/Public/Tendering/OpportunityDetail/Index?noticeUID=CO1.NTC.2718238&isFromPublicArea=True&isModal=true&asPopupView=true | E153: Contratos de prestación de servicios profesionales y de apoyo a la gestión | F153: Contratación directa | G153: Prestación de servicios profesionales y de apoyo a la gestión, o para la ejecución de trabajos artísticos que sólo puedan encomendarse a determinadas personas naturales | H153: PRESTAR SERVICIOS DE APOYO ADMINISTRATIVO EN EL MARCO DEL PROYECTO 1759 | I153: Inversión | L153: =IF(ISERROR(VLOOKUP(K153,#REF!,2,FALSE))," ",VLOOKUP(K153,#REF!,2,FALSE)) ->  | M153: =IF(ISERROR(VLOOKUP(K153,#REF!,3,FALSE))," ",VLOOKUP(K153,#REF!,3,FALSE)) ->  | O153: 1 | P153: 528xxx70 | Q153: NIDIA JOHANNA CAICEDO BELTRAN | R153: Persona Natural | V153: N/A | W153: 17500000 | X153: 0 | AA153: 17500000 | AB153: 17500000 | AC153: 2022-01-26 | AD153: 2022-02-01 | AE153: 2022-08-31 | AF153: 7 MESES | AQ153: Terminado | AR153: 1
A154: 141 | B154: 2022 | C154: FDLF-CD-141-2022 | D154: https://community.secop.gov.co/Public/Tendering/OpportunityDetail/Index?noticeUID=CO1.NTC.2686397&isFromPublicArea=True&isModal=true&asPopupView=true | E154: Contratos de prestación de servicios profesionales y de apoyo a la gestión | F154: Contratación directa | G154: Prestación de servicios profesionales y de apoyo a la gestión, o para la ejecución de trabajos artísticos que sólo puedan encomendarse a determinadas personas naturales | H154: PRESTAR SERVICIOS DE APOYO OPERATIVO PARA LAS ACTIVIDADES RELACIONADAS CON EL MANTENIMIENTO Y REPARACIONES MENORES DE LA SEDE Y DE APOYO OPERATIVO A LOS PROYECTOS DE LA ALCALDÍA LOCAL DE FONTIBÓN | I154: Inversión | L154: =IF(ISERROR(VLOOKUP(K154,#REF!,2,FALSE))," ",VLOOKUP(K154,#REF!,2,FALSE)) ->  | M154: =IF(ISERROR(VLOOKUP(K154,#REF!,3,FALSE))," ",VLOOKUP(K154,#REF!,3,FALSE)) ->  | O154: 1 | P154: 798xxx14 | Q154: GIOVANNI ENRIQUE CORTES GARZON | R154: Persona Natural | V154: N/A | W154: 17500000 | X154: 0 | Y154: 1 | Z154: 8750000 | AA154: 26250000 | AB154: 25000000 | AC154: 2022-01-26 | AD154: 2022-02-01 | AE154: 2022-12-15 | AF154: 7 MESES | AG154: 1 | AH154: 105 | AQ154: Terminado | AR154: 0.9523809524
A155: 142 | B155: 2022 | C155: FDLF-CD-142-2022 | D155: https://community.secop.gov.co/Public/Tendering/OpportunityDetail/Index?noticeUID=CO1.NTC.2686584&isFromPublicArea=True&isModal=true&asPopupView=true | E155: Contratos de prestación de servicios profesionales y de apoyo a la gestión | F155: Contratación directa | G155: Prestación de servicios profesionales y de apoyo a la gestión, o para la ejecución de trabajos artísticos que sólo puedan encomendarse a determinadas personas naturales | H155: PRESTAR SERVICIOS DE APOYO OPERATIVO PARA LAS ACTIVIDADES RELACIONADAS CON EL MANTENIMIENTO Y REPARACIONES MENORES DE LA SEDE Y DE APOYO OPERATIVO A LOS PROYECTOS DE LA ALCALDÍA LOCAL DE FONTIBÓN | I155: Inversión | L155: =IF(ISERROR(VLOOKUP(K155,#REF!,2,FALSE))," ",VLOOKUP(K155,#REF!,2,FALSE)) ->  | M155: =IF(ISERROR(VLOOKUP(K155,#REF!,3,FALSE))," ",VLOOKUP(K155,#REF!,3,FALSE)) ->  | O155: 1 | P155: 791xxx15 | Q155: WILLIAM MORENO RINCON | R155: Persona Natural | V155: N/A | W155: 17500000 | X155: 0 | Y155: 1 | Z155: 8750000 | AA155: 26250000 | AB155: 24833333 | AC155: 2022-01-26 | AD155: 2022-02-03 | AE155: 2022-12-17 | AF155: 7 MESES | AG155: 1 | AH155: 105 | AQ155: Terminado | AR155: 0.9460317333
A156: 143 | B156: 2022 | C156: FDLF-CD-143-2022 | D156: https://community.secop.gov.co/Public/Tendering/OpportunityDetail/Index?noticeUID=CO1.NTC.2686582&isFromPublicArea=True&isModal=true&asPopupView=true | E156: Contratos de prestación de servicios profesionales y de apoyo a la gestión | F156: Contratación directa | G156: Prestación de servicios profesionales y de apoyo a la gestión, o para la ejecución de trabajos artísticos que sólo puedan encomendarse a determinadas personas naturales | H156: PRESTAR SERVICIOS PROFESIONALES PARA APOYAR LAS ACTIVIDADES TÉCNICAS Y ADMINISTRATIVAS PROPIAS DE LA CASA DEL CONSUMIDOR, EN EL MARCO DEL CONVENIO SUSCRITO ENTRE LA SUPERINTENDENCIA DE INDUSTRIA Y COMERCIO Y LA ALCALDIA LOCAL DE FONTIBON. | I156: Inversión | L156: =IF(ISERROR(VLOOKUP(K156,#REF!,2,FALSE))," ",VLOOKUP(K156,#REF!,2,FALSE)) ->  | M156: =IF(ISERROR(VLOOKUP(K156,#REF!,3,FALSE))," ",VLOOKUP(K156,#REF!,3,FALSE)) ->  | O156: 1 | P156: 102xxx66 | Q156: CAMILO ANDRES ARIAS REY | R156: Persona Natural | V156: N/A | W156: 55000000 | X156: 0 | AA156: 55000000 | AB156: 50000000 | AC156: 2022-01-26 | AD156: 2022-02-01 | AE156: 2022-12-31 | AF156: 11 MESES | AQ156: Terminado | AR156: 0.9090909091
A157: 144 | B157: 2022 | C157: FDLF-CD-144-2022 | D157: https://community.secop.gov.co/Public/Tendering/OpportunityDetail/Index?noticeUID=CO1.NTC.2686826&isFromPublicArea=True&isModal=true&asPopupView=true | E157: Contratos de prestación de servicios profesionales y de apoyo a la gestión | F157: Contratación directa | G157: Prestación de servicios profesionales y de apoyo a la gestión, o para la ejecución de trabajos artísticos que sólo puedan encomendarse a determinadas personas naturales | H157: PRESTAR SERVICIOS PROFESIONALES PARA DESARROLLAR HERRAMIENTAS PARA LA APROPIACIÓN, DIFUSIÓN Y SOCIALIZACIÓN PARA LA ALCALDÍA LOCAL DE FONTIBÓN. | I157: Inversión | L157: =IF(ISERROR(VLOOKUP(K157,#REF!,2,FALSE))," ",VLOOKUP(K157,#REF!,2,FALSE)) ->  | M157: =IF(ISERROR(VLOOKUP(K157,#REF!,3,FALSE))," ",VLOOKUP(K157,#REF!,3,FALSE)) ->  | O157: 1 | P157: 101xxx54 | Q157: ERIKA LIZETH VASQUEZ RAMIREZ | R157: Persona Natural | V157: N/A | W157: 35000000 | X157: 0 | Y157: 1 | Z157: 17500000 | AA157: 52500000 | AB157: 50000000 | AC157: 2022-01-26 | AD157: 2022-02-01 | AE157: 2022-12-15 | AF157: 7 MESES | AG157: 1 | AH157: 105 | AQ157: Terminado | AR157: 0.9523809524
A158: 145 | B158: 2022 | C158: FDLF-CD-145-2022 | D158: https://community.secop.gov.co/Public/Tendering/OpportunityDetail/Index?noticeUID=CO1.NTC.2686471&isFromPublicArea=True&isModal=true&asPopupView=true | E158: Contratos de prestación de servicios profesionales y de apoyo a la gestión | F158: Contratación directa | G158: Prestación de servicios profesionales y de apoyo a la gestión, o para la ejecución de trabajos artísticos que sólo puedan encomendarse a determinadas personas naturales | H158: PRESTAR SERVICIOS PROFESIONALES PARA APOYAR LA FORMULACIÓN, SEGUIMIENTO Y SUPERVISIÓN DE LOS PROCESOS DERIVADOS DEL PROYECTO DE INVERSIÓN NO.1758, EN EL MARCO DE LAS NECESIDADES DE LA ALCALDÍA LOCAL DE FONTIBÓN. | I158: Inversión | L158: =IF(ISERROR(VLOOKUP(K158,#REF!,2,FALSE))," ",VLOOKUP(K158,#REF!,2,FALSE)) ->  | M158: =IF(ISERROR(VLOOKUP(K158,#REF!,3,FALSE))," ",VLOOKUP(K158,#REF!,3,FALSE)) ->  | O158: 1 | P158: 531xxx49 | Q158: ROCIO DEL PILAR BECERRA FARIETA | R158: Persona Natural | V158: N/A | W158: 40600000 | X158: 0 | Y158: 1 | Z158: 20300000 | AA158: 60900000 | AB158: 52200000 | AC158: 2022-01-26 | AD158: 2022-02-01 | AE158: 2022-12-15 | AF158: 7 MESES | AG158: 1 | AH158: 105 | AQ158: Terminado | AR158: 0.8571428571
A159: 146 | B159: 2022 | C159: FDLF-CD-146-2022 | D159: https://community.secop.gov.co/Public/Tendering/OpportunityDetail/Index?noticeUID=CO1.NTC.2686655&isFromPublicArea=True&isModal=true&asPopupView=true | E159: Contratos de prestación de servicios profesionales y de apoyo a la gestión | F159: Contratación directa | G159: Prestación de servicios profesionales y de apoyo a la gestión, o para la ejecución de trabajos artísticos que sólo puedan encomendarse a determinadas personas naturales | H159: Prestar servicios profesionales para apoyar la formulación, seguimiento y supervisión de los procesos derivados del proyecto de inversión No.1758, en el marco de las necesidades de la alcaldía local de Fontibón | I159: Inversión | L159: =IF(ISERROR(VLOOKUP(K159,#REF!,2,FALSE))," ",VLOOKUP(K159,#REF!,2,FALSE)) ->  | M159: =IF(ISERROR(VLOOKUP(K159,#REF!,3,FALSE))," ",VLOOKUP(K159,#REF!,3,FALSE)) ->  | O159: 1 | P159: 101xxx39 | Q159: LUISA FERNANDA LEON LUQUE | R159: Persona Natural | V159: N/A | W159: 40600000 | X159: 0 | Y159: 1 | Z159: 20300000 | AA159: 60900000 | AB159: 40600000 | AC159: 2022-01-26 | AD159: 2022-02-01 | AE159: 2022-12-15 | AF159: 7 MESES | AG159: 1 | AH159: 105 | AQ159: Terminado | AR159: 0.6666666667
A160: 147 | B160: 2022 | C160: FDLF-CD-147-2022 | D160: https://community.secop.gov.co/Public/Tendering/OpportunityDetail/Index?noticeUID=CO1.NTC.2686811&isFromPublicArea=True&isModal=true&asPopupView=true | E160: Contratos de prestación de servicios profesionales y de apoyo a la gestión | F160: Contratación directa | G160: Prestación de servicios profesionales y de apoyo a la gestión, o para la ejecución de trabajos artísticos que sólo puedan encomendarse a determinadas personas naturales | H160: PRESTAR SERVICIOS DE APOYO TÉCNICO A LA ALCALDÍA LOCAL DE FONTIBÓN COMO MONITOR DEPORTIVO PARA LA FORMACIÓN DE LAS ESCUELAS DEPORTIVAS DE FONTIBÓN | I160: Inversión | L160: =IF(ISERROR(VLOOKUP(K160,#REF!,2,FALSE))," ",VLOOKUP(K160,#REF!,2,FALSE)) ->  | M160: =IF(ISERROR(VLOOKUP(K160,#REF!,3,FALSE))," ",VLOOKUP(K160,#REF!,3,FALSE)) ->  | O160: 1 | P160: 101xxx10 | Q160: FREDDY ALEJANDRO ROJAS GONZALEZ | R160: Persona Natural | V160: N/A | W160: 19250000 | X160: 0 | AA160: 19250000 | AB160: 19250000 | AC160: 2022-01-26 | AD160: 2022-02-01 | AE160: 2022-08-31 | AF160: 7 MESES | AQ160: Terminado | AR160: 1
A161: 148 | B161: 2022 | C161: FDLF-CD-148-2022 | D161: https://community.secop.gov.co/Public/Tendering/OpportunityDetail/Index?noticeUID=CO1.NTC.2698259&isFromPublicArea=True&isModal=true&asPopupView=true | E161: Contratos de prestación de servicios profesionales y de apoyo a la gestión | F161: Contratación directa | G161: Prestación de servicios profesionales y de apoyo a la gestión, o para la ejecución de trabajos artísticos que sólo puedan encomendarse a determinadas personas naturales | H161: Prestar servicios profesionales para apoyar el desarrollo de las actividades de la gestión contractual al Fondo de Desarrollo Local de Fontibón. | I161: Inversión | L161: =IF(ISERROR(VLOOKUP(K161,#REF!,2,FALSE))," ",VLOOKUP(K161,#REF!,2,FALSE)) ->  | M161: =IF(ISERROR(VLOOKUP(K161,#REF!,3,FALSE))," ",VLOOKUP(K161,#REF!,3,FALSE)) ->  | O161: 1 | P161: 101xxx48 | Q161: ALEJANDRA GONZALEZ MAHECHA | R161: Persona Natural | V161: N/A | W161: 31640000 | X161: 0 | Y161: 1 | Z161: 15820000 | AA161: 47460000 | AB161: 43994665 | AC161: 2022-01-25 | AD161: 2022-01-26 | AE161: 2022-12-23 | AF161: 7 MESES | AG161: 1 | AH161: 105 | AQ161: Terminado | AR161: 0.9269840919
A162: 149 | B162: 2022 | C162: FDLF-CD-149-2022 | D162: https://community.secop.gov.co/Public/Tendering/OpportunityDetail/Index?noticeUID=CO1.NTC.2712104&isFromPublicArea=True&isModal=true&asPopupView=true | E162: Contratos de prestación de servicios profesionales y de apoyo a la gestión | F162: Contratación directa | G162: Prestación de servicios profesionales y de apoyo a la gestión, o para la ejecución de trabajos artísticos que sólo puedan encomendarse a determinadas personas naturales | H162: PRESTAR SERVICIOS PROFESIONALES PARA APOYAR LA FORMULACIÓN DE ESTRATEGIAS COMUNICATIVAS RELACIONADAS CON EL TEMA DE MUJER, GÉNERO Y POBLACIONES DIVERSAS | I162: Inversión | L162: =IF(ISERROR(VLOOKUP(K162,#REF!,2,FALSE))," ",VLOOKUP(K162,#REF!,2,FALSE)) ->  | M162: =IF(ISERROR(VLOOKUP(K162,#REF!,3,FALSE))," ",VLOOKUP(K162,#REF!,3,FALSE)) ->  | O162: 1 | P162: 101xxx48 | Q162: DINALUZ DIAZ PALACIOS | R162: Persona Natural | V162: N/A | W162: 38500000 | X162: 0 | AA162: 38500000 | AB162: 38500000 | AC162: 2022-01-26 | AD162: 2022-02-02 | AE162: 2022-09-01 | AF162: 7 MESES | AQ162: Terminado | AR162: 1
A163: 150 | B163: 2022 | C163: FDLF-CD-150-2022 | D163: https://community.secop.gov.co/Public/Tendering/OpportunityDetail/Index?noticeUID=CO1.NTC.2729678&isFromPublicArea=True&isModal=true&asPopupView=true | E163: Contratos de prestación de servicios profesionales y de apoyo a la gestión | F163: Contratación directa | G163: Prestación de servicios profesionales y de apoyo a la gestión, o para la ejecución de trabajos artísticos que sólo puedan encomendarse a determinadas personas naturales | H163: Prestar servicios profesionales para apoyar jurídicamente los diferentes procesos que requiera adelantar la Alcaldía Local de Fontibón desde las etapas precontractual y contractual, de acuerdo con el plan de adquisiciones y al plan de contratación | I163: Inversión | L163: =IF(ISERROR(VLOOKUP(K163,#REF!,2,FALSE))," ",VLOOKUP(K163,#REF!,2,FALSE)) ->  | M163: =IF(ISERROR(VLOOKUP(K163,#REF!,3,FALSE))," ",VLOOKUP(K163,#REF!,3,FALSE)) ->  | O163: 1 | P163: 101xxx44 | Q163: NATALIA SABINA DE LA ROSA ATARA | R163: Persona Natural | V163: N/A | W163: 74800000 | X163: 0 | AA163: 74800000 | AB163: 66640000 | AC163: 2022-01-26 | AD163: 2022-02-07 | AE163: 2023-01-06 | AF163: 11 MESES | AQ163: Terminado | AR163: 0.8909090909
A164: 151 | B164: 2022 | C164: FDLF-CD-151-2022 | D164: https://community.secop.gov.co/Public/Tendering/OpportunityDetail/Index?noticeUID=CO1.NTC.2742046&isFromPublicArea=True&isModal=true&asPopupView=true | E164: Contratos de prestación de servicios profesionales y de apoyo a la gestión | F164: Contratación directa | G164: Prestación de servicios profesionales y de apoyo a la gestión, o para la ejecución de trabajos artísticos que sólo puedan encomendarse a determinadas personas naturales | H164: PRESTAR SERVICIOS COMO PROFESIONAL DE APOYO A LA GESTIÓN RELACIONADA CON EL ESPACIO PÚBLICO, ESTABLECIMIENTOS DE COMERCIO Y LAS ACCIONES OPERATIVAS PARA EL CONTROL AMBIENTAL PARA LA ALCALD A LOCAL DE FONTIBON. | I164: Inversión | L164: =IF(ISERROR(VLOOKUP(K164,#REF!,2,FALSE))," ",VLOOKUP(K164,#REF!,2,FALSE)) ->  | M164: =IF(ISERROR(VLOOKUP(K164,#REF!,3,FALSE))," ",VLOOKUP(K164,#REF!,3,FALSE)) ->  | O164: 1 | P164: 112xxx70 | Q164: CARLOS ALBERTO DUARTE DURAN | R164: Persona Natural | V164: N/A | W164: 35000000 | X164: 0 | Y164: 1 | Z164: 17500000 | AA164: 52500000 | AB164: 50000000 | AC164: 2022-01-27 | AD164: 2022-02-01 | AE164: 2022-12-15 | AF164: 7 MESES | AG164: 1 | AH164: 105 | AQ164: Terminado | AR164: 0.9523809524
A165: 152 | B165: 2022 | C165: FDLF-CD-152-2022 | D165: https://community.secop.gov.co/Public/Tendering/OpportunityDetail/Index?noticeUID=CO1.NTC.2714105&isFromPublicArea=True&isModal=true&asPopupView=true | E165: Contratos de prestación de servicios profesionales y de apoyo a la gestión | F165: Contratación directa | G165: Prestación de servicios profesionales y de apoyo a la gestión, o para la ejecución de trabajos artísticos que sólo puedan encomendarse a determinadas personas naturales | H165: APOYAR JURÍDICAMENTE LA EJECUCIÓN DE LAS ACCIONES REQUERIDAS PARA LA DEPURACIÓN DE LAS ACTUACIONES ADMINISTRATIVAS QUE CURSAN EN LA ALCALDÍA LOCAL | I165: Inversión | L165: =IF(ISERROR(VLOOKUP(K165,#REF!,2,FALSE))," ",VLOOKUP(K165,#REF!,2,FALSE)) ->  | M165: =IF(ISERROR(VLOOKUP(K165,#REF!,3,FALSE))," ",VLOOKUP(K165,#REF!,3,FALSE)) ->  | O165: 1 | P165: 101xxx40 | Q165: EVELYN LORENA GOMEZ ORTIZ | R165: Persona Natural | V165: N/A | W165: 35000000 | X165: 0 | Y165: 1 | Z165: 17500000 | AA165: 52500000 | AB165: 50000000 | AC165: 2022-01-26 | AD165: 2022-02-01 | AE165: 2022-12-15 | AF165: 7 MESES | AG165: 1 | AH165: 105 | AQ165: Terminado | AR165: 0.9523809524
A166: 153 | B166: 2022 | C166: FDLF-CD-153-2022 | D166: https://community.secop.gov.co/Public/Tendering/OpportunityDetail/Index?noticeUID=CO1.NTC.2754672&isFromPublicArea=True&isModal=true&asPopupView=true | E166: Contratos de prestación de servicios profesionales y de apoyo a la gestión | F166: Contratación directa | G166: Prestación de servicios profesionales y de apoyo a la gestión, o para la ejecución de trabajos artísticos que sólo puedan encomendarse a determinadas personas naturales | H166: PRESTAR SERVICIOS DE APOYO OPERATIVO A LA ALCALDIA LOCAL DE FONTIBON EN EL PROYECTO DE INVERSIÓN No 1766. | I166: Inversión | L166: =IF(ISERROR(VLOOKUP(K166,#REF!,2,FALSE))," ",VLOOKUP(K166,#REF!,2,FALSE)) ->  | M166: =IF(ISERROR(VLOOKUP(K166,#REF!,3,FALSE))," ",VLOOKUP(K166,#REF!,3,FALSE)) ->  | O166: 1 | P166: 102xxx19 | Q166: ANDRES FERNANDO QUINTERO ATARA | R166: Persona Natural | V166: N/A | W166: 17500000 | X166: 0 | Y166: 1 | Z166: 8750000 | AA166: 26250000 | AB166: 17500000 | AC166: 2022-01-28 | AD166: 2022-02-04 | AE166: 2022-12-18 | AF166: 7 MESES | AG166: 1 | AH166: 105 | AI166: 80453165 | AJ166: FREDDY RIOS GUTIERREZ | AK166: 2022-04-22 | AQ166: Terminado | AR166: 0.6666666667
A167: 154 | B167: 2022 | C167: FDLF-CD-154-2022 | D167: https://community.secop.gov.co/Public/Tendering/OpportunityDetail/Index?noticeUID=CO1.NTC.2759648&isFromPublicArea=True&isModal=true&asPopupView=true | E167: Contratos de prestación de servicios profesionales y de apoyo a la gestión | F167: Contratación directa | G167: Prestación de servicios profesionales y de apoyo a la gestión, o para la ejecución de trabajos artísticos que sólo puedan encomendarse a determinadas personas naturales | H167: PRESTAR SERVICIOS PROFESIONALES PARA BRINDAR APOYO JURÍDICO EN EL TRÁMITE Y DESARROLLO DE LOS DESPACHOS COMISORIOS QUE POR COMPETENCIA CORRESPONDEN A LA ALCALDÍA LOCAL DE FONTIBÓN | I167: Inversión | L167: =IF(ISERROR(VLOOKUP(K167,#REF!,2,FALSE))," ",VLOOKUP(K167,#REF!,2,FALSE)) ->  | M167: =IF(ISERROR(VLOOKUP(K167,#REF!,3,FALSE))," ",VLOOKUP(K167,#REF!,3,FALSE)) ->  | O167: 1 | P167: 802xxx31 | Q167: CRIHSTIAN ANDRES PINTO GONZALEZ | R167: Persona Natural | V167: N/A | W167: 35000000 | X167: 0 | Y167: 1 | Z167: 17500000 | AA167: 52500000 | AB167: 46166667 | AC167: 2022-01-28 | AD167: 2022-02-01 | AE167: 2022-12-15 | AF167: 7 MESES | AG167: 1 | AH167: 105 | AI167: 1106306993 | AJ167: ANGELICA MARIA MUJICA OSPINA | AK167: 2022-09-09 | AM167: 80199901 | AN167: MAURICIO NICOLAS RICAURTE BENITEZ | AO167: 2022-11-15 | AQ167: Terminado | AR167: 0.8793650857
A168: 155 | B168: 2022 | C168: FDLF-CD-155-2022 | D168: https://community.secop.gov.co/Public/Tendering/OpportunityDetail/Index?noticeUID=CO1.NTC.2715033&isFromPublicArea=True&isModal=true&asPopupView=true | E168: Contratos de prestación de servicios profesionales y de apoyo a la gestión | F168: Contratación directa | G168: Prestación de servicios profesionales y de apoyo a la gestión, o para la ejecución de trabajos artísticos que sólo puedan encomendarse a determinadas personas naturales | H168: PRESTAR LOS SERVICIOS TÉCNICOS PARA APOYAR LA GESTIÓN LOCAL Y TERRITORIAL DE LOS TEMAS DE SEGURIDAD Y CONVIVENCIA CIUDADANA, EN TEMAS ORIENTADOS A LA SEGURIDAD Y CONVIVENCIA EN FONTIBÓN | I168: Inversión | L168: =IF(ISERROR(VLOOKUP(K168,#REF!,2,FALSE))," ",VLOOKUP(K168,#REF!,2,FALSE)) ->  | M168: =IF(ISERROR(VLOOKUP(K168,#REF!,3,FALSE))," ",VLOOKUP(K168,#REF!,3,FALSE)) ->  | O168: 1 | P168: 101xxx94 | Q168: CHRISTIAN VESGA GONZALEZ | R168: Persona Natural | V168: N/A | W168: 26600000 | X168: 0 | Y168: 1 | Z168: 13300000 | AA168: 39900000 | AB168: 38000000 | AC168: 2022-01-26 | AD168: 2022-02-01 | AE168: 2022-12-15 | AF168: 7 MESES | AG168: 1 | AH168: 105 | AQ168: Terminado | AR168: 0.9523809524
A169: 156 | B169: 2022 | C169: FDLF-CD-156-2022 | D169: https://community.secop.gov.co/Public/Tendering/OpportunityDetail/Index?noticeUID=CO1.NTC.2728614&isFromPublicArea=True&isModal=true&asPopupView=true | E169: Contratos de prestación de servicios profesionales y de apoyo a la gestión | F169: Contratación directa | G169: Prestación de servicios profesionales y de apoyo a la gestión, o para la ejecución de trabajos artísticos que sólo puedan encomendarse a determinadas personas naturales | H169: PRESTAR SERVICIOS PROFESIONALES PARA APOYAR LA GESTIÓN DE PROCESOS, PROCEDIMIENTOS Y TRÁMITES DE CARÁCTER PRESUPUESTAL | I169: Inversión | L169: =IF(ISERROR(VLOOKUP(K169,#REF!,2,FALSE))," ",VLOOKUP(K169,#REF!,2,FALSE)) ->  | M169: =IF(ISERROR(VLOOKUP(K169,#REF!,3,FALSE))," ",VLOOKUP(K169,#REF!,3,FALSE)) ->  | O169: 1 | P169: 101xxx47 | Q169: NAIRA CAROLINA PARRA BELTRAN | R169: Persona Natural | V169: N/A | W169: 37100000 | X169: 0 | Y169: 1 | Z169: 18550000 | AA169: 55650000 | AB169: 53706667 | AC169: 2022-01-26 | AD169: 2022-01-27 | AE169: 2022-12-11 | AF169: 7 MESES | AG169: 1 | AH169: 105 | AQ169: Terminado | AR169: 0.9650793711
A170: 157 | B170: 2022 | C170: FDLF-CD-157-2022 | D170: https://community.secop.gov.co/Public/Tendering/OpportunityDetail/Index?noticeUID=CO1.NTC.2713982&isFromPublicArea=True&isModal=true&asPopupView=true | E170: Contratos de prestación de servicios profesionales y de apoyo a la gestión | F170: Contratación directa | G170: Prestación de servicios profesionales y de apoyo a la gestión, o para la ejecución de trabajos artísticos que sólo puedan encomendarse a determinadas personas naturales | H170: PRESTAR SERVICIOS PROFESIONALES PARA APOYAR LOS PROYECTOS DE INVERSIÓN ORIENTADOS A LA VINCULACIÓN DE INSTITUCIONES EDUCATIVAS EN EL MARCO DEL PROGRAMA PEDAGÓGICO DE RESOLUCIÓN DE CONFLICTOS | I170: Inversión | L170: =IF(ISERROR(VLOOKUP(K170,#REF!,2,FALSE))," ",VLOOKUP(K170,#REF!,2,FALSE)) ->  | M170: =IF(ISERROR(VLOOKUP(K170,#REF!,3,FALSE))," ",VLOOKUP(K170,#REF!,3,FALSE)) ->  | O170: 1 | P170: 241xxx26 | Q170: LUZ CLAUDIA MEJIA SANTOS | R170: Persona Natural | V170: N/A | W170: 35000000 | X170: 0 | AA170: 35000000 | AB170: 35000000 | AC170: 2022-01-26 | AD170: 2022-01-28 | AE170: 2022-08-27 | AF170: 7 MESES | AQ170: Terminado | AR170: 1
A171: 158 | B171: 2022 | C171: FDLF-CD-158-2022 | D171: https://community.secop.gov.co/Public/Tendering/OpportunityDetail/Index?noticeUID=CO1.NTC.2715940&isFromPublicArea=True&isModal=true&asPopupView=true | E171: Contratos de prestación de servicios profesionales y de apoyo a la gestión | F171: Contratación directa | G171: Prestación de servicios profesionales y de apoyo a la gestión, o para la ejecución de trabajos artísticos que sólo puedan encomendarse a determinadas personas naturales | H171: PRESTAR SERVICIOS PROFESIONALES ESPECIALIZADOS PARA APOYAR LA FORMULACIÓN, SEGUIMIENTO Y SUPERVISIÓN DE LOS PROCESOS CONTRACTUALES DERIVADOS DEL PROYECTO DE INVERSIÓN NO.1776, EN EL MARCO DE LAS NECESIDADES DE LA ALCALDÍA LOCAL DE FONTIBÓN | I171: Inversión | L171: =IF(ISERROR(VLOOKUP(K171,#REF!,2,FALSE))," ",VLOOKUP(K171,#REF!,2,FALSE)) ->  | M171: =IF(ISERROR(VLOOKUP(K171,#REF!,3,FALSE))," ",VLOOKUP(K171,#REF!,3,FALSE)) ->  | O171: 1 | P171: 103xxx25 | Q171: JAIRO JULIAN RIVERA FONSECA | R171: Persona Natural | V171: N/A | W171: 77583000 | X171: 0 | AA171: 77583000 | AB171: 45374300 | AC171: 2022-01-28 | AD171: 2022-02-09 | AE171: 2022-08-23 | AF171: 11 MESES | AI171: 1072921068 | AJ171: LINA MARIA MORENO RODRIGUEZ | AK171: 2022-03-11 | AQ171: Terminado | AR171: 0.5848484848
A172: 159 | B172: 2022 | C172: FDLF-CD-159-2022 | D172: https://community.secop.gov.co/Public/Tendering/OpportunityDetail/Index?noticeUID=CO1.NTC.2718895&isFromPublicArea=True&isModal=true&asPopupView=true | E172: Contratos de prestación de servicios profesionales y de apoyo a la gestión | F172: Contratación directa | G172: Prestación de servicios profesionales y de apoyo a la gestión, o para la ejecución de trabajos artísticos que sólo puedan encomendarse a determinadas personas naturales | H172: Prestar servicios profesionales especializados para apoyar al Alcalde Local, en la revisión técnica y jurídica de los documentos, procesos y procedimientos de competencia del Despacho y derivados de la gestión de la Alcaldía Local de Fontibón | I172: Inversión | L172: =IF(ISERROR(VLOOKUP(K172,#REF!,2,FALSE))," ",VLOOKUP(K172,#REF!,2,FALSE)) ->  | M172: =IF(ISERROR(VLOOKUP(K172,#REF!,3,FALSE))," ",VLOOKUP(K172,#REF!,3,FALSE)) ->  | O172: 1 | P172: 101xxx21 | Q172: LINA MERCEDES GUZMAN MOJICA | R172: Persona Natural | V172: N/A | W172: 56000000 | X172: -2133334 | AA172: 53866666 | AB172: 53866666 | AC172: 2022-01-26 | AD172: 2022-02-02 | AE172: 2022-08-23 | AF172: 7 MESES | AQ172: Terminado | AR172: 1
A173: 160 | B173: 2022 | C173: FDLF-CD-160-2022 | D173: https://community.secop.gov.co/Public/Tendering/OpportunityDetail/Index?noticeUID=CO1.NTC.2719435&isFromPublicArea=True&isModal=true&asPopupView=true | E173: Contratos de prestación de servicios profesionales y de apoyo a la gestión | F173: Contratación directa | G173: Prestación de servicios profesionales y de apoyo a la gestión, o para la ejecución de trabajos artísticos que sólo puedan encomendarse a determinadas personas naturales | H173: Prestar los servicios profesionales para desarrollar la pre producción, producción y post producción operativa de las actividades y espacios de reactivación que se desarrollen en territorio de acuerdo con las necesidades de las diferentes gestiones de la alcaldía local de Fontibón | I173: Inversión | L173: =IF(ISERROR(VLOOKUP(K173,#REF!,2,FALSE))," ",VLOOKUP(K173,#REF!,2,FALSE)) ->  | M173: =IF(ISERROR(VLOOKUP(K173,#REF!,3,FALSE))," ",VLOOKUP(K173,#REF!,3,FALSE)) ->  | O173: 1 | P173: 112xxx42 | Q173: ORLANDO ANDRES CUEVAS VALENCIA | R173: Persona Natural | V173: N/A | W173: 71500000 | X173: 0 | AA173: 71500000 | AB173: 65650000 | AC173: 2022-01-26 | AD173: 2022-01-28 | AE173: 2022-12-27 | AF173: 11 MESES | AQ173: Terminado | AR173: 0.9181818182
A174: 161 | B174: 2022 | C174: FDLF-CD-161-2022 | D174: https://community.secop.gov.co/Public/Tendering/OpportunityDetail/Index?noticeUID=CO1.NTC.2719559&isFromPublicArea=True&isModal=true&asPopupView=true | E174: Contratos de prestación de servicios profesionales y de apoyo a la gestión | F174: Contratación directa | G174: Prestación de servicios profesionales y de apoyo a la gestión, o para la ejecución de trabajos artísticos que sólo puedan encomendarse a determinadas personas naturales | H174: Prestar servicios profesionales especializados para apoyar la formulación y seguimiento de los proyectos de inversión relacionados con temas de salud, en el marco de las necesidades de la alcaldía local de Fontibón | I174: Inversión | L174: =IF(ISERROR(VLOOKUP(K174,#REF!,2,FALSE))," ",VLOOKUP(K174,#REF!,2,FALSE)) ->  | M174: =IF(ISERROR(VLOOKUP(K174,#REF!,3,FALSE))," ",VLOOKUP(K174,#REF!,3,FALSE)) ->  | O174: 1 | P174: 525xxx32 | Q174: JENNY ANDREA MONTOYA HERNANDEZ | R174: Persona Natural | V174: N/A | W174: 77583000 | X174: 0 | AA174: 77583000 | AB174: 70530000 | AC174: 2022-01-26 | AD174: 2022-01-31 | AE174: 2022-12-30 | AF174: 11 MESES | AQ174: Terminado | AR174: 0.9090909091
A175: 162 | B175: 2022 | C175: FDLF-CD-162-2022 | D175: https://community.secop.gov.co/Public/Tendering/OpportunityDetail/Index?noticeUID=CO1.NTC.2713651&isFromPublicArea=True&isModal=true&asPopupView=true | E175: Contratos de prestación de servicios profesionales y de apoyo a la gestión | F175: Contratación directa | G175: Prestación de servicios profesionales y de apoyo a la gestión, o para la ejecución de trabajos artísticos que sólo puedan encomendarse a determinadas personas naturales | H175: PRESTAR SERVICIOS PROFESIONALES PARA APOYAR AL DESPACHO DEL ALCALDE LOCAL EN LA ARTICULACIÓN Y ACOMPAÑAMIENTO ESTRATÉGICO A ACTIVIDADES ADMINISTRATIVAS Y DE GESTIÓN | I175: Inversión | L175: =IF(ISERROR(VLOOKUP(K175,#REF!,2,FALSE))," ",VLOOKUP(K175,#REF!,2,FALSE)) ->  | M175: =IF(ISERROR(VLOOKUP(K175,#REF!,3,FALSE))," ",VLOOKUP(K175,#REF!,3,FALSE)) ->  | O175: 1 | P175: 123xxx89 | Q175: LYDA MARCELA VELANDIA RODRIGUEZ | R175: Persona Natural | V175: N/A | W175: 36204000 | X175: 0 | AA175: 36204000 | AB175: 36204000 | AC175: 2022-01-26 | AD175: 2022-01-31 | AE175: 2022-08-30 | AF175: 7 MESES | AQ175: Terminado | AR175: 1
A176: 163 | B176: 2022 | C176: FDLF-CD-163-2022 | D176: https://community.secop.gov.co/Public/Tendering/OpportunityDetail/Index?noticeUID=CO1.NTC.2737631&isFromPublicArea=True&isModal=true&asPopupView=true | E176: Contratos de prestación de servicios profesionales y de apoyo a la gestión | F176: Contratación directa | G176: Prestación de servicios profesionales y de apoyo a la gestión, o para la ejecución de trabajos artísticos que sólo puedan encomendarse a determinadas personas naturales | H176: PRESTAR SERVICIOS DE APOYO TÉCNICO A LA ALCALDÍA LOCAL DE FONTIBÓN EN ACTIVIDADES INHERENTES A LA PLANEACIÓN | I176: Inversión | L176: =IF(ISERROR(VLOOKUP(K176,#REF!,2,FALSE))," ",VLOOKUP(K176,#REF!,2,FALSE)) ->  | M176: =IF(ISERROR(VLOOKUP(K176,#REF!,3,FALSE))," ",VLOOKUP(K176,#REF!,3,FALSE)) ->  | O176: 1 | P176: 523xxx74 | Q176: MARIA ISABEL BUITRAGO POLOCHE | R176: Persona Natural | V176: N/A | W176: 25200000 | X176: 0 | Y176: 1 | Z176: 12600000 | AA176: 37800000 | AB176: 35880000 | AC176: 2022-01-27 | AD176: 2022-02-02 | AE176: 2022-12-16 | AF176: 7 MESES | AG176: 1 | AH176: 105 | AQ176: Terminado | AR176: 0.9492063492
A177: 164 | B177: 2022 | C177: FDLF-CD-164-2022 | D177: https://community.secop.gov.co/Public/Tendering/OpportunityDetail/Index?noticeUID=CO1.NTC.2726786&isFromPublicArea=True&isModal=true&asPopupView=true | E177: Contratos de prestación de servicios profesionales y de apoyo a la gestión | F177: Contratación directa | G177: Prestación de servicios profesionales y de apoyo a la gestión, o para la ejecución de trabajos artísticos que sólo puedan encomendarse a determinadas personas naturales | H177: PRESTAR SERVICIOS PROFESIONALES PARA PROMOVER Y GARANTIZAR LA IMPLEMENTACIÓN Y SEGUIMIENTO DE LOS PROCESOS Y PROCEDIMIENTOS DEL SERVICIO SOCIAL EN LA LOCALIDAD DE FONTIBÓN | I177: Inversión | L177: =IF(ISERROR(VLOOKUP(K177,#REF!,2,FALSE))," ",VLOOKUP(K177,#REF!,2,FALSE)) ->  | M177: =IF(ISERROR(VLOOKUP(K177,#REF!,3,FALSE))," ",VLOOKUP(K177,#REF!,3,FALSE)) ->  | O177: 1 | P177: 531xxx35 | Q177: ROCIO SALGADO ESPARZA | R177: Persona Natural | V177: N/A | W177: 60500000 | X177: 0 | AA177: 60500000 | AB177: 27500000 | AC177: 2022-01-26 | AD177: 2022-02-01 | AE177: 2022-12-31 | AF177: 11 MESES | AQ177: Terminado | AR177: 0.4545454545
A178: 165 | B178: 2022 | C178: FDLF-CD-165-2022 | D178: https://community.secop.gov.co/Public/Tendering/OpportunityDetail/Index?noticeUID=CO1.NTC.2738016&isFromPublicArea=True&isModal=true&asPopupView=true | E178: Contratos de prestación de servicios profesionales y de apoyo a la gestión | F178: Contratación directa | G178: Prestación de servicios profesionales y de apoyo a la gestión, o para la ejecución de trabajos artísticos que sólo puedan encomendarse a determinadas personas naturales | H178: PRESTAR SERVICIOS PROFESIONALES PARA APOYAR AL FONDO DE DESARROLLO LOCAL DE FONTIBON EN TODOS LOS TEMAS RELACIONADOS CON LA POBLACION VICTIMA EN EL MARCO DEL PROYECTO 1773 UN NUEVO CONTRATO PARA CONSTRUIR PAZ Y RECONCILIACIÓN EN FONTIBÓN | I178: Inversión | L178: =IF(ISERROR(VLOOKUP(K178,#REF!,2,FALSE))," ",VLOOKUP(K178,#REF!,2,FALSE)) ->  | M178: =IF(ISERROR(VLOOKUP(K178,#REF!,3,FALSE))," ",VLOOKUP(K178,#REF!,3,FALSE)) ->  | O178: 1 | P178: 101xxx05 | Q178: JUAN MIGUEL RIAÑO ABRIL | R178: Persona Natural | V178: N/A | W178: 31598000 | X178: 0 | Y178: 1 | Z178: 15799000 | AA178: 47397000 | AB178: 45140000 | AC178: 2022-01-26 | AD178: 2022-02-01 | AE178: 2022-12-15 | AF178: 7 MESES | AG178: 1 | AH178: 105 | AQ178: Terminado | AR178: 0.9523809524
A179: 166 | B179: 2022 | C179: FDLF-CD-166-2022 | D179: https://community.secop.gov.co/Public/Tendering/OpportunityDetail/Index?noticeUID=CO1.NTC.2739016&isFromPublicArea=True&isModal=true&asPopupView=true | E179: Contratos de prestación de servicios profesionales y de apoyo a la gestión | F179: Contratación directa | G179: Prestación de servicios profesionales y de apoyo a la gestión, o para la ejecución de trabajos artísticos que sólo puedan encomendarse a determinadas personas naturales | H179: PRESTAR SERVICIOS PARA APOYAR LA FORMULACIÓN, GESTIÓN Y SEGUIMIENTO DE ACTIVIDADES DE GESTIÓN AMBIENTAL, ENCAMINADAS A LA MITIGACIÓN DE LOS DIFERENTES IMPACTOS AMBIENTALES Y LA CONSERVACIÓN DE LOS RECURSOS NATURALES DE LA LOCALIDAD | I179: Inversión | L179: =IF(ISERROR(VLOOKUP(K179,#REF!,2,FALSE))," ",VLOOKUP(K179,#REF!,2,FALSE)) ->  | M179: =IF(ISERROR(VLOOKUP(K179,#REF!,3,FALSE))," ",VLOOKUP(K179,#REF!,3,FALSE)) ->  | O179: 1 | P179: 101xxx51 | Q179: YIRE PAOLA GARCIA GACHARNA | R179: Persona Natural | V179: N/A | W179: 38500000 | X179: 0 | Y179: 1 | Z179: 19250000 | AA179: 57750000 | AB179: 55000000 | AC179: 2022-01-27 | AD179: 2022-02-01 | AE179: 2022-12-15 | AF179: 7 MESES | AG179: 1 | AH179: 105 | AQ179: Terminado | AR179: 0.9523809524
A180: 167 | B180: 2022 | C180: FDLF-CD-167-2022 | D180: https://community.secop.gov.co/Public/Tendering/OpportunityDetail/Index?noticeUID=CO1.NTC.2739845&isFromPublicArea=True&isModal=true&asPopupView=true | E180: Contratos de prestación de servicios profesionales y de apoyo a la gestión | F180: Contratación directa | G180: Prestación de servicios profesionales y de apoyo a la gestión, o para la ejecución de trabajos artísticos que sólo puedan encomendarse a determinadas personas naturales | H180: PRESTAR SERVICIOS PARA APOYAR LA FORMULACIÓN, GESTIÓN Y SEGUIMIENTO DE ACTIVIDADES DE GESTIÓN AMBIENTAL, ENCAMINADAS A LA MITIGACIÓN DE LOS DIFERENTES IMPACTOS AMBIENTALES Y LA CONSERVACIÓN DE LOS RECURSOS NATURALES DE LA LOCALIDAD | I180: Inversión | L180: =IF(ISERROR(VLOOKUP(K180,#REF!,2,FALSE))," ",VLOOKUP(K180,#REF!,2,FALSE)) ->  | M180: =IF(ISERROR(VLOOKUP(K180,#REF!,3,FALSE))," ",VLOOKUP(K180,#REF!,3,FALSE)) ->  | O180: 1 | P180: 799xxx29 | Q180: ALEXANDER CANTOR CASTILLO | R180: Persona Natural | V180: N/A | W180: 38500000 | X180: 0 | Y180: 1 | Z180: 19250000 | AA180: 57750000 | AB180: 54450000 | AC180: 2022-01-27 | AD180: 2022-02-04 | AE180: 2022-12-18 | AF180: 7 MESES | AG180: 1 | AH180: 105 | AQ180: Terminado | AR180: 0.9428571429
A181: 168 | B181: 2022 | C181: FDLF-CD-168-2022 | D181: https://community.secop.gov.co/Public/Tendering/OpportunityDetail/Index?noticeUID=CO1.NTC.2740097&isFromPublicArea=True&isModal=true&asPopupView=true | E181: Contratos de prestación de servicios profesionales y de apoyo a la gestión | F181: Contratación directa | G181: Prestación de servicios profesionales y de apoyo a la gestión, o para la ejecución de trabajos artísticos que sólo puedan encomendarse a determinadas personas naturales | H181: PRESTAR SERVICIOS DE APOYO TÉCNICO PARA LA OPERACIÓN, SEGUIMIENTO Y CUMPLIMIENTO DE LOS PROCESOS Y PROCEDIMIENTOS DE LA ALCALDÍA LOCAL DE FONTIBÓN ORIENTADOS AL CUMPLIMIENTO DE LAS METAS DEL PROYECTO DE INVERSIÓN No 1761 | I181: Inversión | L181: =IF(ISERROR(VLOOKUP(K181,#REF!,2,FALSE))," ",VLOOKUP(K181,#REF!,2,FALSE)) ->  | M181: =IF(ISERROR(VLOOKUP(K181,#REF!,3,FALSE))," ",VLOOKUP(K181,#REF!,3,FALSE)) ->  | O181: 1 | P181: 796xxx63 | Q181: JOSE LUIS BELTRAN CAMARGO | R181: Persona Natural | V181: N/A | W181: 22379000 | X181: 0 | Y181: 1 | Z181: 11189500 | AA181: 33568500 | AB181: 31863433 | AC181: 2022-01-27 | AD181: 2022-02-02 | AE181: 2022-12-16 | AF181: 7 MESES | AG181: 1 | AH181: 105 | AQ181: Terminado | AR181: 0.9492063393
A182: 169 | B182: 2022 | C182: FDLF-CD-169-2022 | D182: https://community.secop.gov.co/Public/Tendering/OpportunityDetail/Index?noticeUID=CO1.NTC.2728662&isFromPublicArea=True&isModal=true&asPopupView=true | E182: Contratos de prestación de servicios profesionales y de apoyo a la gestión | F182: Contratación directa | G182: Prestación de servicios profesionales y de apoyo a la gestión, o para la ejecución de trabajos artísticos que sólo puedan encomendarse a determinadas personas naturales | H182: PRESTAR SERVICIOS PROFESIONALES PARA APOYAR AL FONDO DE DESARROLLO LOCAL DE FONTIBON EN TODOS LOS TEMAS RELACIONADOS CON LA POBLACION VICTIMA EN EL MARCO DEL PROYECTO 1773 UN NUEVO CONTRATO PARA CONSTRUIR PAZ Y RECONCILIACIÓN EN FONTIBÓN | I182: Inversión | L182: =IF(ISERROR(VLOOKUP(K182,#REF!,2,FALSE))," ",VLOOKUP(K182,#REF!,2,FALSE)) ->  | M182: =IF(ISERROR(VLOOKUP(K182,#REF!,3,FALSE))," ",VLOOKUP(K182,#REF!,3,FALSE)) ->  | O182: 1 | P182: 109xxx19 | Q182: JESSICA ALEJANDRA TIBADUIZA CASTILLO | R182: Persona Natural | V182: N/A | W182: 49654000 | X182: 0 | AA182: 49654000 | AB182: 45140000 | AC182: 2022-01-26 | AD182: 2022-02-01 | AE182: 2022-12-31 | AF182: 11 MESES | AQ182: Terminado | AR182: 0.9090909091
A183: 170 | B183: 2022 | C183: FDLF-CD-170-2022 | D183: https://community.secop.gov.co/Public/Tendering/OpportunityDetail/Index?noticeUID=CO1.NTC.2740809&isFromPublicArea=True&isModal=true&asPopupView=true | E183: Contratos de prestación de servicios profesionales y de apoyo a la gestión | F183: Contratación directa | G183: Prestación de servicios profesionales y de apoyo a la gestión, o para la ejecución de trabajos artísticos que sólo puedan encomendarse a determinadas personas naturales | H183: APOYA EL CUBRIMIENTO DE LAS ACTIVIDADES, CRONOGRAMAS Y AGENDA DE LA ALCALDÍA LOCAL A NIVEL INTERNO Y EXTERNO, ASÍ COMO LA GENERACIÓN DE CONTENIDOS PERIODÍSTICOS | I183: Inversión | L183: =IF(ISERROR(VLOOKUP(K183,#REF!,2,FALSE))," ",VLOOKUP(K183,#REF!,2,FALSE)) ->  | M183: =IF(ISERROR(VLOOKUP(K183,#REF!,3,FALSE))," ",VLOOKUP(K183,#REF!,3,FALSE)) ->  | O183: 1 | P183: 101xxx91 | Q183: ANA MARIA SALGADO PINEDA | R183: Persona Natural | V183: N/A | W183: 37100000 | X183: 0 | AA183: 37100000 | AB183: 37100000 | AC183: 2022-01-26 | AD183: 2022-02-01 | AE183: 2022-08-31 | AF183: 7 MESES | AQ183: Terminado | AR183: 1
A184: 171 | B184: 2022 | C184: FDLF-CD-171-2022 | D184: https://community.secop.gov.co/Public/Tendering/OpportunityDetail/Index?noticeUID=CO1.NTC.2728108&isFromPublicArea=True&isModal=true&asPopupView=true | E184: Contratos de prestación de servicios profesionales y de apoyo a la gestión | F184: Contratación directa | G184: Prestación de servicios profesionales y de apoyo a la gestión, o para la ejecución de trabajos artísticos que sólo puedan encomendarse a determinadas personas naturales | H184: PRESTAR SERVICIOS PROFESIONALES EN EL FORTALECIMIENTO DE LA FUNCIÓN ADMINISTRATIVA Y DESARROLLO INSTITUCIONAL DEL COMPONENTE SOCIAL EN CUMPLIMIENTO A LAS METAS ESTABLECIDAS EN EL PLAN DE DESARROLLO LOCAL 2021 2024 | I184: Inversión | L184: =IF(ISERROR(VLOOKUP(K184,#REF!,2,FALSE))," ",VLOOKUP(K184,#REF!,2,FALSE)) ->  | M184: =IF(ISERROR(VLOOKUP(K184,#REF!,3,FALSE))," ",VLOOKUP(K184,#REF!,3,FALSE)) ->  | O184: 1 | P184: 104xxx49 | Q184: ANDREA CAROLINA COLMENARES | R184: Persona Natural | V184: N/A | W184: 72600000 | X184: 0 | AA184: 72600000 | AB184: 66000000 | AC184: 2022-01-26 | AD184: 2022-02-01 | AE184: 2022-12-30 | AF184: 11 MESES | AQ184: Terminado | AR184: 0.9090909091
A185: 172 | B185: 2022 | C185: FDLF-CD-172-2022 | D185: https://community.secop.gov.co/Public/Tendering/OpportunityDetail/Index?noticeUID=CO1.NTC.2741099&isFromPublicArea=True&isModal=true&asPopupView=true | E185: Contratos de prestación de servicios profesionales y de apoyo a la gestión | F185: Contratación directa | G185: Prestación de servicios profesionales y de apoyo a la gestión, o para la ejecución de trabajos artísticos que sólo puedan encomendarse a determinadas personas naturales | H185: PRESTAR SERVICIOS PROFESIONALES PARA APOYAR Y DAR SOPORTE AL ADMINISTRADOR DE RED Y USUARIO FINAL EN LAS TECNOLOGÍAS DE INFORMACIÓN DE LA ALCALDÍA LOCAL | I185: Inversión | L185: =IF(ISERROR(VLOOKUP(K185,#REF!,2,FALSE))," ",VLOOKUP(K185,#REF!,2,FALSE)) ->  | M185: =IF(ISERROR(VLOOKUP(K185,#REF!,3,FALSE))," ",VLOOKUP(K185,#REF!,3,FALSE)) ->  | O185: 1 | P185: 101xxx70 | Q185: DAVID MATEO RIVERA VALLES | R185: Persona Natural | V185: N/A | W185: 37100000 | X185: 0 | AA185: 37100000 | AB185: 37100000 | AC185: 2022-01-26 | AD185: 2022-02-01 | AE185: 2022-08-30 | AF185: 7 MESES | AQ185: Terminado | AR185: 1
A186: 173 | B186: 2022 | C186: FDLF-CD-173-2022 | D186: https://community.secop.gov.co/Public/Tendering/OpportunityDetail/Index?noticeUID=CO1.NTC.2741185&isFromPublicArea=True&isModal=true&asPopupView=true | E186: Contratos de prestación de servicios profesionales y de apoyo a la gestión | F186: Contratación directa | G186: Prestación de servicios profesionales y de apoyo a la gestión, o para la ejecución de trabajos artísticos que sólo puedan encomendarse a determinadas personas naturales | H186: PRESTAR SERVICIOS DE APOYO COMO AUXILIAR ADMINISTRATIVO Y OPERATIVO EN LA ALCALDÍA LOCAL DE FONTIBÓN EN EL MARCO DEL PROYECTO DE INVERSIÓN No 1772 | I186: Inversión | L186: =IF(ISERROR(VLOOKUP(K186,#REF!,2,FALSE))," ",VLOOKUP(K186,#REF!,2,FALSE)) ->  | M186: =IF(ISERROR(VLOOKUP(K186,#REF!,3,FALSE))," ",VLOOKUP(K186,#REF!,3,FALSE)) ->  | O186: 1 | P186: 102xxx55 | Q186: LEIDY YINETH RODRIGUEZ MARTINEZ | R186: Persona Natural | V186: N/A | W186: 17500000 | X186: 0 | Y186: 1 | Z186: 8750000 | AA186: 26250000 | AB186: 17500000 | AC186: 2022-01-26 | AD186: 2022-02-01 | AE186: 2022-12-15 | AF186: 7 MESES | AG186: 1 | AH186: 105 | AI186: 52272548 | AJ186: ANA JAQUELINE SCARPETTA FARIAS | AK186: 2022-04-22 | AQ186: Terminado | AR186: 0.6666666667
A187: 174 | B187: 2022 | C187: FDLF-CD-174-2022 | D187: https://community.secop.gov.co/Public/Tendering/OpportunityDetail/Index?noticeUID=CO1.NTC.2727932&isFromPublicArea=True&isModal=true&asPopupView=true | E187: Contratos de prestación de servicios profesionales y de apoyo a la gestión | F187: Contratación directa | G187: Prestación de servicios profesionales y de apoyo a la gestión, o para la ejecución de trabajos artísticos que sólo puedan encomendarse a determinadas personas naturales | H187: PRESTAR SERVICIOS DE APOYO COMO AUXILIAR ADMINISTRATIVO Y OPERATIVO EN EL MARCO DEL PROYECTO DE INVERSIÓN No 1761 | I187: Inversión | L187: =IF(ISERROR(VLOOKUP(K187,#REF!,2,FALSE))," ",VLOOKUP(K187,#REF!,2,FALSE)) ->  | M187: =IF(ISERROR(VLOOKUP(K187,#REF!,3,FALSE))," ",VLOOKUP(K187,#REF!,3,FALSE)) ->  | O187: 1 | P187: 101xxx36 | Q187: INGREE YOMARA DELGADO ARIZA | R187: Persona Natural | V187: N/A | W187: 18200000 | X187: 0 | AA187: 18200000 | AB187: 18200000 | AC187: 2022-01-26 | AD187: 2022-02-01 | AE187: 2022-08-30 | AF187: 7 MESES | AQ187: Terminado | AR187: 1
A188: 175 | B188: 2022 | C188: FDLF-CD-175-2022 | D188: https://community.secop.gov.co/Public/Tendering/OpportunityDetail/Index?noticeUID=CO1.NTC.2729007&isFromPublicArea=True&isModal=true&asPopupView=true | E188: Contratos de prestación de servicios profesionales y de apoyo a la gestión | F188: Contratación directa | G188: Prestación de servicios profesionales y de apoyo a la gestión, o para la ejecución de trabajos artísticos que sólo puedan encomendarse a determinadas personas naturales | H188: PRESTAR SERVICIOS DE APOYO COMO AUXILIAR ADMINISTRATIVO Y OPERATIVO EN EL MARCO DEL PROYECTO DE INVERSIÓN No 1761 | I188: Inversión | L188: =IF(ISERROR(VLOOKUP(K188,#REF!,2,FALSE))," ",VLOOKUP(K188,#REF!,2,FALSE)) ->  | M188: =IF(ISERROR(VLOOKUP(K188,#REF!,3,FALSE))," ",VLOOKUP(K188,#REF!,3,FALSE)) ->  | O188: 1 | P188: 760xxx76 | Q188: JUAN DE LA CRUZ CASTRO PAZ | R188: Persona Natural | V188: N/A | W188: 18200000 | X188: 0 | Y188: 1 | Z188: 9100000 | AA188: 27300000 | AB188: 26000000 | AC188: 2022-01-26 | AD188: 2022-02-01 | AE188: 2022-12-15 | AF188: 7 MESES | AG188: 1 | AH188: 105 | AQ188: Terminado | AR188: 0.9523809524
A189: 176 | B189: 2022 | C189: FDLF-CD-176-2022 | D189: https://community.secop.gov.co/Public/Tendering/OpportunityDetail/Index?noticeUID=CO1.NTC.2729346&isFromPublicArea=True&isModal=true&asPopupView=true | E189: Contratos de prestación de servicios profesionales y de apoyo a la gestión | F189: Contratación directa | G189: Prestación de servicios profesionales y de apoyo a la gestión, o para la ejecución de trabajos artísticos que sólo puedan encomendarse a determinadas personas naturales | H189: PRESTAR SERVICIOS DE APOYO COMO AUXILIAR ADMINISTRATIVO Y OPERATIVO EN EL MARCO DEL PROYECTO DE INVERSIÓN No 1761 | I189: Inversión | L189: =IF(ISERROR(VLOOKUP(K189,#REF!,2,FALSE))," ",VLOOKUP(K189,#REF!,2,FALSE)) ->  | M189: =IF(ISERROR(VLOOKUP(K189,#REF!,3,FALSE))," ",VLOOKUP(K189,#REF!,3,FALSE)) ->  | O189: 1 | P189: 116xxx19 | Q189: JAVIER BONILLA CAICEDO | R189: Persona Natural | V189: N/A | W189: 18200000 | X189: 0 | AA189: 18200000 | AB189: 18200000 | AC189: 2022-01-26 | AD189: 2022-02-01 | AE189: 2022-08-30 | AF189: 7 MESES | AQ189: Terminado | AR189: 1
A190: 177 | B190: 2022 | C190: FDLF-CD-177-2022 | D190: https://community.secop.gov.co/Public/Tendering/OpportunityDetail/Index?noticeUID=CO1.NTC.2742007&isFromPublicArea=True&isModal=true&asPopupView=true | E190: Contratos de prestación de servicios profesionales y de apoyo a la gestión | F190: Contratación directa | G190: Prestación de servicios profesionales y de apoyo a la gestión, o para la ejecución de trabajos artísticos que sólo puedan encomendarse a determinadas personas naturales | H190: PRESTAR SERVICIOS DE APOYO OPERATIVO A LA ALCALDÍA LOCAL DE FONTIBÓN EN EL MARCO DEL PROYECTO DE INVERSIÒN No 1766 | I190: Inversión | L190: =IF(ISERROR(VLOOKUP(K190,#REF!,2,FALSE))," ",VLOOKUP(K190,#REF!,2,FALSE)) ->  | M190: =IF(ISERROR(VLOOKUP(K190,#REF!,3,FALSE))," ",VLOOKUP(K190,#REF!,3,FALSE)) ->  | O190: 1 | P190: 531xxx23 | Q190: NUBIA ALEJANDRA TOVAR NUÑEZ | R190: Persona Natural | V190: N/A | W190: 17500000 | X190: 0 | AA190: 17500000 | AB190: 17500000 | AC190: 2022-01-27 | AD190: 2022-02-02 | AE190: 2022-12-01 | AF190: 7 MESES | AI190: 1081831902 | AJ190: KANDY ELMIRA MONSALVE DE LA CRUZ | AK190: 2022-03-23 | AQ190: Terminado | AR190: 1
A191: 178 | B191: 2022 | C191: FDLF-CD-178-2022 | D191: https://community.secop.gov.co/Public/Tendering/OpportunityDetail/Index?noticeUID=CO1.NTC.2736726&isFromPublicArea=True&isModal=true&asPopupView=true | E191: Contratos de prestación de servicios profesionales y de apoyo a la gestión | F191: Contratación directa | G191: Prestación de servicios profesionales y de apoyo a la gestión, o para la ejecución de trabajos artísticos que sólo puedan encomendarse a determinadas personas naturales | H191: PRESTAR SERVICIOS DE APOYO OPERATIVO PARA LAS ACTIVIDADES RELACIONADAS CON EL MANTENIMIENTO Y REPARACIONES MENORES DE LA SEDE Y DE APOYO OPERATIVO A LOS PROYECTOS DE LA ALCALDÍA LOCAL DE FONTIBÓN | I191: Inversión | L191: =IF(ISERROR(VLOOKUP(K191,#REF!,2,FALSE))," ",VLOOKUP(K191,#REF!,2,FALSE)) ->  | M191: =IF(ISERROR(VLOOKUP(K191,#REF!,3,FALSE))," ",VLOOKUP(K191,#REF!,3,FALSE)) ->  | O191: 1 | P191: 917xxx45 | Q191: JOSE VICENTE DIAZ HERNANDEZ | R191: Persona Natural | V191: N/A | W191: 17500000 | X191: 0 | AA191: 17500000 | AB191: 17500000 | AC191: 2022-01-26 | AD191: 2022-02-07 | AE191: 2022-09-06 | AF191: 7 MESES | AQ191: Terminado | AR191: 1
A192: 179 | B192: 2022 | C192: FDLF-CD-179-2022 | D192: https://community.secop.gov.co/Public/Tendering/OpportunityDetail/Index?noticeUID=CO1.NTC.2738541&isFromPublicArea=True&isModal=true&asPopupView=true | E192: Contratos de prestación de servicios profesionales y de apoyo a la gestión | F192: Contratación directa | G192: Prestación de servicios profesionales y de apoyo a la gestión, o para la ejecución de trabajos artísticos que sólo puedan encomendarse a determinadas personas naturales | H192: SERVICIOS PROFESIONALES DE APOYO CONTABLE EN LOS PROCESOS DE CAUSACIÓN, SISTEMATIZACIÓN Y REGISTROS DE INFORMACIÓN CONTABLE | I192: Inversión | L192: =IF(ISERROR(VLOOKUP(K192,#REF!,2,FALSE))," ",VLOOKUP(K192,#REF!,2,FALSE)) ->  | M192: =IF(ISERROR(VLOOKUP(K192,#REF!,3,FALSE))," ",VLOOKUP(K192,#REF!,3,FALSE)) ->  | O192: 1 | P192: 793xxx93 | Q192: ELMAN CIFUENTES CASTAÑEDA | R192: Persona Natural | V192: N/A | W192: 37100000 | X192: 0 | AA192: 37100000 | AB192: 37100000 | AC192: 2022-01-26 | AD192: 2022-01-31 | AE192: 2022-08-30 | AF192: 7 MESES | AQ192: Terminado | AR192: 1
A193: 180 | B193: 2022 | C193: FDLF-CD-180-2022 | D193: https://community.secop.gov.co/Public/Tendering/OpportunityDetail/Index?noticeUID=CO1.NTC.2739089&isFromPublicArea=True&isModal=true&asPopupView=true | E193: Contratos de prestación de servicios profesionales y de apoyo a la gestión | F193: Contratación directa | G193: Prestación de servicios profesionales y de apoyo a la gestión, o para la ejecución de trabajos artísticos que sólo puedan encomendarse a determinadas personas naturales | H193: PRESTAR EL SERVICIO PARA APOYAR CON LA CONDUCCIÓN DE VEHÍCULOS LIVIANOS, PESADOS Y/O MAQUINARIA PESADA QUE SE ENCUENTRAN AL SERVICIO DE LAS ACTIVIDADES QUE SE DESARROLLAN EN EL FONDO DE DESARROLLO LOCAL DE FONTIBÓN | I193: Inversión | L193: =IF(ISERROR(VLOOKUP(K193,#REF!,2,FALSE))," ",VLOOKUP(K193,#REF!,2,FALSE)) ->  | M193: =IF(ISERROR(VLOOKUP(K193,#REF!,3,FALSE))," ",VLOOKUP(K193,#REF!,3,FALSE)) ->  | O193: 1 | P193: 915xxx52 | Q193: HELLMAN GIOVANNI PEREZ VELANDIA | R193: Persona Natural | V193: N/A | W193: 18900000 | X193: 0 | Y193: 1 | Z193: 9450000 | AA193: 28350000 | AB193: 27270000 | AC193: 2022-01-26 | AD193: 2022-01-28 | AE193: 2022-12-12 | AF193: 7 MESES | AG193: 1 | AH193: 105 | AQ193: Terminado | AR193: 0.9619047619
A194: 181 | B194: 2022 | C194: FDLF-CD-181-2022 | D194: https://community.secop.gov.co/Public/Tendering/OpportunityDetail/Index?noticeUID=CO1.NTC.2739237&isFromPublicArea=True&isModal=true&asPopupView=true | E194: Contratos de prestación de servicios profesionales y de apoyo a la gestión | F194: Contratación directa | G194: Prestación de servicios profesionales y de apoyo a la gestión, o para la ejecución de trabajos artísticos que sólo puedan encomendarse a determinadas personas naturales | H194: PRESTAR SERVICIOS PROFESIONALES PARA APOYAR EL SEGUIMIENTO TÉCNICO Y OPERATIVO DE LOS PROYECTOS DE INVERSIÓN RELACIONADOS CON TEMAS DE REACTIVACIÓN ECONÓMICA, EN EL MARCO DE LAS NECESIDADES DE LA ALCALDÍA DE FONTIBÓN | I194: Inversión | L194: =IF(ISERROR(VLOOKUP(K194,#REF!,2,FALSE))," ",VLOOKUP(K194,#REF!,2,FALSE)) ->  | M194: =IF(ISERROR(VLOOKUP(K194,#REF!,3,FALSE))," ",VLOOKUP(K194,#REF!,3,FALSE)) ->  | O194: 1 | P194: 101xxx68 | Q194: MONICA ALEJANDRA PERILLA FONTECHA | R194: Persona Natural | V194: N/A | W194: 77484000 | X194: 0 | Y194: 1 | Z194: 12209600 | AA194: 89693600 | AB194: 71144400 | AC194: 2022-01-26 | AD194: 2022-01-28 | AE194: 2023-02-19 | AF194: 11 MESES | AG194: 1 | AH194: 53 | AQ194: Terminado | AR194: 0.7931937173
A195: 182 | B195: 2022 | C195: FDLF-CD-182-2022 | D195: https://community.secop.gov.co/Public/Tendering/OpportunityDetail/Index?noticeUID=CO1.NTC.2739489&isFromPublicArea=True&isModal=true&asPopupView=true | E195: Contratos de prestación de servicios profesionales y de apoyo a la gestión | F195: Contratación directa | G195: Prestación de servicios profesionales y de apoyo a la gestión, o para la ejecución de trabajos artísticos que sólo puedan encomendarse a determinadas personas naturales | H195: APOYA EL CUBRIMIENTO DE LAS ACTIVIDADES, CRONOGRAMAS Y AGENDA DE LA ALCALDÍA LOCAL A NIVEL INTERNO Y EXTERNO, ASÍ COMO LA GENERACIÓN DE CONTENIDOS PERIODÍSTICOS | I195: Inversión | L195: =IF(ISERROR(VLOOKUP(K195,#REF!,2,FALSE))," ",VLOOKUP(K195,#REF!,2,FALSE)) ->  | M195: =IF(ISERROR(VLOOKUP(K195,#REF!,3,FALSE))," ",VLOOKUP(K195,#REF!,3,FALSE)) ->  | O195: 1 | P195: 105xxx52 | Q195: OSCAR DAVID DIAZ MAULEDOUX | R195: Persona Natural | V195: N/A | W195: 36204000 | X195: 0 | Y195: 1 | Z195: 18102000 | AA195: 54306000 | AB195: 36204000 | AC195: 2022-01-27 | AD195: 2022-02-02 | AE195: 2022-12-16 | AF195: 7 MESES | AG195: 1 | AH195: 105 | AI195: 1013654377 | AJ195: ANGIE VANESSA MARTINEZ TAVERA | AK195: 2022-03-25 | AQ195: Terminado | AR195: 0.6666666667
A196: 183 | B196: 2022 | C196: FDLF-CD-183-2022 | D196: https://community.secop.gov.co/Public/Tendering/OpportunityDetail/Index?noticeUID=CO1.NTC.2743405&isFromPublicArea=True&isModal=true&asPopupView=true | E196: Contratos de prestación de servicios profesionales y de apoyo a la gestión | F196: Contratación directa | G196: Prestación de servicios profesionales y de apoyo a la gestión, o para la ejecución de trabajos artísticos que sólo puedan encomendarse a determinadas personas naturales | H196: PRESTAR SERVICIOS TÉCNICOS EN LA GESTIÓN DE DESARROLLO LOCAL DE FONTIBÓN, PARA EL DESARROLLO DEL PROYECTO DE INVERSIÓN 1782 | I196: Inversión | L196: =IF(ISERROR(VLOOKUP(K196,#REF!,2,FALSE))," ",VLOOKUP(K196,#REF!,2,FALSE)) ->  | M196: =IF(ISERROR(VLOOKUP(K196,#REF!,3,FALSE))," ",VLOOKUP(K196,#REF!,3,FALSE)) ->  | O196: 1 | P196: 795xxx28 | Q196: JOSE ERNESTO ARIZA FERNANDEZ | R196: Persona Natural | V196: N/A | W196: 24500000 | X196: 0 | AA196: 24500000 | AB196: 24500000 | AC196: 2022-01-27 | AD196: 2022-02-02 | AE196: 2022-09-01 | AF196: 7 MESES | AQ196: Terminado | AR196: 1
A197: 184 | B197: 2022 | C197: FDLF-CD-184-2022 | D197: https://community.secop.gov.co/Public/Tendering/OpportunityDetail/Index?noticeUID=CO1.NTC.2755389&isFromPublicArea=True&isModal=true&asPopupView=true | E197: Contratos de prestación de servicios profesionales y de apoyo a la gestión | F197: Contratación directa | G197: Prestación de servicios profesionales y de apoyo a la gestión, o para la ejecución de trabajos artísticos que sólo puedan encomendarse a determinadas personas naturales | H197: PRESTAR SERVICIOS DE APOYO ADMINISTRATIVO Y ASISTENCIALMENTE A LA GESTIÓN POLICIVA DE LA ALCALDÍA LOCAL. | I197: Inversión | L197: =IF(ISERROR(VLOOKUP(K197,#REF!,2,FALSE))," ",VLOOKUP(K197,#REF!,2,FALSE)) ->  | M197: =IF(ISERROR(VLOOKUP(K197,#REF!,3,FALSE))," ",VLOOKUP(K197,#REF!,3,FALSE)) ->  | O197: 1 | P197: 518xxx01 | Q197: CLAUDIA TERESA MORENO BOBADILLA | R197: Persona Natural | V197: N/A | W197: 18200000 | X197: 0 | Y197: 1 | Z197: 9100000 | AA197: 27300000 | AB197: 25913333 | AC197: 2022-01-27 | AD197: 2022-02-02 | AE197: 2022-12-16 | AF197: 7 MESES | AG197: 1 | AH197: 105 | AQ197: Terminado | AR197: 0.949206337
A198: 185 | B198: 2022 | C198: FDLF-CD-185-2022 | D198: https://community.secop.gov.co/Public/Tendering/OpportunityDetail/Index?noticeUID=CO1.NTC.2755719&isFromPublicArea=True&isModal=true&asPopupView=true | E198: Contratos de prestación de servicios profesionales y de apoyo a la gestión | F198: Contratación directa | G198: Prestación de servicios profesionales y de apoyo a la gestión, o para la ejecución de trabajos artísticos que sólo puedan encomendarse a determinadas personas naturales | H198: PRESTAR SERVICIOS DE APOYO A LAS ACTIVIDADES OPERATIVAS Y ADMINISTRATIVAS DE LA JUNTA ADMINISTRADORA LOCAL. | I198: Inversión | L198: =IF(ISERROR(VLOOKUP(K198,#REF!,2,FALSE))," ",VLOOKUP(K198,#REF!,2,FALSE)) ->  | M198: =IF(ISERROR(VLOOKUP(K198,#REF!,3,FALSE))," ",VLOOKUP(K198,#REF!,3,FALSE)) ->  | O198: 1 | P198: 524xxx12 | Q198: JEIMMY ZAMANDA CRUZ BALLESTEROS | R198: Persona Natural | V198: N/A | W198: 17500000 | X198: 0 | Y198: 1 | Z198: 8750000 | AA198: 26250000 | AB198: 24916667 | AC198: 2022-01-27 | AD198: 2022-02-02 | AE198: 2022-12-16 | AF198: 7 MESES | AG198: 1 | AH198: 105 | AQ198: Terminado | AR198: 0.9492063619
A199: 186 | B199: 2022 | C199: FDLF-CD-186-2022 | D199: https://community.secop.gov.co/Public/Tendering/OpportunityDetail/Index?noticeUID=CO1.NTC.2755593&isFromPublicArea=True&isModal=true&asPopupView=true | E199: Contratos de prestación de servicios profesionales y de apoyo a la gestión | F199: Contratación directa | G199: Prestación de servicios profesionales y de apoyo a la gestión, o para la ejecución de trabajos artísticos que sólo puedan encomendarse a determinadas personas naturales | H199: Prestar sus servicios profesionales para realizar actividades producción y post producción operativa de las actividades y relacionadas con elementos y bienes que hacen parte del inventario del Fondo de Desarrollo local, en el marco del plan de desarrollo 2021-2024 de la localidad de Fontibón | I199: Inversión | L199: =IF(ISERROR(VLOOKUP(K199,#REF!,2,FALSE))," ",VLOOKUP(K199,#REF!,2,FALSE)) ->  | M199: =IF(ISERROR(VLOOKUP(K199,#REF!,3,FALSE))," ",VLOOKUP(K199,#REF!,3,FALSE)) ->  | O199: 1 | P199: 103xxx34 | Q199: KEVYN ALEJANDRO GONZALEZ RAMIREZ | R199: Persona Natural | V199: N/A | W199: 31640000 | X199: 0 | Y199: 1 | Z199: 15820000 | AA199: 47460000 | AB199: 45049333 | AC199: 2022-01-28 | AD199: 2022-02-02 | AE199: 2022-12-16 | AF199: 7 MESES | AG199: 1 | AH199: 105 | AQ199: Terminado | AR199: 0.9492063422
A200: 187 | B200: 2022 | C200: FDLF-CD-187-2022 | D200: https://community.secop.gov.co/Public/Tendering/OpportunityDetail/Index?noticeUID=CO1.NTC.2756145&isFromPublicArea=True&isModal=true&asPopupView=true | E200: Contratos de prestación de servicios profesionales y de apoyo a la gestión | F200: Contratación directa | G200: Prestación de servicios profesionales y de apoyo a la gestión, o para la ejecución de trabajos artísticos que sólo puedan encomendarse a determinadas personas naturales | H200: APOYAR LA GESTIÓN DOCUMENTAL DE LA ALCALDÍA LOCAL EN LA IMPLEMENTACIÓN DE LOS PROCESOS DE CLASIFICACIÓN, ORDENACIÓN, SELECCIÓN NATURAL, FOLIACIÓN, IDENTIFICACIÓN, LEVANTAMIENTO DE INVENTARIOS, ALMACENAMIENTO Y APLICACIÓN DE PROTOCOLOS DE ELIMINACIÓN Y TRANSFERENCIAS DOCUMENTALES | I200: Inversión | L200: =IF(ISERROR(VLOOKUP(K200,#REF!,2,FALSE))," ",VLOOKUP(K200,#REF!,2,FALSE)) ->  | M200: =IF(ISERROR(VLOOKUP(K200,#REF!,3,FALSE))," ",VLOOKUP(K200,#REF!,3,FALSE)) ->  | O200: 1 | P200: 528xxx83 | Q200: JENY PAOLA PINZON SANCHEZ | R200: Persona Natural | V200: N/A | W200: 17500000 | X200: 0 | Y200: 1 | Z200: 8750000 | AA200: 26250000 | AB200: 24916667 | AC200: 2022-01-27 | AD200: 2022-02-02 | AE200: 2022-12-16 | AF200: 7 MESES | AG200: 1 | AH200: 105 | AQ200: Terminado | AR200: 0.9492063619
A201: 188 | B201: 2022 | C201: FDLF-CD-188-2022 | D201: https://community.secop.gov.co/Public/Tendering/OpportunityDetail/Index?noticeUID=CO1.NTC.2756800&isFromPublicArea=True&isModal=true&asPopupView=true | E201: Contratos de prestación de servicios profesionales y de apoyo a la gestión | F201: Contratación directa | G201: Prestación de servicios profesionales y de apoyo a la gestión, o para la ejecución de trabajos artísticos que sólo puedan encomendarse a determinadas personas naturales | H201: PRESTAR LOS SERVICIOS TÉCNICOS PARA APOYAR LOS PROCESOS DE GESTIÓN ADMINISTRATIVA A CARGO DEL FONDO DE DESARROLLOLOCAL DE FONTIBÓN. | I201: Inversión | L201: =IF(ISERROR(VLOOKUP(K201,#REF!,2,FALSE))," ",VLOOKUP(K201,#REF!,2,FALSE)) ->  | M201: =IF(ISERROR(VLOOKUP(K201,#REF!,3,FALSE))," ",VLOOKUP(K201,#REF!,3,FALSE)) ->  | O201: 1 | P201: 103xxx31 | Q201: CRISTIAN DAVID HERRERA MANCILLA | R201: Persona Natural | V201: N/A | W201: 24500000 | X201: 0 | AA201: 24500000 | AB201: 24500000 | AC201: 2022-01-27 | AD201: 2022-02-02 | AE201: 2022-09-01 | AF201: 7 MESES | AQ201: Terminado | AR201: 1
A202: 189 | B202: 2022 | C202: FDLF-CD-189-2022 | D202: https://community.secop.gov.co/Public/Tendering/OpportunityDetail/Index?noticeUID=CO1.NTC.2757692&isFromPublicArea=True&isModal=true&asPopupView=true | E202: Contratos de prestación de servicios profesionales y de apoyo a la gestión | F202: Contratación directa | G202: Prestación de servicios profesionales y de apoyo a la gestión, o para la ejecución de trabajos artísticos que sólo puedan encomendarse a determinadas personas naturales | H202: PRESTAR SERVICIOS PROFESIONALES PARA LA GESTIÓN Y SEGUIMIENTO DE ACTIVIDADES ENFOCADAS A LA GESTIÓN AMBIENTAL EXTERNA, ENCAMINADAS A LA MITIGACIÓN DE LOS DIFERENTES IMPACTOS AMBIENTALES Y LA CONSERVACIÓN DE LOS RECURSOS NATURALES DE LA LOCALIDAD. | I202: Inversión | L202: =IF(ISERROR(VLOOKUP(K202,#REF!,2,FALSE))," ",VLOOKUP(K202,#REF!,2,FALSE)) ->  | M202: =IF(ISERROR(VLOOKUP(K202,#REF!,3,FALSE))," ",VLOOKUP(K202,#REF!,3,FALSE)) ->  | O202: 1 | P202: 101xxx07 | Q202: VALENTINA POVEDA NOGUERA | R202: Persona Natural | V202: N/A | W202: 31640000 | X202: 0 | Y202: 1 | Z202: 15820000 | AA202: 47460000 | AB202: 26969333 | AC202: 2022-01-28 | AD202: 2022-02-02 | AE202: 2022-12-16 | AF202: 7 MESES | AG202: 1 | AH202: 105 | AI202: 52848678 | AJ202: MARÍA CAROLINA DÍAZ FRANKY | AK202: 2022-03-28 | AM202: 1022333520 | AN202: LEADY ANGELICA SUAREZ VALENCIA | AO202: 2022-08-30 | AQ202: Terminado | AR202: 0.5682539612
... 315 more rows

Sheet Proposito_programa
B2: PDD | C2: No. Programa | D2: Programa | E2: Propósito
A3: Acuerdo 761 2020 | B3: Un Nuevo Contrato Social y Ambiental para la Bogotá del Siglo XXI | C3: 1 | D3: Subsidios y transferencias para la equidad | E3: Propósito 1: Hacer un nuevo contrato social para incrementar la inclusión social, productiva y política
A4: Pag. 51 | B4: Un Nuevo Contrato Social y Ambiental para la Bogotá del Siglo XXI | C4: =+C3+1 -> 2 | D4: Igualdad de oportunidades y desarrollo de capacidades para las mujeres | E4: Propósito 1: Hacer un nuevo contrato social para incrementar la inclusión social, productiva y política
B5: Un Nuevo Contrato Social y Ambiental para la Bogotá del Siglo XXI | C5: =+C4+1 -> 3 | D5: Movilidad social integral | E5: Propósito 1: Hacer un nuevo contrato social para incrementar la inclusión social, productiva y política
B6: Un Nuevo Contrato Social y Ambiental para la Bogotá del Siglo XXI | C6: 4 | D6: Prevención de la exclusión por razones étnicas, religiosas, sociales, políticas y de orientación sexual | E6: Propósito 1: Hacer un nuevo contrato social para incrementar la inclusión social, productiva y política
B7: Un Nuevo Contrato Social y Ambiental para la Bogotá del Siglo XXI | C7: 5 | D7: Promoción de la igualdad, el desarrollo de capacidades y el reconocimiento de las mujeres | E7: Propósito 1: Hacer un nuevo contrato social para incrementar la inclusión social, productiva y política
B8: Un Nuevo Contrato Social y Ambiental para la Bogotá del Siglo XXI | C8: 6 | D8: Sistema Distrital de Cuidado | E8: Propósito 1: Hacer un nuevo contrato social para incrementar la inclusión social, productiva y política
B9: Un Nuevo Contrato Social y Ambiental para la Bogotá del Siglo XXI | C9: 7 | D9: Mejora de la gestión de instituciones de salud | E9: Propósito 1: Hacer un nuevo contrato social para incrementar la inclusión social, productiva y política
B10: Un Nuevo Contrato Social y Ambiental para la Bogotá del Siglo XXI | C10: 8 | D10: Prevención y atención de maternidad temprana | E10: Propósito 1: Hacer un nuevo contrato social para incrementar la inclusión social, productiva y política
B11: Un Nuevo Contrato Social y Ambiental para la Bogotá del Siglo XXI | C11: 9 | D11: Prevención y cambios para mejorar la salud de la población | E11: Propósito 1: Hacer un nuevo contrato social para incrementar la inclusión social, productiva y política
B12: Un Nuevo Contrato Social y Ambiental para la Bogotá del Siglo XXI | C12: 10 | D12: Salud para la vida y el bienestar | E12: Propósito 1: Hacer un nuevo contrato social para incrementar la inclusión social, productiva y política
B13: Un Nuevo Contrato Social y Ambiental para la Bogotá del Siglo XXI | C13: 11 | D13: Salud y bienestar para niñas y niños | E13: Propósito 1: Hacer un nuevo contrato social para incrementar la inclusión social, productiva y política
B14: Un Nuevo Contrato Social y Ambiental para la Bogotá del Siglo XXI | C14: 12 | D14: Educación inicial: Bases sólidas para la vida. | E14: Propósito 1: Hacer un nuevo contrato social para incrementar la inclusión social, productiva y política
B15: Un Nuevo Contrato Social y Ambiental para la Bogotá del Siglo XXI | C15: 13 | D15: Educación para todos y todas: acceso y permanencia con equidad y énfasis en educación rural | E15: Propósito 1: Hacer un nuevo contrato social para incrementar la inclusión social, productiva y política
B16: Un Nuevo Contrato Social y Ambiental para la Bogotá del Siglo XXI | C16: 14 | D16: Formación integral: más y mejor tiempo en los colegios | E16: Propósito 1: Hacer un nuevo contrato social para incrementar la inclusión social, productiva y política
B17: Un Nuevo Contrato Social y Ambiental para la Bogotá del Siglo XXI | C17: 15 | D17: Plan Distrital de Lectura, Escritura y Oralidad: "Leer para la vida" | E17: Propósito 1: Hacer un nuevo contrato social para incrementar la inclusión social, productiva y política
B18: Un Nuevo Contrato Social y Ambiental para la Bogotá del Siglo XXI | C18: 16 | D18: Transformación pedagógica y mejoramiento de la gestión educativa. Es con los maestros y maestras. | E18: Propósito 1: Hacer un nuevo contrato social para incrementar la inclusión social, productiva y política
B19: Un Nuevo Contrato Social y Ambiental para la Bogotá del Siglo XXI | C19: 17 | D19: Jóvenes con capacidades: Proyecto de vida para la ciudadanía, la innovación y el trabajo del siglo XXI | E19: Propósito 1: Hacer un nuevo contrato social para incrementar la inclusión social, productiva y política
B20: Un Nuevo Contrato Social y Ambiental para la Bogotá del Siglo XXI | C20: 18 | D20: Cierre de brechas para la inclusión productiva urbano rural | E20: Propósito 1: Hacer un nuevo contrato social para incrementar la inclusión social, productiva y política
B21: Un Nuevo Contrato Social y Ambiental para la Bogotá del Siglo XXI | C21: 19 | D21: Vivienda y entornos dignos en el territorio urbano y rural | E21: Propósito 1: Hacer un nuevo contrato social para incrementar la inclusión social, productiva y política
B22: Un Nuevo Contrato Social y Ambiental para la Bogotá del Siglo XXI | C22: 20 | D22: Bogotá, referente en cultura, deporte, recreación y actividad física, con parques para el desarrollo y la salud | E22: Propósito 1: Hacer un nuevo contrato social para incrementar la inclusión social, productiva y política
B23: Un Nuevo Contrato Social y Ambiental para la Bogotá del Siglo XXI | C23: 21 | D23: Creación y vida cotidiana: Apropiación ciudadana del arte, la cultura y el patrimonio, para la democracia cultural | E23: Propósito 1: Hacer un nuevo contrato social para incrementar la inclusión social, productiva y política
B24: Un Nuevo Contrato Social y Ambiental para la Bogotá del Siglo XXI | C24: 22 | D24: Transformación cultural para la conciencia ambiental y el cuidado de la fauna doméstica | E24: Propósito 1: Hacer un nuevo contrato social para incrementar la inclusión social, productiva y política
B25: Un Nuevo Contrato Social y Ambiental para la Bogotá del Siglo XXI | C25: 23 | D25: Bogotá rural | E25: Propósito 1: Hacer un nuevo contrato social para incrementar la inclusión social, productiva y política
B26: Un Nuevo Contrato Social y Ambiental para la Bogotá del Siglo XXI | C26: 24 | D26: Bogotá región emprendedora e innovadora | E26: Propósito 1: Hacer un nuevo contrato social para incrementar la inclusión social, productiva y política
B27: Un Nuevo Contrato Social y Ambiental para la Bogotá del Siglo XXI | C27: 25 | D27: Bogotá región productiva y competitiva | E27: Propósito 1: Hacer un nuevo contrato social para incrementar la inclusión social, productiva y política
B28: Un Nuevo Contrato Social y Ambiental para la Bogotá del Siglo XXI | C28: 26 | D28: Bogotá - región, el mejor destino para visitar | E28: Propósito 1: Hacer un nuevo contrato social para incrementar la inclusión social, productiva y política
B29: Un Nuevo Contrato Social y Ambiental para la Bogotá del Siglo XXI | C29: 27 | D29: Cambio cultural para la gestión de la crisis climática | E29: Propósito 2 : Cambiar Nuestros Hábitos de Vida para Reverdecer a Bogotá y Adaptarnos y Mitigar la Crisis Climática
B30: Un Nuevo Contrato Social y Ambiental para la Bogotá del Siglo XXI | C30: =+C29+1 -> 28 | D30: Bogotá protectora de sus recursos naturales | E30: Propósito 2 : Cambiar Nuestros Hábitos de Vida para Reverdecer a Bogotá y Adaptarnos y Mitigar la Crisis Climática
B31: Un Nuevo Contrato Social y Ambiental para la Bogotá del Siglo XXI | C31: =+C30+1 -> 29 | D31: Asentamientos y entornos protectores | E31: Propósito 2 : Cambiar Nuestros Hábitos de Vida para Reverdecer a Bogotá y Adaptarnos y Mitigar la Crisis Climática
B32: Un Nuevo Contrato Social y Ambiental para la Bogotá del Siglo XXI | C32: 30 | D32: Eficiencia en la atención de emergencias | E32: Propósito 2 : Cambiar Nuestros Hábitos de Vida para Reverdecer a Bogotá y Adaptarnos y Mitigar la Crisis Climática
B33: Un Nuevo Contrato Social y Ambiental para la Bogotá del Siglo XXI | C33: 31 | D33: Protección y valoración del patrimonio tangible e intangible en Bogotá y la región | E33: Propósito 2 : Cambiar Nuestros Hábitos de Vida para Reverdecer a Bogotá y Adaptarnos y Mitigar la Crisis Climática
B34: Un Nuevo Contrato Social y Ambiental para la Bogotá del Siglo XXI | C34: 32 | D34: Revitalización urbana para la competitividad | E34: Propósito 2 : Cambiar Nuestros Hábitos de Vida para Reverdecer a Bogotá y Adaptarnos y Mitigar la Crisis Climática
B35: Un Nuevo Contrato Social y Ambiental para la Bogotá del Siglo XXI | C35: 33 | D35: Más árboles y más y mejor espacio público | E35: Propósito 2 : Cambiar Nuestros Hábitos de Vida para Reverdecer a Bogotá y Adaptarnos y Mitigar la Crisis Climática
B36: Un Nuevo Contrato Social y Ambiental para la Bogotá del Siglo XXI | C36: 34 | D36: Bogotá protectora de los animales | E36: Propósito 2 : Cambiar Nuestros Hábitos de Vida para Reverdecer a Bogotá y Adaptarnos y Mitigar la Crisis Climática
B37: Un Nuevo Contrato Social y Ambiental para la Bogotá del Siglo XXI | C37: 35 | D37: Manejo y prevención de contaminación | E37: Propósito 2 : Cambiar Nuestros Hábitos de Vida para Reverdecer a Bogotá y Adaptarnos y Mitigar la Crisis Climática
B38: Un Nuevo Contrato Social y Ambiental para la Bogotá del Siglo XXI | C38: 36 | D38: Manejo y saneamiento de los cuerpos de agua | E38: Propósito 2 : Cambiar Nuestros Hábitos de Vida para Reverdecer a Bogotá y Adaptarnos y Mitigar la Crisis Climática
B39: Un Nuevo Contrato Social y Ambiental para la Bogotá del Siglo XXI | C39: 37 | D39: Provisión y mejoramiento de servicios públicos | E39: Propósito 2 : Cambiar Nuestros Hábitos de Vida para Reverdecer a Bogotá y Adaptarnos y Mitigar la Crisis Climática
B40: Un Nuevo Contrato Social y Ambiental para la Bogotá del Siglo XXI | C40: 38 | D40: Ecoeficiencia, reciclaje, manejo de residuos e inclusión de la población recicladora | E40: Propósito 2 : Cambiar Nuestros Hábitos de Vida para Reverdecer a Bogotá y Adaptarnos y Mitigar la Crisis Climática
B41: Un Nuevo Contrato Social y Ambiental para la Bogotá del Siglo XXI | C41: 39 | D41: Bogotá territorio de paz y atención integral a las víctimas del conflicto armado | E41: Propósito 3: Inspirar confianza y legitimidad para vivir sin miedo y ser epicentro de cultura ciudadana, paz y reconciliación
B42: Un Nuevo Contrato Social y Ambiental para la Bogotá del Siglo XXI | C42: =+C41+1 -> 40 | D42: Más mujeres viven una vida libre de violencias, se sienten seguras y acceden con confianza al sistema de justicia | E42: Propósito 3: Inspirar confianza y legitimidad para vivir sin miedo y ser epicentro de cultura ciudadana, paz y reconciliación
B43: Un Nuevo Contrato Social y Ambiental para la Bogotá del Siglo XXI | C43: =+C42+1 -> 41 | D43: Sin machismo ni violencias contra las mujeres, las niñas y los niños | E43: Propósito 3: Inspirar confianza y legitimidad para vivir sin miedo y ser epicentro de cultura ciudadana, paz y reconciliación
B44: Un Nuevo Contrato Social y Ambiental para la Bogotá del Siglo XXI | C44: 42 | D44: Conciencia y cultura ciudadana para la seguridad, la convivencia y la construcción de confianza | E44: Propósito 3: Inspirar confianza y legitimidad para vivir sin miedo y ser epicentro de cultura ciudadana, paz y reconciliación
B45: Un Nuevo Contrato Social y Ambiental para la Bogotá del Siglo XXI | C45: 43 | D45: Cultura ciudadana para la confianza, la convivencia y la participación desde la vida cotidiana | E45: Propósito 3: Inspirar confianza y legitimidad para vivir sin miedo y ser epicentro de cultura ciudadana, paz y reconciliación
B46: Un Nuevo Contrato Social y Ambiental para la Bogotá del Siglo XXI | C46: 44 | D46: Autoconciencia, respeto y cuidado en el espacio público | E46: Propósito 3: Inspirar confianza y legitimidad para vivir sin miedo y ser epicentro de cultura ciudadana, paz y reconciliación
B47: Un Nuevo Contrato Social y Ambiental para la Bogotá del Siglo XXI | C47: 45 | D47: Espacio público más seguro y construido colectivamente | E47: Propósito 3: Inspirar confianza y legitimidad para vivir sin miedo y ser epicentro de cultura ciudadana, paz y reconciliación
B48: Un Nuevo Contrato Social y Ambiental para la Bogotá del Siglo XXI | C48: 46 | D48: Atención a jóvenes y adultos infractores con impacto en su proyecto de vida | E48: Propósito 3: Inspirar confianza y legitimidad para vivir sin miedo y ser epicentro de cultura ciudadana, paz y reconciliación
B49: Un Nuevo Contrato Social y Ambiental para la Bogotá del Siglo XXI | C49: 47 | D49: Calidad de Vida y Derechos de la Población privada de la libertad | E49: Propósito 3: Inspirar confianza y legitimidad para vivir sin miedo y ser epicentro de cultura ciudadana, paz y reconciliación
B50: Un Nuevo Contrato Social y Ambiental para la Bogotá del Siglo XXI | C50: 48 | D50: Plataforma institucional para la seguridad y justicia | E50: Propósito 3: Inspirar confianza y legitimidad para vivir sin miedo y ser epicentro de cultura ciudadana, paz y reconciliación
B51: Un Nuevo Contrato Social y Ambiental para la Bogotá del Siglo XXI | C51: 49 | D51: Movilidad segura, sostenible y accesible | E51: Propósito 4: Hacer de Bogotá Región un modelo de movilidad multimodal, incluyente y sostenible
B52: Un Nuevo Contrato Social y Ambiental para la Bogotá del Siglo XXI | C52: =+C51+1 -> 50 | D52: Red de metros | E52: Propósito 4: Hacer de Bogotá Región un modelo de movilidad multimodal, incluyente y sostenible
B53: Un Nuevo Contrato Social y Ambiental para la Bogotá del Siglo XXI | C53: 51 | D53: Gobierno Abierto | E53: Propósito 5: Construir Bogotá - Región con gobierno abierto, transparente y ciudadanía consciente
B54: Un Nuevo Contrato Social y Ambiental para la Bogotá del Siglo XXI | C54: =+C53+1 -> 52 | D54: Integración regional, distrital y local | E54: Propósito 5: Construir Bogotá - Región con gobierno abierto, transparente y ciudadanía consciente
B55: Un Nuevo Contrato Social y Ambiental para la Bogotá del Siglo XXI | C55: =+C54+1 -> 53 | D55: Información para la toma de decisiones | E55: Propósito 5: Construir Bogotá - Región con gobierno abierto, transparente y ciudadanía consciente
B56: Un Nuevo Contrato Social y Ambiental para la Bogotá del Siglo XXI | C56: 54 | D56: Transformación digital y gestión de TIC para un territorio inteligente | E56: Propósito 5: Construir Bogotá - Región con gobierno abierto, transparente y ciudadanía consciente
B57: Un Nuevo Contrato Social y Ambiental para la Bogotá del Siglo XXI | C57: 55 | D57: Fortalecimiento de cultura ciudadana y su institucionalidad | E57: Propósito 5: Construir Bogotá - Región con gobierno abierto, transparente y ciudadanía consciente
B58: Un Nuevo Contrato Social y Ambiental para la Bogotá del Siglo XXI | C58: 56 | D58: Gestión pública efectiva | E58: Propósito 5: Construir Bogotá - Región con gobierno abierto, transparente y ciudadanía consciente
B59: Un Nuevo Contrato Social y Ambiental para la Bogotá del Siglo XXI | C59: 57 | D59: Gestión pública local | E59: Propósito 5: Construir Bogotá - Región con gobierno abierto, transparente y ciudadanía consciente

Sheet Tipo (hidden)
C1: Modalidad de Selección | D1: afectacion | E1: Naturaleza Jurídica
A2: 1 | C2: Concurso de méritos | D2: Funcionamiento | E2: Persona Natural
A3: 2 | C3: Contratación directa | D3: Inversión | E3: Persona Jurídica
A4: 3 | C4: Contratación mínima cuantia | D4: Operación | E4: Unión Temporal
A5: 4 | C5: Selección abreviada | E5: Consorcio
A6: 5 | C6: Licitación pública | E6: Sociedad con objeto único
A7: 6 | C7: Otros | E7: Persona jurídica extranjera
A8: 7 | C8: Régimen especial | E8: Sin ánimo de lucro
A9: 8 | E9: Cabildo indígena
A10: 9 | E10: Consejo comunitario de las comunidades negras
A11: 10 | C11: Selección abreviada | E11: Organizaciones de segundo nivel
A12: 11 | C12: Subasta inversa | E12: Formas o expresiones organizativas, afrocolombianas, raizales y palenqueras
A13: 12 | C13: Bolsas de productos | E13: Organizaciones de base de comunidades negras
A14: 13 | C14: Acuerdo marco de precios | E14: Asociaciones de autoridades tradicionales indígenas
A15: 14 | C15: Selección abreviada por menor cuantía
A16: 15
A17: 16 | C17: contratacion directa
A18: 17 | C18: Urgencia manifiesta
A19: 18 | C19: Contratación de empréstitos
A20: 19 | C20: Contratos interadministrativos
A21: 20 | C21: Contratación de bienes y servicios en el sector Defensa
B22: SECTOR | C22: Contratos para el desarrollo de actividades científicas y tecnológicas
A23: 1 | B23: Gestión Pública | C23: Contratos de encargo fiduciario que celebren las entidades territoriales cuando inician el Acuerdo de Reestructuración de Pasivos
A24: =+A23+1 -> 2 | B24: Gobierno | C24: Cuando no exista pluralidad de oferentes en el mercado
A25: =+A24+1 -> 3 | B25: Hacienda | C25: Prestación de servicios profesionales y de apoyo a la gestión, o para la ejecución de trabajos artísticos que sólo puedan encomendarse a determinadas personas naturales
A26: 4 | B26: Planeación | C26: El arrendamiento o adquisición de inmuebles
A27: 5 | B27: Desarrollo Económico, Industria y Turismo | C27: Contratación de bienes y servicios de la Dirección Nacional de Inteligencia (DNI)
A28: 6 | B28: Educación
A29: 7 | B29: Salud
A30: 8 | B30: Integración Social | C30: Decreto 92 de 2017
A31: 9 | B31: Cultura, Recreación y Deporte | C31: No aplica
A32: 10 | B32: Ambiente
A33: 11 | B33: Movilidad | C33: SECOP I
A34: 12 | B34: Hábitat | C34: SECOP II
A35: 13 | B35: Mujeres
A36: 14 | B36: Seguridad, Convivencia y Justicia | C36: Bogotá Mejor para Todos
A37: 15 | B37: Gestión Juridíca | C37: Un Nuevo Contrato Social y Ambiental para la Bogotá del Siglo XXI
A38: 16 | B38: descentralizado territorialmente
B40: 16 - AL | C40: Estado
C41: Celebrado o por iniciar
B42: Plan de desarrollo distrital | C42: En ejecución
B43: Un nuevo contrato social y ambiental para la Bogotá del Siglo XXI | C43: Terminado
C44: Liquidado
B46: Tipo
B47: Obra pública
B48: Consultoría
B49: Interventoría
B50: Contratos de prestación de servicios
B51: Contratos de prestación de servicios profesionales y de apoyo a la gestión
B52: Compraventa de bienes muebles
B53: Compraventa de bienes inmuebles
B54: Arrendamiento de bienes muebles
B55: Arrendamiento de bienes inmuebles
B56: Seguro
B57: Suministro
B58: Empréstitos
B59: Fiducia mercantil o encargo fiduciario
B60: Concesión
B61: Convenios de cooperacion
B62: Convenios/Contratos interadministrativos
B63: Convenios de apoyo o convenios de asociación
B64: Convenios solidarios
B65: Asociaciones Público Privadas
B66: Otros
B67: Otros gastos
